{"text_format":"1","workbook":"xlsx","n_sheets":6,"sheets":["Програм","Програмска активност","Пројекат (2)","Пројекат (3)","Пројекат","Упутство"],"not_rendered":{"charts":0,"images":0,"macros":0,"external_links":0,"defined_names":759,"comments":4,"pivot_tables":0},"unopened":[],"bounds":{"document_bytes":16777216,"sheet_cells":100000,"rows_first":2000,"rows_last":500,"rows_between":2000,"halvings":0,"cell_chars":16384,"cell_head_chars":4096},"cells_cut":0,"cells_raw":0,"read":"whole","date_system":"1900"}

{"sheet":"Програм","index":0,"n_rows":517,"n_cols":15,"rows_kept":517,"cut":false,"hidden":false,"merged":[[509,0,509,1],[514,12,514,13],[464,0,464,14],[466,0,467,0],[466,1,467,2],[466,3,466,4],[466,5,466,6],[466,7,466,8],[466,9,466,10],[466,13,466,14],[501,1,501,2],[476,1,476,2],[489,1,489,2],[486,1,486,2],[487,1,487,2],[466,11,466,12],[495,1,495,2],[492,1,492,2],[493,1,493,2],[494,1,494,2],[491,1,491,2],[507,1,507,2],[508,1,508,2],[506,1,506,2],[442,13,442,14],[443,9,443,10],[447,13,447,14],[444,13,444,14],[446,13,446,14],[445,13,445,14],[444,1,444,2],[444,3,444,4],[444,5,444,6],[445,5,445,6],[446,1,446,2],[446,3,446,4],[445,1,445,2],[448,13,448,14],[449,9,449,10],[447,11,447,12],[444,9,444,10],[442,1,442,2],[442,3,442,4],[442,5,442,6],[449,3,449,4],[448,5,448,6],[447,3,447,4],[443,7,443,8],[449,5,449,6],[443,13,443,14],[449,13,449,14],[443,1,443,2],[449,1,449,2],[443,3,443,4],[443,5,443,6],[448,3,448,4],[445,3,445,4],[447,5,447,6],[446,5,446,6],[447,1,447,2],[442,9,442,10],[458,11,458,12],[452,11,452,12],[447,7,447,8],[448,11,448,12],[447,9,447,10],[450,9,450,10],[451,9,451,10],[442,7,442,8],[445,7,445,8],[446,7,446,8],[450,11,450,12],[451,11,451,12],[449,11,449,12],[448,7,448,8],[445,9,445,10],[445,11,445,12],[446,9,446,10],[446,11,446,12],[454,11,454,12],[444,11,444,12],[443,11,443,12],[444,7,444,8],[448,9,448,10],[442,11,442,12],[457,3,457,4],[488,1,488,2],[484,1,484,2],[453,9,453,10],[452,9,452,10],[458,3,458,4],[452,3,452,4],[450,3,450,4],[456,3,456,4],[468,1,468,2],[483,1,483,2],[472,1,472,2],[462,7,462,8],[450,5,450,6],[451,5,451,6],[452,5,452,6],[453,5,453,6],[454,5,454,6],[457,5,457,6],[461,9,461,10],[458,7,458,8],[461,5,461,6],[497,1,497,2],[503,1,503,2],[504,1,504,2],[505,1,505,2],[498,1,498,2],[499,1,499,2],[500,1,500,2],[502,1,502,2],[496,1,496,2],[490,1,490,2],[479,1,479,2],[480,1,480,2],[481,1,481,2],[482,1,482,2],[477,1,477,2],[478,1,478,2],[473,1,473,2],[485,1,485,2],[475,1,475,2],[451,13,451,14],[455,11,455,12],[453,11,453,12],[462,13,462,14],[457,11,457,12],[460,1,460,2],[459,7,459,8],[462,3,462,4],[457,9,457,10],[460,11,460,12],[461,11,461,12],[457,7,457,8],[461,7,461,8],[459,3,459,4],[458,1,458,2],[453,1,453,2],[458,13,458,14],[451,7,451,8],[451,3,451,4],[451,1,451,2],[454,1,454,2],[454,3,454,4],[453,3,453,4],[459,13,459,14],[450,13,450,14],[452,13,452,14],[457,13,457,14],[456,11,456,12],[474,1,474,2],[470,1,470,2],[471,1,471,2],[459,11,459,12],[462,11,462,12],[462,9,462,10],[460,3,460,4],[461,3,461,4],[459,5,459,6],[461,0,461,1],[469,1,469,2],[456,13,456,14],[462,5,462,6],[461,13,461,14],[456,1,456,2],[452,1,452,2],[456,5,456,6],[456,7,456,8],[450,1,450,2],[450,7,450,8],[460,13,460,14],[458,5,458,6],[460,5,460,6],[460,9,460,10],[459,9,459,10],[458,9,458,10],[448,1,448,2],[455,1,455,2],[452,7,452,8],[449,7,449,8],[453,7,453,8],[455,5,455,6],[455,7,455,8],[455,3,455,4],[454,7,454,8],[459,1,459,2],[457,1,457,2],[454,9,454,10],[455,9,455,10],[456,9,456,10],[455,13,455,14],[453,13,453,14],[454,13,454,14],[460,7,460,8],[3,0,3,2],[3,3,3,10],[4,0,4,2],[9,0,9,2],[8,0,8,2],[26,0,28,0],[32,7,32,8],[0,0,0,14],[1,0,1,14],[6,3,6,14],[7,3,7,14],[6,0,6,2],[12,0,13,0],[7,0,7,2],[14,0,16,0],[31,0,31,14],[32,0,33,0],[32,2,33,2],[32,1,33,1],[32,13,32,14],[32,3,32,4],[32,5,32,6],[32,9,32,10],[32,11,32,12],[5,3,5,10],[5,0,5,2],[12,3,12,14],[13,11,13,14],[13,3,13,5],[10,0,10,2],[10,3,10,14],[20,0,22,0],[14,3,14,5],[15,3,15,5],[16,3,16,5],[14,1,16,2],[18,0,19,0],[26,1,28,2],[21,11,21,14],[22,11,22,14],[25,11,25,14],[20,1,22,2],[24,1,25,2],[20,11,20,14],[8,3,8,14],[9,3,9,14],[12,1,13,2],[14,11,14,14],[15,11,15,14],[16,11,16,14],[28,11,28,14],[26,3,26,5],[27,3,27,5],[28,3,28,5],[26,11,26,14],[27,11,27,14],[24,0,25,0],[20,3,20,5],[21,3,21,5],[22,3,22,5],[24,3,24,14],[25,3,25,5],[18,1,19,2],[19,3,19,5],[19,11,19,14],[18,3,18,14]]}
["Обрасци за припрему програмског буџета"]
["1. ПРОГРАМ "]
[]
["Назив програма:",null,null,"Програм 9. Основно образовање и вспитање"]
["Шифра програма:",null,null,2002]
["Сектор:",null,null,"Образовање"]
["Сврха:",null,null,"Доступност основног образовања свој деци са територије града/ општине у складу са прописаним стандардима."]
["Основ:",null,null,"Закон о основама образовања и васпитања, Закон о основном образовању, Стратегија развоја образовања до 2020.г."]
["Опис: ",null,null,"Активности које се односе на побољшање квалитета образовања."]
["Назив организационе јединице/Буџетски корисник:",null,null,"ОШ ,, ДЕСАНКА  МАКСИМОВИЋ ,,  ГРДЕЛИЦА"]
["Одговорно лице за спровођење програмa:",null,null,"Ненад Младеновић"]
[]
[null,"Циљ*",null,"Индикатори**"]
[null,null,null,"Назив индикатора",null,null,"Вредност у базној години (2017)","Очекивана вредност у 2018. години","Циљана вредност у 2019. години","Циљана вредност у 2020. години","Циљана вредност у 2021. години","Извор верификације"]
[1,"Потпуни обухват основним образовањем и васпитањем",null,"Обухват деце основним образовањем ",null,null,"638","655","574","600","600","Документација школе"]
[null,null,null,"Стопа прекида основног образовања",null,null,"2","0","0","0","0","Документација школе"]
[]
[]
[null,"Циљ",null,"Индикатори "]
[null,null,null,"Назив индикатора",null,null,"Вредност у базној години (2017)","Очекивана вредност у 2018. години","Циљана вредност у 2019. години","Циљана вредност у 2020. години","Циљана вредност у 2021. години","Извор верификације"]
[2,"Унапређење доступности основног образовања деци из осетљивих група",null,"Проценат деце која се школују у редовним основним школама на основу  - ИОП-а у односу на укупан број",null,null,"2.20","2.50","0,17","0,20","0,20","Документација школе"]
[null,null,null,"Број објеката који су прилагодили простор за децу са инвалидитетом у односу на укупан број објеката основних школа",null,null,"0","0","0","0","0","Документација школе"]
[]
[]
[null,"Циљ",null,"Индикатори"]
[null,null,null,"Назив индикатора",null,null,"Вредност у базној години (2017)","Очекивана вредност у 2018. години","Циљана вредност у 2019. години","Циљана вредност у 2020. години","Циљана вредност у 2021. години","Извор верификације"]
[3,"Унапређен квалитет основног образовања",null,"Просечан број поена на матурском испиту",null,null,11.79,10.88,12,16,16,"Документација школе"]
[null,null,null,"Проценат ученика који је учествовао на републичким такмичењима",null,null,0.6,0.3,0.3,0.75,0.75,"Документација школе"]
[]
[]
[]
["ПЛАНИРАНА СРЕДСТВА ЗА ПРОГРАМ"]
["Рбр.","Конто","ОПИС","Вредност у базној години (2017)",null,"Очекивана вредност у 2018. години",null,"Вредност у 2019. години",null,"Вредност у 2020. години",null,"Вредност у 2021. години",null,"Укупно (2019-2021)"]
[null,null,null,"Приходи из буџета","Приходи из осталих извора","Приходи из буџета","Приходи из осталих извора","Приходи из буџета","Приходи из осталих извора","Приходи из буџета","Приходи из осталих извора","Приходи из буџета","Приходи из осталих извора","Приходи из буџета","Приходи из осталих извора"]
[1,2,3,4,5,6,7,8,9,10,11,12,13,"14=(8+10+12)","15=(9+11+13)"]
[1,300000,"КАПИТАЛ, УТВРЂИВАЊЕ РЕЗУЛТАТА ПОСЛОВАЊА И ВАНБИЛАНСНА ЕВИДЕНЦИЈА\n(2 + 5)",{"$f":"SUM(D37,D40)","v":0},{"$f":"SUM(E37,E40)","v":0},0,9000,0,0,0,0,0,0,0,0]
[2,310000,"КАПИТАЛ (3)",{"$f":"SUM(D38)","v":0},{"$f":"SUM(E38)","v":0},{"$f":"SUM(F38)","v":0},0,0,0,0,0,0,0,0,0]
[3,311000,"КАПИТАЛ (4)",{"$f":"SUM(D39)","v":0},{"$f":"SUM(E39)","v":0},0,0,0,0,0,0,0,0,{"$f":"SUM(N39)","v":0},0]
[4,311700,"Пренета неутрошена средства из ранијих година",null,null,null,null,null,null,null,null,null,null,{"$f":"SUM(H39,J39,L39)","v":0},{"$f":"SUM(I39,K39,M39)","v":0}]
[5,320000,"УТВРЂИВАЊЕ РЕЗУЛТАТА ПОСЛОВАЊА (6)",{"$f":"SUM(D41)","v":0},{"$f":"SUM(E41)","v":0},0,9000,0,0,0,0,0,0,0,0]
[6,321000,"УТВРЂИВАЊЕ РЕЗУЛТАТА ПОСЛОВАЊА (7)",{"$f":"SUM(D42)","v":0},0,0,9000,0,0,0,0,0,0,0,0]
[7,321300,"Нераспоређени вишак прихода и примања или дефицит из ранијих година",null,null,null,9000,null,null,null,null,null,null,{"$f":"SUM(H42,J42,L42)","v":0},{"$f":"SUM(I42,K42,M42)","v":0}]
[{"$f":"A42+1","v":8},700000,"ТЕКУЋИ ПРИХОДИ \n(9 + 32 + 44 + 69 + 74 +78)",{"$f":"D44+D67+D79+D104+D109+D113","v":8057000},{"$f":"E44+E67+E79+E104+E109+E113","v":68759000},16169000,72873000,16475000,80491000,17630000,104880000,17630000,104880000,{"$f":"N44+N67+N79+N104+N109+N113","v":51735000},290251000]
[{"$f":"A43+1","v":9},710000,"ПОРЕЗИ \n(10 + 14 + 16 + 23 + 29)",{"$f":"D45+D49+D51+D58+D64","v":0},{"$f":"E45+E49+E51+E58+E64","v":0},0,0,0,0,0,0,0,0,0,0]
[10,711000,"ПОРЕЗ НА ДОХОДАК, ДОБИТ И КАПИТАЛНЕ ДОБИТКЕ (од 11 до 13)",{"$f":"SUM(D46:D48)","v":0},{"$f":"SUM(E46:E48)","v":0},0,0,0,0,0,0,0,0,{"$f":"SUM(H45,J45,L45)","v":0},0]
[11,711100,"Порези на доходак и капиталнe добиткe које плаћају физичка лица",null,null,null,null,null,null,null,null,null,null,0,0]
[12,711200,"Порези на добит и капиталне добитке које плаћају предузећа и друга правна лица",null,null,null,null,null,null,null,null,null,null,0,0]
[13,711300,"Порези на доходак, добит и капиталне добитке који се не могу разврстати између физичких и правних лица",null,null,null,null,null,null,null,null,null,null,0,0]
[14,712000,"ПОРЕЗ НА ФОНД ЗАРАДА (15)",{"$f":"SUM(D50)","v":0},0,0,0,0,0,0,0,0,0,0,0]
[15,712100,"Порез на фонд зарада",null,null,null,null,null,null,null,null,null,null,0,0]
[16,713000,"ПОРЕЗ НА ИМОВИНУ (од 17 до 22)",{"$f":"SUM(D52:D57)","v":0},0,0,0,0,0,0,0,0,0,0,0]
[17,713100,"Периодични порези на непокретности",null,null,null,null,null,null,null,null,null,null,0,0]
[18,713200,"Периодични порези на нето имовину",null,null,null,null,null,null,null,null,null,null,0,0]
[19,713300,"Порези на заоставштину, наслеђе и поклон",null,null,null,null,null,null,null,null,null,null,0,0]
[20,713400,"Порези на финансијске и капиталне трансакције",null,null,null,null,null,null,null,null,null,null,0,0]
[21,713500,"Други једнократни порези на имовину",null,null,null,null,null,null,null,null,null,null,0,0]
[22,713600,"Други периодични порези на имовину",null,null,null,null,null,null,null,null,null,null,0,0]
[23,714000,"ПОРЕЗ НА ДОБРА И УСЛУГЕ (од 24 до 28)",{"$f":"SUM(D59:D63)","v":0},0,0,0,0,0,0,0,0,0,0,0]
[24,714100,"Општи порези на добра и услуге",null,null,null,null,null,null,null,null,null,null,0,0]
[25,714300,"Добит фискалних монопола",null,null,null,null,null,null,null,null,null,null,0,0]
[26,714400,"Порези на појединачне услуге",null,null,null,null,null,null,null,null,null,null,0,0]
[27,714500,"Порези, таксе и накнаде на употребу добара, на дозволу да се добра употребљавају или делатности обављају",null,null,null,null,null,null,null,null,null,null,0,0]
[28,714600,"Други порези на добра и услуге",null,null,null,null,null,null,null,null,null,null,0,0]
[29,716000,"ДРУГИ ПОРЕЗИ (30 + 31)",{"$f":"SUM(D65:D66)","v":0},0,0,0,0,0,0,0,0,0,0,0]
[30,716100,"Други порези које искључиво плаћају предузећа, односно предузетници",null,null,null,null,null,null,null,null,null,null,0,0]
[31,716200,"Други порези које плаћају остала лица или који се не могу идентификовати",null,null,null,null,null,null,null,null,null,null,0,0]
[32,730000,"ДОНАЦИЈЕ, ПОМОЋИ И ТРАНСФЕРИ \n(33 + 36 + 41)",{"$f":"D68+D71+D76","v":0},{"$f":"E68+E71+E76","v":124000},0,76000,0,425000,0,460000,0,460000,0,1345000]
[33,731000,"ДОНАЦИЈЕ ОД ИНОСТРАНИХ ДРЖАВА (34 + 35)",{"$f":"SUM(D69:D70)","v":0},0,0,0,0,0,0,0,0,0,0,0]
[34,731100,"Текуће донације од иностраних држава",null,null,null,null,null,null,null,null,null,null,0,0]
[35,731200,"Капиталне донације од иностраних држава",null,null,null,null,null,null,null,null,null,null,0,0]
[36,732000,"ДОНАЦИЈЕ И ПОМОЋИ ОД МЕЂУНАРОДНИХ ОРГАНИЗАЦИЈА (од 37 до 40)",{"$f":"SUM(D72:D75)","v":0},{"$f":"SUM(E72:E75)","v":124000},0,76000,0,425000,0,460000,0,460000,0,1345000]
[37,732100,"Текуће донације од међународних организација",null,124000,null,76000,null,425000,null,460000,null,460000,0,1345000]
[38,732200,"Капиталне донације од међународних организација",null,null,null,null,null,null,null,null,null,null,0,0]
[39,732300,"Текуће помоћи од ЕУ",null,null,null,null,null,null,null,null,null,null,0,0]
[40,732400,"Капиталне помоћи од ЕУ",null,null,null,null,null,null,null,null,null,null,0,0]
[41,733000,"ТРАНСФЕРИ ОД ДРУГИХ НИВОА ВЛАСТИ (42 + 43)",{"$f":"SUM(D77:D78)","v":0},0,0,0,0,0,0,0,0,0,{"$f":"SUM(H76,J76,L76)","v":0},0]
[42,733100,"Текући трансфери од других нивоа власти",null,null,null,null,null,null,null,null,null,null,0,0]
[43,733200,"Капитални трансфери од других нивоа власти",null,null,null,null,null,null,null,null,null,null,0,0]
[44,740000,"ДРУГИ ПРИХОДИ (45 + 52 + 57 + 64 + 67)",{"$f":"D80+D87+D92+D99+D102","v":0},{"$f":"E80+E87+E92+E99+E102","v":2806000},0,3034000,0,3480000,0,3520000,0,3520000,0,10520000]
[45,741000,"ПРИХОДИ ОД ИМОВИНЕ (од 46 до 51)",{"$f":"SUM(D81:D86)","v":0},{"$f":"SUM(E81:E86)","v":0},0,0,0,0,0,0,0,0,0,0]
[46,741100,"Камате",null,null,null,null,null,null,null,null,null,null,0,0]
[47,741200,"Дивиденде",null,null,null,null,null,null,null,null,null,null,0,0]
[48,741300,"Повлачење прихода од квази корпорација",null,null,null,null,null,null,null,null,null,null,0,0]
[49,741400,"Приход од имовине који припада имаоцима полиса осигурања",null,null,null,null,null,null,null,null,null,null,0,0]
[50,741500,"Закуп непроизведене имовине",null,null,null,null,null,null,null,null,null,null,0,0]
[51,741600,"Финансијске промене на финансијским лизинзима",null,null,null,null,null,null,null,null,null,null,0,0]
[52,742000,"ПРИХОДИ ОД ПРОДАЈЕ ДОБАРА И УСЛУГА (од 53 до 56)",{"$f":"SUM(D88:D91)","v":0},2806000,0,3034000,0,3480000,0,3520000,0,3520000,0,10520000]
[53,742100,"Приходи од продаје добара и услуга или закупа од стране тржишних организација",null,null,null,null,null,null,null,null,null,null,0,0]
[54,742200,"Таксе и накнаде",null,null,null,null,null,null,null,null,null,null,0,0]
[55,742300,"Споредне продаје добара и услуга које врше државне нетржишне јединице",null,2806000,null,3034000,null,3480000,null,3520000,null,3520000,0,10520000]
[56,742400,"Импутиране продаје добара и услуга",null,null,null,null,null,null,null,null,null,null,0,0]
[57,743000,"НОВЧАНЕ КАЗНЕ И ОДУЗЕТА ИМОВИНСКА КОРИСТ (од 58 до 63)",{"$f":"SUM(D93:D98)","v":0},0,0,0,0,0,0,0,0,0,0,0]
[58,743100,"Приходи од новчаних казни за кривична дела",null,null,null,null,null,null,null,null,null,null,0,0]
[59,743200,"Приходи од новчаних казни за привредне преступе",null,null,null,null,null,null,null,null,null,null,0,0]
[60,743300,"Приходи од новчаних казни за прекршаје",null,null,null,null,null,null,null,null,null,null,0,0]
[61,743400,"Приходи од пенала",null,null,null,null,null,null,null,null,null,null,0,0]
[62,743500,"Приходи од одузете имовинске користи",null,null,null,null,null,null,null,null,null,null,0,0]
[63,743900,"Остале новчане казне, пенали и приходи од одузете имовинске користи",null,null,null,null,null,null,null,null,null,null,0,0]
[64,744000,"ДОБРОВОЉНИ ТРАНСФЕРИ ОД ФИЗИЧКИХ И ПРАВНИХ ЛИЦА (65 + 66)",{"$f":"SUM(D100:D101)","v":0},0,0,0,0,0,0,0,0,0,0,0]
[65,744100,"Текући добровољни трансфери од физичких и правних лица",null,null,null,null,null,null,null,null,null,null,0,0]
[66,744200,"Капитални добровољни трансфери од физичких и правних лица",null,null,null,null,null,null,null,null,null,null,0,0]
[67,745000,"МЕШОВИТИ И НЕОДРЕЂЕНИ ПРИХОДИ (68)",{"$f":"D103","v":0},{"$f":"E103","v":0},0,0,0,0,0,0,0,0,0,0]
[68,745100,"Мешовити и неодређени приходи",null,null,null,null,null,null,null,null,null,null,0,0]
[69,770000,"МЕМОРАНДУМСКЕ СТАВКЕ ЗА РЕФУНДАЦИЈУ РАСХОДА (70 + 72)",{"$f":"D105+D107","v":0},2690000,0,1812000,0,1000000,0,2000000,0,2000000,0,5000000]
[70,771000,"МЕМОРАНДУМСКЕ СТАВКЕ ЗА РЕФУНДАЦИЈУ РАСХОДА (71)",{"$f":"D106","v":0},{"$f":"E106","v":2690000},0,1812000,0,1000000,0,2000000,0,2000000,0,5000000]
[71,771100,"Меморандумске ставке за рефундацију расхода",null,2690000,null,1812000,null,1000000,null,2000000,null,2000000,0,5000000]
[72,772000,"МЕМОРАНДУМСКЕ СТАВКЕ ЗА РЕФУНДАЦИЈУ РАСХОДА ИЗ ПРЕТХОДНЕ ГОДИНЕ (73)",{"$f":"D108","v":0},{"$f":"E108","v":0},0,0,0,0,0,0,0,0,0,0]
[{"$f":"A107+1","v":73},772100,"Меморандумске ставке за рефундацију расхода из претходне године",null,null,null,null,null,null,null,null,null,null,0,0]
[74,780000,"ТРАНСФЕРИ ИЗМЕЂУ БУЏЕТСКИХ КОРИСНИКА НА ИСТОМ НИВОУ (75)",{"$f":"D110","v":0},0,0,0,0,0,0,0,0,0,0,0]
[75,781000,"ТРАНСФЕРИ ИЗМЕЂУ БУЏЕТСКИХ КОРИСНИКА НА ИСТОМ НИВОУ (76 + 77)",{"$f":"SUM(D111:D112)","v":0},0,0,0,0,0,0,0,0,0,0,0]
[76,781100,"Трансфери између буџетских корисника на истом нивоу",null,null,null,null,null,null,null,null,null,null,{"$f":"SUM(H111,J111,L111)","v":0},{"$f":"SUM(I111,K111,M111)","v":0}]
[77,781300,"Трансфери између организација обавезног социјалног осигурања",null,null,null,null,null,null,null,null,null,null,0,0]
[78,790000,"ПРИХОДИ ИЗ БУЏЕТА (79)",{"$f":"D114","v":8057000},63139000,16169000,67951000,16475000,75586000,17630000,98900000,17630000,98900000,51735000,273386000]
[79,791000,"ПРИХОДИ ИЗ БУЏЕТА (80)",{"$f":"D115","v":8057000},63139000,16169000,67951000,16475000,75586000,17630000,98900000,17630000,98900000,51735000,273386000]
[80,791100,"Приходи из буџета",8057000,63139000,16169000,67951000,16475000,75586000,17630000,98900000,17630000,98900000,51735000,273386000]
[81,800000,"ПРИМАЊА ОД ПРОДАЈЕ НЕФИНАНСИЈСКЕ ИМОВИНЕ (82 + 89 + 96 + 99)",{"$f":"D117+D124+D131+D134","v":0},{"$f":"E117+E124+E131+E134","v":0},0,0,0,0,0,0,0,0,0,0]
[82,810000,"ПРИМАЊА ОД ПРОДАЈЕ ОСНОВНИХ СРЕДСТАВА (83 + 85 + 87)",{"$f":"D118+D120+D122","v":0},{"$f":"E118+E120+E122","v":0},0,0,0,0,0,0,0,0,0,0]
[83,811000,"ПРИМАЊА ОД ПРОДАЈЕ НЕПОКРЕТНОСТИ (84)",{"$f":"D119","v":0},{"$f":"E119","v":0},0,0,0,0,0,0,0,0,0,0]
[84,811100,"Примања од продаје непокретности",null,null,null,null,null,null,null,null,null,null,0,0]
[85,812000,"ПРИМАЊА ОД ПРОДАЈЕ ПОКРЕТНЕ ИМОВИНЕ (86)",{"$f":"D121","v":0},0,0,0,0,0,0,0,0,0,0,0]
[86,812100,"Примања од продаје покретне имовине",null,null,null,null,null,null,null,null,null,null,0,0]
[87,813000,"ПРИМАЊА ОД ПРОДАЈЕ ОСТАЛИХ ОСНОВНИХ СРЕДСТАВА (88)",{"$f":"D123","v":0},0,0,0,0,0,0,0,0,0,0,0]
[88,813100,"Примања од продаје осталих основних средстава",null,null,null,null,null,null,null,null,null,null,0,0]
[89,820000,"ПРИМАЊА ОД ПРОДАЈЕ ЗАЛИХА (90 + 92 + 94)",{"$f":"D125+D127+D129","v":0},0,0,0,0,0,0,0,0,0,0,0]
[90,821000,"ПРИМАЊА ОД ПРОДАЈЕ РОБНИХ РЕЗЕРВИ (91)",{"$f":"D126","v":0},0,0,0,0,0,0,0,0,0,0,0]
[91,821100,"Примања од продаје робних резерви",null,null,null,null,null,null,null,null,null,null,0,0]
[92,822000,"ПРИМАЊА ОД ПРОДАЈЕ ЗАЛИХА  ПРОИЗВОДЊЕ (93)",{"$f":"D128","v":0},0,0,0,0,0,0,0,0,0,0,0]
[93,822100,"Примања од продаје залиха производње",null,null,null,null,null,null,null,null,null,null,0,0]
[94,823000,"ПРИМАЊА ОД ПРОДАЈЕ РОБЕ ЗА ДАЉУ ПРОДАЈУ (95)",{"$f":"D130","v":0},0,0,0,0,0,0,0,0,0,0,0]
[95,823100,"Примања од продаје робе за даљу продају",null,null,null,null,null,null,null,null,null,null,0,0]
[96,830000,"ПРИМАЊА ОД ПРОДАЈЕ ДРАГОЦЕНОСТИ (97)",{"$f":"D132","v":0},0,0,0,0,0,0,0,0,0,0,0]
[97,831000,"ПРИМАЊА ОД ПРОДАЈЕ ДРАГОЦЕНОСТИ (98)",0,0,0,0,0,0,0,0,0,0,0,0]
[98,831100,"Примања од продаје драгоцености",null,null,null,null,null,null,null,null,null,null,0,0]
[99,840000,"ПРИМАЊА ОД ПРОДАЈЕ ПРИРОДНЕ ИМОВИНЕ (100 + 102 + 104)",{"$f":"D135+D137+D139","v":0},0,0,0,0,0,0,0,0,0,0,0]
[100,841000,"ПРИМАЊА ОД ПРОДАЈЕ ЗЕМЉИШТА (101)",{"$f":"D136","v":0},0,0,0,0,0,0,0,0,0,0,0]
[101,841100,"Примања од продаје земљишта",null,null,null,null,null,null,null,null,null,null,0,0]
[102,842000,"ПРИМАЊА ОД ПРОДАЈЕ ПОДЗЕМНИХ БЛАГА (103)",{"$f":"D138","v":0},0,0,0,0,0,0,0,0,0,0,0]
[103,842100,"Примања од продаје подземних блага",null,null,null,null,null,null,null,null,null,null,0,0]
[104,843000,"ПРИМАЊА ОД ПРОДАЈЕ ШУМА И ВОДА (105)",{"$f":"D140","v":0},0,0,0,0,0,0,0,0,0,0,0]
[105,843100,"Примања од продаје шума и вода",null,null,null,null,null,null,null,null,null,null,{"$f":"SUM(H140,J140,L140)","v":0},0]
[106,900000,"ПРИМАЊА ОД ЗАДУЖИВАЊА И ПРОДАЈЕ ФИНАНСИЈСКЕ ИМОВИНЕ (107 + 126)",{"$f":"D142+D161","v":0},{"$f":"E142+E161","v":0},0,0,0,0,0,0,0,0,0,0]
[107,910000,"ПРИМАЊА ОД ЗАДУЖИВАЊА (108+118)",{"$f":"D143+D153","v":0},{"$f":"E143+E153","v":0},0,0,0,0,0,0,0,0,0,0]
[108,911000,"ПРИМАЊА ОД ДОМАЋИХ ЗАДУЖИВАЊА (од 109 до 117)",{"$f":"SUM(D144:D152)","v":0},0,0,0,0,0,0,0,0,0,0,0]
[109,911100,"Примања од емитовања домаћих хартија од вредности, изузев акција",null,null,null,null,null,null,null,null,null,null,0,0]
[110,911200,"Примања од задуживања од осталих нивоа власти",null,null,null,null,null,null,null,null,null,null,0,0]
[111,911300,"Примања од задуживања од јавних финансијских институција у земљи",null,null,null,null,null,null,null,null,null,null,0,0]
[112,911400,"Примања од задуживања од пословних банака у земљи",null,null,null,null,null,null,null,null,null,null,0,0]
[113,911500,"Примања од задуживања код осталих поверилаца у земљи",null,null,null,null,null,null,null,null,null,null,0,0]
[114,911600,"Примања од задуживања од домаћинстава у земљи",null,null,null,null,null,null,null,null,null,null,0,0]
[115,911700,"Примања од домаћих финансијских деривата",null,null,null,null,null,null,null,null,null,null,0,0]
[116,911800,"Примања од домаћих меница",null,null,null,null,null,null,null,null,null,null,0,0]
[117,911900,"Исправка унутрашњег дуга",null,null,null,null,null,null,null,null,null,null,0,0]
[118,912000,"ПРИМАЊА ОД ИНОСТРАНОГ ЗАДУЖИВАЊА (од 119 + 125)",{"$f":"SUM(D154:D160)","v":0},0,0,0,0,0,0,0,0,0,0,0]
[119,912100,"Примања од емитовања хартија од вредности, изузев акција, на иностраном финансијском тржишту",null,null,null,null,null,null,null,null,null,null,0,0]
[120,912200,"Примања од задуживања од иностраних држава",null,null,null,null,null,null,null,null,null,null,0,0]
[121,912300,"Примања од задуживања од мултилатералних институција",null,null,null,null,null,null,null,null,null,null,0,0]
[122,912400,"Примања од задуживања од иностраних пословних банака",null,null,null,null,null,null,null,null,null,null,0,0]
[123,912500,"Примања од задуживања од осталих иностраних поверилаца",null,null,null,null,null,null,null,null,null,null,0,0]
[124,912600,"Примања од иностраних финансијских деривата",null,null,null,null,null,null,null,null,null,null,0,0]
[125,912900,"Исправка спољног дуга",null,null,null,null,null,null,null,null,null,null,0,0]
[126,920000,"ПРИМАЊА ОД ПРОДАЈЕ ФИНАНСИЈСКЕ ИМОВИНЕ (127 + 137)",{"$f":"D162+D172","v":0},0,0,0,0,0,0,0,0,0,0,0]
[127,921000,"ПРИМАЊА ОД ПРОДАЈЕ ДОМАЋЕ ФИНАНСИЈСКЕ ИМОВИНЕ (од 128 до 136) ",{"$f":"SUM(D163:D171)","v":0},0,0,0,0,0,0,0,0,0,0,0]
[128,921100,"Примања од продаје домаћих хартија од вредности, изузев акција",null,null,null,null,null,null,null,null,null,null,0,0]
[129,921200,"Примања од отплате кредита датих осталим нивоима власти",null,null,null,null,null,null,null,null,null,null,0,0]
[130,921300,"Примања од отплате кредита датих домаћим јавним финансијским институцијама",null,null,null,null,null,null,null,null,null,null,0,0]
[131,921400,"Примања од отплате кредита домаћим пословним банкама",null,null,null,null,null,null,null,null,null,null,0,0]
[132,921500,"Примања од отплате кредита датих домаћим јавним нефинансијским институцијама",null,null,null,null,null,null,null,null,null,null,0,0]
[133,921600,"Примања од отплате кредита датих физичким лицима и домаћинствима у земљи",null,null,null,null,null,null,null,null,null,null,0,0]
[134,921700,"Примања од отплате кредита датих удружењима грађана у земљи",null,null,null,null,null,null,null,null,null,null,0,0]
[135,921800,"Примања од отплате кредита датих нефинансијским приватним предузећима у земљи",null,null,null,null,null,null,null,null,null,null,0,0]
[136,921900,"Примања од продаје домаћих акција и осталог капитала",null,null,null,null,null,null,null,null,null,null,0,0]
[{"$f":"A171+1","v":137},922000,"ПРИМАЊА ОД ПРОДАЈЕ СТРАНЕ ФИНАНСИЈСКЕ ИМОВИНЕ (од 138 до 145)",{"$f":"SUM(D173:D180)","v":0},{"$f":"SUM(E173:E180)","v":0},0,0,0,0,0,0,0,0,0,0]
[138,922100,"Примања од продаје страних хартија од вредности, изузев акција",null,null,null,null,null,null,null,null,null,null,0,0]
[139,922200,"Примања од отплате кредита датих страним владама",null,null,null,null,null,null,null,null,null,null,0,0]
[140,922300,"Примања од отплате кредита датих међународним организацијама",null,null,null,null,null,null,null,null,null,null,0,0]
[141,922400,"Примања од отплате кредита датих страним пословним банкама",null,null,null,null,null,null,null,null,null,null,0,0]
[142,922500,"Примања од отплате кредита датих страним нефинансијским институцијама",null,null,null,null,null,null,null,null,null,null,0,0]
[143,922600,"Примања од отплате кредита датих страним невладиним организацијама",null,null,null,null,null,null,null,null,null,null,0,0]
[144,922700,"Примања од продаје страних акција и осталог капитала",null,null,null,null,null,null,null,null,null,null,0,0]
[145,922800,"Примања од продаје стране валуте",null,null,null,null,null,null,null,null,null,null,0,0]
[146,null,"УКУПНИ ПРИХОДИ, ПРИМАЊА И ПРЕНЕТА СРЕДСТВА ИЗ ПРЕТХОДНЕ ГОДИНЕ (1 + 8 + 81 + 106)",{"$f":"D36+D43+D116+D141","v":8057000},{"$f":"E36+E43+E116+E141","v":68759000},16169000,72882000,16475000,80491000,17630000,104880000,17630000,104880000,{"$f":"SUM(H181,J181,L181)","v":51735000},{"$f":"SUM(I181,K181,M181)","v":290251000}]
[147,400000,"ТЕКУЋИ РАСХОДИ (148+166+211+226+250+263+279+294)",{"$f":"D183+D201+D246+D261+D285+D298+D314+D329","v":8041000},68671000,16169000,72873000,15925000,80191000,17630000,104880000,17630000,104880000,51185000,289951000]
[148,410000,"РАСХОДИ ЗА ЗАПОСЛЕНЕ (149+151+155+157+162+164)",{"$f":"D184+D186+D190+D192+D197+D199","v":2994000},{"$f":"E184+E186+E190+E192+E197+E199","v":65425000},3037000,69299000,2400000,74696000,3400000,99000000,3400000,99000000,9200000,272696000]
[149,411000,"ПЛАТЕ, ДОДАЦИ И НАКНАДЕ ЗАПОСЛЕНИХ (ЗАРАДЕ) (150)",{"$f":"D185","v":0},53188000,0,56740000,0,62236000,0,80000000,0,80000000,0,222236000]
[150,411100,"Плате, додаци и накнаде запослених",null,53188000,null,56740000,null,62236000,null,80000000,null,80000000,0,222236000]
[151,412000,"СОЦИЈАЛНИ ДОПРИНОСИ НА ТЕРЕТ ПОСЛОДАВЦА (од 152 до 154)",{"$f":"SUM(D187:D189)","v":0},9547000,0,10198000,0,11160000,0,16000000,0,16000000,0,43160000]
[152,412100,"Допринос за пензијско и инвалидско осигурање",null,6400000,null,6837000,null,7481000,null,10000000,null,10000000,0,27481000]
[153,412200,"Допринос за здравствено осигурање",null,2747000,null,2934000,null,3211000,null,5000000,null,5000000,0,13211000]
[154,412300,"Допринос за незапосленост",null,400000,null,427000,null,468000,null,1000000,null,1000000,0,2468000]
[155,413000,"НАКНАДЕ У НАТУРИ (156)",{"$f":"D191","v":279000},0,327000,0,400000,0,600000,0,600000,0,1600000,0]
[156,413100,"Накнаде у натури",279000,null,327000,null,400000,null,600000,null,600000,null,1600000,0]
[157,414000,"СОЦИЈАЛНА ДАВАЊА ЗАПОСЛЕНИМА (од 158 до 161)",{"$f":"SUM(D193:D196)","v":0},2690000,0,2361000,0,1300000,0,3000000,0,3000000,0,7300000]
[158,414100,"Исплата накнада за време одсуствовања с посла на терет фондова",null,2690000,null,1812000,null,1000000,null,2000000,null,2000000,0,5000000]
[159,414200,"Расходи за образовање деце запослених",null,null,null,null,null,null,null,null,null,null,0,0]
[160,414300,"Отпремнине и помоћи",null,null,null,549000,null,300000,null,1000000,null,1000000,0,2300000]
[161,414400,"Помоћ у медицинском лечењу запосленог или чланова уже породице и друге помоћи запосленом",null,null,null,null,null,null,null,null,null,null,0,0]
[162,415000,"НАКНАДА ТРОШКОВА ЗА ЗАПОСЛЕНЕ (163)",{"$f":"D198","v":2271000},0,1783000,0,1450000,0,1800000,0,1800000,0,5050000,0]
[163,415100,"Накнаде трошкова за запослене",2271000,null,1783000,null,1450000,null,1800000,null,1800000,null,5050000,0]
[164,416000,"НАГРАДЕ ЗАПОСЛЕНИМА И ОСТАЛИ ПОСЕБНИ РАСХОДИ (165)",{"$f":"D200","v":444000},0,927000,0,550000,0,1000000,0,1000000,0,2550000,0]
[165,416100,"Награде запосленима и остали посебни расходи",444000,null,927000,null,550000,null,1000000,null,1000000,null,2550000,0]
[166,420000,"КОРИШЋЕЊЕ УСЛУГА И РОБА (167 + 175 + 181 + 190 + 198 + 201) ",{"$f":"D202+D210+D216+D225+D233+D236","v":5022000},2894000,12690000,3552000,13495000,5425000,14030000,5840000,14030000,5840000,{"$f":"SUM(H201,J201,L201)","v":41555000},17105000]
[167,421000,"СТАЛНИ ТРОШКОВИ (од 168 до 174)",{"$f":"SUM(D203:D209)","v":2210000},66000,7640000,46000,7200000,95000,9330000,100000,9330000,100000,25860000,295000]
[168,421100,"Трошкови платног промета и банкарских услуга",102000,21000,130000,20000,130000,30000,150000,50000,150000,50000,430000,130000]
[169,421200,"Енергетске услуге",1373000,13000,6489000,15000,5950000,20000,8000000,null,8000000,null,21950000,20000]
[170,421300,"Комуналне услуге",680000,null,924000,null,1000000,null,1000000,null,1000000,null,3000000,0]
[171,421400,"Услуге комуникација",42000,32000,40000,11000,70000,20000,60000,20000,60000,20000,190000,60000]
[172,421500,"Трошкови осигурања",13000,null,57000,null,50000,null,60000,null,60000,null,170000,0]
[173,421600,"Закуп имовине и опреме",null,null,null,null,null,25000,60000,30000,60000,30000,120000,85000]
[174,421900,"Остали трошкови",null,null,null,null,null,null,null,null,null,null,0,0]
[175,422000,"ТРОШКОВИ ПУТОВАЊА (од 176 до 180)",{"$f":"SUM(D211:D215)","v":2431000},451000,2671000,476000,2600000,600000,3100000,700000,3100000,700000,8800000,2000000]
[176,422100,"Трошкови службених путовања у земљи",null,451000,null,476000,null,600000,null,700000,null,700000,0,2000000]
[177,422200,"Трошкови службених путовања у иностранство",null,null,null,null,null,null,null,null,null,null,0,0]
[178,422300,"Трошкови путовања у оквиру редовног рада",null,null,null,null,null,null,null,null,null,null,0,0]
[179,422400,"Трошкови путовања ученика",2431000,null,2671000,null,2600000,null,3100000,null,3100000,null,8800000,0]
[180,422900,"Остали трошкови транспорта",null,null,null,null,null,null,null,null,null,null,0,0]
[181,423000,"УСЛУГЕ ПО УГОВОРУ (од 182 до 189)",{"$f":"SUM(D217:D224)","v":56000},2356000,123000,3022000,255000,4470000,440000,4810000,440000,4810000,1135000,14090000]
[182,423100,"Административне услуге",null,null,null,null,null,null,null,null,null,null,0,0]
[183,423200,"Компјутерске услуге",6000,null,11000,null,15000,null,30000,null,30000,null,75000,0]
[184,423300,"Услуге образовања и усавршавања запослених",null,null,20000,null,20000,20000,100000,50000,100000,50000,220000,120000]
[185,423400,"Услуге информисања",null,null,null,null,45000,30000,30000,40000,30000,40000,105000,110000]
[186,423500,"Стручне услуге",null,null,null,464000,75000,1590000,100000,1900000,100000,1900000,275000,5390000]
[187,423600,"Услуге за домаћинство и угоститељство",null,null,null,null,null,null,null,null,null,null,0,0]
[188,423700,"Репрезентација",null,null,null,null,null,30000,null,null,null,null,0,30000]
[189,423900,"Остале опште услуге",50000,2356000,92000,2558000,100000,2800000,180000,2820000,180000,2820000,460000,8440000]
[190,424000,"СПЕЦИЈАЛИЗОВАНЕ УСЛУГЕ (од 191 до197)",{"$f":"SUM(D226:D232)","v":0},17000,35000,0,40000,60000,220000,60000,220000,60000,480000,180000]
[191,424100,"Пољопривредне услуге",null,null,null,null,null,null,null,null,null,null,0,0]
[192,424200,"Услуге образовања, културе и спорта",null,17000,null,null,null,20000,60000,20000,60000,20000,120000,60000]
[193,424300,"Медицинске услуге",null,null,null,null,20000,null,null,null,null,null,20000,0]
[194,424400,"Услуге одржавања аутопутева",null,null,null,null,null,null,null,null,null,null,0,0]
[195,424500,"Услуге одржавања националних паркова и природних површина",null,null,null,null,null,null,null,null,null,null,0,0]
[196,424600,"Услуге очувања животне средине, науке и геодетске услуге",null,null,null,null,null,null,null,null,null,null,0,0]
[197,424900,"Остале специјализоване услуге",null,null,35000,null,20000,40000,160000,40000,160000,40000,340000,120000]
[198,425000,"ТЕКУЋЕ ПОПРАВКЕ И ОДРЖАВАЊЕ (199 + 200)",{"$f":"D234+D235","v":72000},{"$f":"E234+E235","v":1000},1865000,1000,3070000,60000,380000,40000,380000,40000,3830000,140000]
[199,425100,"Текуће поправке и одржавање зграда и објеката",60000,1000,1680000,1000,3050000,40000,280000,20000,280000,20000,3610000,80000]
[200,425200,"Текуће поправке и одржавање опреме",12000,null,185000,null,20000,20000,100000,20000,100000,20000,220000,60000]
[{"$f":"A235+1","v":201},426000,"МАТЕРИЈАЛ (од 202 до 210)",{"$f":"SUM(D237:D245)","v":253000},3000,356000,7000,330000,140000,560000,130000,560000,130000,1450000,400000]
[202,426100,"Административни материјал",53000,null,82000,null,90000,10000,130000,10000,130000,10000,350000,30000]
[203,426200,"Материјали за пољопривреду",null,null,null,null,null,null,null,null,null,null,0,0]
[204,426300,"Материјали за образовање и усавршавање запослених",null,null,11000,null,10000,10000,70000,10000,70000,10000,150000,30000]
[205,426400,"Материјали за саобраћај",null,null,null,null,null,null,null,null,null,null,0,0]
[206,426500,"Материјали за очување животне средине и науку",null,null,null,null,null,null,null,null,null,null,0,0]
[207,426600,"Материјали за образовање, културу и спорт",45000,null,76000,null,40000,40000,120000,30000,120000,30000,280000,100000]
[208,426700,"Медицински и лабораторијски материјали",null,null,null,null,null,null,null,null,null,null,0,0]
[209,426800,"Материјали за одржавање хигијене и угоститељство",76000,3000,99000,null,110000,40000,120000,40000,120000,40000,350000,120000]
[210,426900,"Материјали за посебне намене",79000,null,88000,7000,80000,40000,120000,40000,120000,40000,320000,120000]
[211,430000,"АМОРТИЗАЦИЈА И УПОТРЕБА СРЕДСТАВА ЗА РАД (212 + 216 + 218 + 220 + 224)",{"$f":"D247+D251+D253+D255+D259","v":0},{"$f":"E247+E251+E253+E255+E259","v":0},0,0,0,0,0,0,0,0,0,0]
[212,431000,"АМОРТИЗАЦИЈА НЕКРЕТНИНА И ОПРЕМЕ (од 213 до 215)",{"$f":"SUM(D248:D250)","v":0},0,0,0,0,0,0,0,0,0,0,0]
[213,431100,"Амортизација зграда и грађевинскиx објеката",null,null,null,null,null,null,null,null,null,null,0,0]
[214,431200,"Амортизација опреме",null,null,null,null,null,null,null,null,null,null,0,0]
[215,431300,"Амортизација осталих некретнина и опреме",null,null,null,null,null,null,null,null,null,null,0,0]
[216,432000,"АМОРТИЗАЦИЈА КУЛТИВИСАНЕ ИМОВИНЕ (217)",{"$f":"D252","v":0},0,0,0,0,0,0,0,0,0,0,0]
[217,432100,"Амортизација култивисане опреме",null,null,null,null,null,null,null,null,null,null,0,0]
[218,433000,"УПОТРЕБА ДРАГОЦЕНОСТИ (219)",{"$f":"D254","v":0},0,0,0,0,0,0,0,0,0,0,0]
[219,433100,"Употреба драгоцености",null,null,null,null,null,null,null,null,null,null,0,0]
[220,434000,"УПОТРЕБА ПРИРОДНЕ ИМОВИНЕ (од 221 до 223)",{"$f":"SUM(D256:D258)","v":0},0,0,0,0,0,0,0,0,0,0,0]
[221,434100,"Употреба земљишта",null,null,null,null,null,null,null,null,null,null,0,0]
[222,434200,"Употреба подземног блага",null,null,null,null,null,null,null,null,null,null,0,0]
[223,434300,"Употреба шума и вода",null,null,null,null,null,null,null,null,null,null,0,0]
[224,435000,"АМОРТИЗАЦИЈА НЕМАТЕРИЈАЛНЕ ИМОВИНЕ (225)",{"$f":"D260","v":0},0,0,0,0,0,0,0,0,0,0,0]
[225,435100,"Амортизација нематеријалне имовине",null,null,null,null,null,null,null,null,null,null,0,0]
[226,440000,"ОТПЛАТА КАМАТА И ПРАТЕЋИ ТРОШКОВИ ЗАДУЖИВАЊА (227 + 237 + 244 + 246)",{"$f":"D262+D272+D279+D281","v":0},0,0,0,0,0,0,0,0,0,0,0]
[227,441000,"ОТПЛАТЕ ДОМАЋИХ КАМАТА (од 228 до 236)",{"$f":"SUM(D263:D271)","v":0},{"$f":"SUM(E263:E271)","v":0},0,0,0,0,0,0,0,0,0,0]
[228,441100,"Отплата камата на домаће хартије од вредности",null,null,null,null,null,null,null,null,null,null,{"$f":"SUM(H263,J263,L263)","v":0},0]
[229,441200,"Отплата камата осталим нивоима власти",null,null,null,null,null,null,null,null,null,null,0,0]
[230,441300,"Отплата камата домаћим јавним финансијским институцијама",null,null,null,null,null,null,null,null,null,null,0,0]
[231,441400,"Отплата камата домаћим пословним банкама",null,null,null,null,null,null,null,null,null,null,0,0]
[232,441500,"Отплата камата осталим домаћим кредиторима",null,null,null,null,null,null,null,null,null,null,0,0]
[233,441600,"Отплата камата домаћинствима у земљи",null,null,null,null,null,null,null,null,null,null,0,0]
[234,441700,"Отплата камата на домаће финансијске деривате",null,null,null,null,null,null,null,null,null,null,0,0]
[235,441800,"Отплата камата на домаће менице",null,null,null,null,null,null,null,null,null,null,0,0]
[236,441900,"Финансијске промене на финансијским лизинзима",null,null,null,null,null,null,null,null,null,null,0,0]
[237,442000,"ОТПЛАТА СТРАНИХ КАМАТА (од 238 до 243)",{"$f":"SUM(D273:D278)","v":0},0,0,0,0,0,0,0,0,0,0,0]
[238,442100,"Отплата камата на хартије од вредности емитоване на иностраном финансијском тржишту",null,null,null,null,null,null,null,null,null,null,0,0]
[239,442200,"Отплата камата страним владама",null,null,null,null,null,null,null,null,null,null,0,0]
[240,442300,"Отплата камата мултилатералним институцијама",null,null,null,null,null,null,null,null,null,null,0,0]
[241,442400,"Отплата камата страним пословним банкама",null,null,null,null,null,null,null,null,null,null,0,0]
[242,442500,"Отплата камата осталим страним кредиторима",null,null,null,null,null,null,null,null,null,null,0,0]
[243,442600,"Отплата камата на стране финансијске деривате",null,null,null,null,null,null,null,null,null,null,0,0]
[244,443000,"ОТПЛАТА КАМАТА ПО ГАРАНЦИЈАМА 245)",{"$f":"D280","v":0},{"$f":"E280","v":0},0,0,0,0,0,0,0,0,0,0]
[245,443100,"Отплата камата по гаранцијама",null,null,null,null,null,null,null,null,null,null,0,0]
[246,444000,"ПРАТЕЋИ ТРОШКОВИ ЗАДУЖИВАЊА (од 247 до 249)",{"$f":"SUM(D282:D284)","v":0},0,0,0,0,0,0,0,0,0,0,0]
[247,444100,"Негативне курсне разлике",null,null,null,null,null,null,null,null,null,null,0,0]
[248,444200,"Казне за кашњење",null,null,null,null,null,null,null,null,null,null,0,0]
[249,444300,"Остали пратећи трошкови задуживања",null,null,null,null,null,null,null,null,null,null,0,0]
[250,450000,"СУБВЕНЦИЈЕ (251 + 254 + 257 + 260)",{"$f":"D286+D289+D292+D295","v":0},0,0,0,0,0,0,0,0,0,0,0]
[251,451000,"СУБВЕНЦИЈЕ ЈАВНИМ НЕФИНАНСИЈСКИМ ПРЕДУЗЕЋИМА И ОРГАНИЗАЦИЈАМА (252 + 253)",{"$f":"SUM(D287:D288)","v":0},0,0,0,0,0,0,0,0,0,0,0]
[252,451100,"Текуће субвенције јавним нефинансијским предузећима и организацијама",null,null,null,null,null,null,null,null,null,null,0,0]
[253,451200,"Капиталне субвенције јавним нефинансијским предузећима и организацијама",null,null,null,null,null,null,null,null,null,null,0,0]
[254,452000,"СУБВЕНЦИЈЕ ПРИВАТНИМ ФИНАНСИЈСКИМ ИНСТИТУЦИЈАМА (255 + 256)",{"$f":"SUM(D290:D291)","v":0},0,0,0,0,0,0,0,0,0,0,0]
[255,452100,"Текуће субвенције приватним финансијским институцијама",null,null,null,null,null,null,null,null,null,null,0,0]
[256,452200,"Капиталне субвенције приватним финансијским институцијама",null,null,null,null,null,null,null,null,null,null,0,0]
[257,453000,"СУБВЕНЦИЈЕ ЈАВНИМ ФИНАНСИЈСКИМ ИНСТИТУЦИЈАМА (258 + 259)",{"$f":"SUM(D293:D294)","v":0},0,0,0,0,0,0,0,0,0,0,0]
[258,453100,"Текуће субвенције јавним финансијским институцијама",null,null,null,null,null,null,null,null,null,null,0,0]
[259,453200,"Капиталне субвенције јавним финансијским институцијама",null,null,null,null,null,null,null,null,null,null,0,0]
[260,454000,"СУБВЕНЦИЈЕ ПРИВАТНИМ ПРЕДУЗЕЋИМА (261 + 262)",{"$f":"SUM(D296:D297)","v":0},0,0,0,0,0,0,0,0,0,0,0]
[261,454100,"Текуће субвенције приватним предузећима",null,null,null,null,null,null,null,null,null,null,0,0]
[262,454200,"Капиталне субвенције приватним предузећима",null,null,null,null,null,null,null,null,null,null,0,0]
[263,460000,"ДОНАЦИЈЕ, ДОТАЦИЈЕ И ТРАНСФЕРИ (264 + 267 + 270 + 273 + 276)",{"$f":"D299+D302+D305+D308+D311","v":0},{"$f":"E299+E302+E305+E308+E311","v":0},0,0,0,0,0,0,0,0,0,0]
[264,461000,"ДОНАЦИЈЕ СТРАНИМ ВЛАДАМА (265 + 266)",{"$f":"SUM(D300:D301)","v":0},0,0,0,0,0,0,0,0,0,0,0]
[{"$f":"A299+1","v":265},461100,"Текуће донације страним владама",null,null,null,null,null,null,null,null,null,null,0,0]
[266,461200,"Капиталне донације страним владама",null,null,null,null,null,null,null,null,null,null,0,0]
[267,462000,"ДОТАЦИЈЕ МЕЂУНАРОДНИМ ОРГАНИЗАЦИЈАМА (268 + 269)",{"$f":"SUM(D303:D304)","v":0},0,0,0,0,0,0,0,0,0,0,0]
[268,462100,"Текуће дотације међународним организацијама",null,null,null,null,null,null,null,null,null,null,0,0]
[269,462200,"Капиталне дотације међународним организацијама",null,null,null,null,null,null,null,null,null,null,0,0]
[270,463000,"ТРАНСФЕРИ ОСТАЛИМ НИВОИМА ВЛАСТИ (271 + 272)",{"$f":"SUM(D306:D307)","v":0},{"$f":"SUM(E306:E307)","v":0},0,0,0,0,0,0,0,0,0,0]
[271,463100,"Текући трансфери осталим нивоима власти",null,null,null,null,null,null,null,null,null,null,0,0]
[272,463200,"Капитални трансфери осталим нивоима власти",null,null,null,null,null,null,null,null,null,null,0,0]
[273,464000,"ДОТАЦИЈЕ ОРГАНИЗАЦИЈАМА ОБАВЕЗНОГ СОЦИЈАЛНОГ ОСИГУРАЊА (274 + 275)",{"$f":"SUM(D309:D310)","v":0},0,0,0,0,0,0,0,0,0,0,0]
[274,464100,"Текуће дотације организацијама обавезног социјалног осигурања",null,null,null,null,null,null,null,null,null,null,0,0]
[275,464200,"Капиталне дотације организацијама обавезног социјалног осигурања",null,null,null,null,null,null,null,null,null,null,0,0]
[276,465000,"ОСТАЛЕ ДОТАЦИЈЕ И ТРАНСФЕРИ (277 + 278)",{"$f":"SUM(D312:D313)","v":0},0,0,0,0,0,0,0,0,0,0,0]
[277,465100,"Остале текуће дотације и трансфери",null,null,null,null,null,null,null,null,null,null,0,0]
[278,465200,"Остале капиталне дотације и трансфери",null,null,null,null,null,null,null,null,null,null,0,0]
[279,470000,"СОЦИЈАЛНО ОСИГУРАЊЕ И СОЦИЈАЛНА ЗАШТИТА (280 + 284)",{"$f":"D315+D319","v":0},0,0,0,0,0,0,0,0,0,0,0]
[280,471000,"ПРАВА ИЗ СОЦИЈАЛНОГ ОСИГУРАЊА (ОРГАНИЗАЦИЈЕ ОБАВЕЗНОГ СОЦИЈАЛНОГ ОСИГУРАЊА) (од 281 до 283)",{"$f":"SUM(D316:D318)","v":0},0,0,0,0,0,0,0,0,0,0,0]
[281,471100,"Права из социјалног осигурања која се исплаћују непосредно домаћинствима",null,null,null,null,null,null,null,null,null,null,0,0]
[282,471200,"Права из социјалног осигурања која се исплаћују непосредно пружаоцима услуга",null,null,null,null,null,null,null,null,null,null,0,0]
[283,471900,"Трансфери другим организацијама обавезног социјалног осигурања за доприносе за осигурање",null,null,null,null,null,null,null,null,null,null,0,0]
[284,472000,"НАКНАДЕ ЗА СОЦИЈАЛНУ ЗАШТИТУ ИЗ БУЏЕТА (од 285 до 293)",{"$f":"SUM(D320:D328)","v":0},0,0,0,0,0,0,0,0,0,0,0]
[285,472100,"Накнаде из буџета у случају болести и инвалидности",null,null,null,null,null,null,null,null,null,null,0,0]
[286,472200,"Накнаде из буџета за породиљско одсуство",null,null,null,null,null,null,null,null,null,null,0,0]
[287,472300,"Накнаде из буџета за децу и породицу",null,null,null,null,null,null,null,null,null,null,0,0]
[288,472400,"Накнаде из буџета за случај незапослености",null,null,null,null,null,null,null,null,null,null,0,0]
[289,472500,"Старосне и породичне пензије из буџета",null,null,null,null,null,null,null,null,null,null,0,0]
[290,472600,"Накнаде из буџета у случају смрти",null,null,null,null,null,null,null,null,null,null,0,0]
[291,472700,"Накнаде из буџета за образовање, културу, науку и спорт",null,null,null,null,null,null,null,null,null,null,0,0]
[292,472800,"Накнаде из буџета за становање и живот",null,null,null,null,null,null,null,null,null,null,{"$f":"SUM(H327,J327,L327)","v":0},0]
[293,472900,"Остале накнаде из буџета",null,null,null,null,null,null,null,null,null,null,0,0]
[294,480000,"ОСТАЛИ РАСХОДИ (295 + 298 + 302 + 304 + 307 + 309)",{"$f":"D330+D333+D337+D339+D342+D344","v":25000},{"$f":"E330+E333+E337+E339+E342+E344","v":352000},442000,22000,30000,70000,200000,40000,200000,40000,430000,150000]
[295,481000,"ДОТАЦИЈЕ НЕВЛАДИНИМ ОРГАНИЗАЦИЈАМА (296 + 297)",{"$f":"SUM(D331:D332)","v":0},0,0,0,0,0,0,0,0,0,0,0]
[296,481100,"Дотације непрофитним организацијама које пружају помоћ домаћинствима",null,null,null,null,null,null,null,null,null,null,0,0]
[297,481900,"Дотације осталим непрофитним институцијама",null,null,null,null,null,null,null,null,null,null,0,0]
[298,482000,"ПОРЕЗИ, ОБАВЕЗНЕ ТАКСЕ И КАЗНЕ (од 299 до 301)",{"$f":"SUM(D334:D336)","v":1000},{"$f":"SUM(E334:E336)","v":44000},0,21000,30000,40000,100000,40000,100000,40000,230000,120000]
[299,482100,"Остали порези",null,null,null,null,null,null,null,null,null,null,0,0]
[300,482200,"Обавезне таксе",1000,28000,null,null,30000,20000,50000,20000,50000,20000,130000,60000]
[301,482300,"Новчане казне и пенали",null,16000,null,21000,null,20000,50000,20000,50000,20000,100000,60000]
[302,483000,"НОВЧАНЕ КАЗНЕ И ПЕНАЛИ ПО РЕШЕЊУ СУДОВА (303)",{"$f":"D338","v":0},283000,0,0,0,30000,100000,0,100000,0,200000,30000]
[303,483100,"Новчане казне и пенали по решењу судова",null,283000,null,null,null,30000,100000,null,100000,null,200000,30000]
[304,484000,"НАКНАДА ШТЕТЕ ЗА ПОВРЕДЕ ИЛИ ШТЕТУ НАСТАЛУ УСЛЕД ЕЛЕМЕНТАРНИХ НЕПОГОДА ИЛИ ДРУГИХ ПРИРОДНИХ УЗРОКА (305 + 306)",{"$f":"SUM(D340:D341)","v":0},0,0,0,0,0,0,0,0,0,0,0]
[305,484100,"Накнада штете за повреде или штету насталу услед елементарних непогода",null,null,null,null,null,null,null,null,null,null,0,0]
[306,484200,"Накнада штете од дивљачи",null,null,null,null,null,null,null,null,null,null,0,0]
[307,485000,"НАКНАДА ШТЕТЕ ЗА ПОВРЕДЕ ИЛИ ШТЕТУ НАНЕТУ ОД СТРАНЕ ДРЖАВНИХ ОРГАНА (308)",{"$f":"D343","v":24000},25000,442000,1000,0,0,0,0,0,0,0,0]
[308,485100,"Накнада штете за повреде или штету нанету од стране државних органа",24000,25000,442000,1000,null,null,null,null,null,null,0,0]
[309,489000,"РАСХОДИ КОЈИ СЕ ФИНАНСИРАЈУ ИЗ СРЕДСТАВА ЗА РЕАЛИЗАЦИЈУ НАЦИОНАЛНОГ ИНВЕСТИЦИОНОГ ПЛАНА (310)",0,0,0,0,0,0,0,0,0,0,0,0]
[310,489100,"Расходи који се финансирају из средстава за реализацију националног инвестиционог плана",null,null,null,null,null,null,null,null,null,null,0,0]
[311,500000,"ИЗДАЦИ ЗА НЕФИНАНСИЈСКУ ИМОВИНУ (312 + 334 + 343 + 346 + 354)",{"$f":"D347+D369+D378+D381+D389","v":16000},{"$f":"E347+E369+E378+E381+E389","v":79000},0,0,550000,300000,0,0,0,0,550000,300000]
[312,510000,"ОСНОВНА СРЕДСТВА (313 + 318 + 328 + 330 + 332)",{"$f":"D348+D353+D363+D365+D367","v":16000},{"$f":"E348+E353+E363+E365+E367","v":79000},0,0,550000,300000,0,0,0,0,550000,300000]
[313,511000,"ЗГРАДЕ И ГРАЂЕВИНСКИ ОБЈЕКТИ (од 314 до 317)",{"$f":"SUM(D349:D352)","v":0},0,0,0,0,0,0,0,0,0,0,0]
[314,511100,"Куповина зграда и објеката",null,null,null,null,null,null,null,null,null,null,0,0]
[315,511200,"Изградња зграда и објеката",null,null,null,null,null,null,null,null,null,null,0,0]
[316,511300,"Капитално одржавање зграда и објеката",null,null,null,null,null,null,null,null,null,null,0,0]
[317,511400,"Пројектно планирање",null,null,null,null,null,null,null,null,null,null,0,0]
[318,512000,"МАШИНЕ И ОПРЕМА (од 319 до 327)",{"$f":"SUM(D354:D362)","v":16000},79000,0,0,550000,300000,0,0,0,0,550000,300000]
[319,512100,"Опрема за саобраћај",null,null,null,null,null,null,null,null,null,null,0,0]
[320,512200,"Административна опрема",16000,null,null,null,30000,null,null,null,null,null,30000,0]
[321,512300,"Опрема за пољопривреду",null,null,null,null,null,null,null,null,null,null,0,0]
[322,512400,"Опрема за заштиту животне средине",null,null,null,null,null,null,null,null,null,null,0,0]
[323,512500,"Медицинска и лабораторијска опрема",null,null,null,null,null,null,null,null,null,null,0,0]
[324,512600,"Опрема за образовање, културу и спорт",null,79000,null,null,520000,300000,null,null,null,null,520000,300000]
[325,512700,"Опрема за војску",null,null,null,null,null,null,null,null,null,null,0,0]
[326,512800,"Опрема за јавну безбедност",null,null,null,null,null,null,null,null,null,null,0,0]
[327,512900,"Опрема за производњу, моторна, непокретна и немоторна опрема",null,null,null,null,null,null,null,null,null,null,0,0]
[328,513000,"ОСТАЛЕ НЕКРЕТНИНЕ И ОПРЕМА (329)",{"$f":"D364","v":0},{"$f":"E364","v":0},0,0,0,0,0,0,0,0,0,0]
[{"$f":"A363+1","v":329},513100,"Остале некретнине и опрема",null,null,null,null,null,null,null,null,null,null,0,0]
[330,514000,"КУЛТИВИСАНА ИМОВИНА (331)",{"$f":"D366","v":0},{"$f":"E366","v":0},0,0,0,0,0,0,0,0,0,0]
[331,514100,"Култивисана имовина",null,null,null,null,null,null,null,null,null,null,0,0]
[332,515000,"НЕМАТЕРИЈАЛНА ИМОВИНА (333)",{"$f":"D368","v":0},{"$f":"E368","v":0},0,0,0,0,0,0,0,0,0,0]
[333,515100,"Нематеријална имовина",null,null,null,null,null,null,null,null,null,null,0,0]
[334,520000,"ЗАЛИХЕ (335 + 337 + 341)",{"$f":"D370+D372+D376","v":0},0,0,0,0,0,0,0,0,0,0,0]
[335,521000,"РОБНЕ РЕЗЕРВЕ (336)",{"$f":"D371","v":0},0,0,0,0,0,0,0,0,0,0,0]
[336,521100,"Робне резерве",null,null,null,null,null,null,null,null,null,null,0,0]
[337,522000,"ЗАЛИХЕ ПРОИЗВОДЊЕ (од 338 до 340)",{"$f":"SUM(D373:D375)","v":0},0,0,0,0,0,0,0,0,0,0,0]
[338,522100,"Залихе материјала",null,null,null,null,null,null,null,null,null,null,0,0]
[339,522200,"Залихе недовршене производње",null,null,null,null,null,null,null,null,null,null,0,0]
[340,522300,"Залихе готових производа",null,null,null,null,null,null,null,null,null,null,0,0]
[341,523000,"ЗАЛИХЕ РОБЕ ЗА ДАЉУ ПРОДАЈУ (342)",{"$f":"D377","v":0},0,0,0,0,0,0,0,0,0,0,0]
[342,523100,"Залихе робе за даљу продају",null,null,null,null,null,null,null,null,null,null,0,0]
[343,530000,"ДРАГОЦЕНОСТИ (344)",{"$f":"D379","v":0},0,0,0,0,0,0,0,0,0,0,0]
[344,531000,"ДРАГОЦЕНОСТИ (345)",0,0,0,0,0,0,0,0,0,0,0,0]
[345,531100,"Драгоцености",null,null,null,null,null,null,null,null,null,null,0,0]
[346,540000,"ПРИРОДНА ИМОВИНА (347 + 349 + 351)",{"$f":"D382+D384+D386","v":0},0,0,0,0,0,0,0,0,0,0,0]
[347,541000,"ЗЕМЉИШТЕ (348)",{"$f":"D383","v":0},0,0,0,0,0,0,0,0,0,0,0]
[348,541100,"Земљиште",null,null,null,null,null,null,null,null,null,null,0,0]
[349,542000,"РУДНА БОГАТСТВА (350)",{"$f":"D385","v":0},0,0,0,0,0,0,0,0,0,0,0]
[350,542100,"Копови",null,null,null,null,null,null,null,null,null,null,0,0]
[351,543000,"ШУМЕ И ВОДЕ (352 + 353)",{"$f":"SUM(D387:D388)","v":0},0,0,0,0,0,0,0,0,0,0,0]
[352,543100,"Шуме",null,null,null,null,null,null,null,null,null,null,0,0]
[353,543200,"Воде",null,null,null,null,null,null,null,null,null,null,0,0]
[354,550000,"НЕФИНАНСИЈСКА ИМОВИНА КОЈА СЕ ФИНАНСИРА ИЗ СРЕДСТАВА ЗА РЕАЛИЗАЦИЈУ НАЦИОНАЛНОГ ИНВЕСТИЦИОНОГ ПЛАНА (355)",{"$f":"D390","v":0},0,0,0,0,0,0,0,0,0,0,0]
[355,551000,"НЕФИНАНСИЈСКА ИМОВИНА КОЈА СЕ ФИНАНСИРА ИЗ СРЕДСТАВА ЗА РЕАЛИЗАЦИЈУ НАЦИОНАЛНОГ ИНВЕСТИЦИОНОГ ПЛАНА (356)",0,0,0,0,0,0,0,0,0,0,0,0]
[356,551100,"Нефинансијска имовина која се финансира из средстава за реализацију националног инвестиционог плана",null,null,null,null,null,null,null,null,null,null,{"$f":"SUM(H391,J391,L391)","v":0},0]
[357,600000,"ИЗДАЦИ ЗА ОТПЛАТУ ГЛАВНИЦЕ И НАБАВКУ ФИНАНСИЈСКЕ ИМОВИНЕ (358 + 383)",{"$f":"D393+D418","v":0},{"$f":"E393+E418","v":0},0,0,0,0,0,0,0,0,0,0]
[358,610000,"ОТПЛАТА ГЛАВНИЦЕ (359 + 369 + 377 + 384)",{"$f":"D394+D404+D412+D414+D416","v":0},{"$f":"E394+E404+E412+E414+E416","v":0},0,0,0,0,0,0,0,0,0,0]
[359,611000,"ОТПЛАТА ГЛАВНИЦЕ ДОМАЋИМ КРЕДИТОРИМА (од 360 до 368)",{"$f":"SUM(D395:D403)","v":0},0,0,0,0,0,0,0,0,0,0,0]
[360,611100,"Отплата главнице на домаће хартије од вредности, изузев акција",null,null,null,null,null,null,null,null,null,null,0,0]
[361,611200,"Отплата главнице осталим нивоима власти",null,null,null,null,null,null,null,null,null,null,0,0]
[362,611300,"Отплата главнице домаћим јавним финансијским институцијама",null,null,null,null,null,null,null,null,null,null,0,0]
[363,611400,"Отплата главнице домаћим пословним банкама",null,null,null,null,null,null,null,null,null,null,0,0]
[364,611500,"Отплата главнице осталим домаћим кредиторима",null,null,null,null,null,null,null,null,null,null,0,0]
[365,611600,"Отплата главнице домаћинствима у земљи",null,null,null,null,null,null,null,null,null,null,0,0]
[366,611700,"Отплата главнице на домаће финансијске деривате",null,null,null,null,null,null,null,null,null,null,0,0]
[367,611800,"Отплата домаћих меница",null,null,null,null,null,null,null,null,null,null,0,0]
[368,611900,"Исправка унутрашњег дуга",null,null,null,null,null,null,null,null,null,null,0,0]
[369,612000,"ОТПЛАТА ГЛАВНИЦЕ СТРАНИМ КРЕДИТОРИМА (од 370 до 376)",{"$f":"SUM(D405:D411)","v":0},0,0,0,0,0,0,0,0,0,0,0]
[370,612100,"Отплата главнице на хартије од вредности, изузев акција, емитоване на иностраном финансијском тржишту",null,null,null,null,null,null,null,null,null,null,0,0]
[371,612200,"Отплата главнице страним владама",null,null,null,null,null,null,null,null,null,null,0,0]
[372,612300,"Отплата главнице мултилатералним институцијама",null,null,null,null,null,null,null,null,null,null,0,0]
[373,612400,"Отплате главнице страним пословним банкама",null,null,null,null,null,null,null,null,null,null,0,0]
[374,612500,"Отплате главнице осталим страним кредиторима",null,null,null,null,null,null,null,null,null,null,0,0]
[375,612600,"Отплата главнице на стране финансијске деривате",null,null,null,null,null,null,null,null,null,null,0,0]
[376,612900,"Исправка спољног дуга",null,null,null,null,null,null,null,null,null,null,0,0]
[377,613000,"ОТПЛАТА ГЛАВНИЦЕ ПО ГАРАНЦИЈАМА (378)",{"$f":"D413","v":0},{"$f":"E413","v":0},0,0,0,0,0,0,0,0,0,0]
[378,613100,"Отплата главнице по гаранцијама",null,null,null,null,null,null,null,null,null,null,0,0]
[379,614000,"ОТПЛАТА ГЛАВНИЦЕ ЗА ФИНАНСИЈСКИ ЛИЗИНГ (380)",{"$f":"D415","v":0},{"$f":"E415","v":0},0,0,0,0,0,0,0,0,0,0]
[380,614100,"Отплата главнице за финансијски лизинг",null,null,null,null,null,null,null,null,null,null,0,0]
[381,615000,"ОТПЛАТА ГАРАНЦИЈА ПО КОМЕРЦИЈАЛНИМ ТРАНСАКЦИЈАМА (382)",{"$f":"D417","v":0},{"$f":"E417","v":0},0,0,0,0,0,0,0,0,0,0]
[382,615100,"Отплата гаранција по комерцијалним трансакцијама",null,null,null,null,null,null,null,null,null,null,0,0]
[383,620000,"НАБАВКА ФИНАНСИЈСКЕ ИМОВИНЕ (384 + 394 + 403)",{"$f":"D419+D429+D438","v":0},{"$f":"E419+E429+E438","v":0},0,0,0,0,0,0,0,0,0,0]
[384,621000,"НАБАВКА ДОМАЋЕ ФИНАНСИЈСКЕ ИМОВИНЕ (од 385 до 393)",{"$f":"SUM(D420:D428)","v":0},0,0,0,0,0,0,0,0,0,0,0]
[385,621100,"Набавка домаћих хартија од вредности, изузев акција",null,null,null,null,null,null,null,null,null,null,0,0]
[386,621200,"Кредити осталим нивоима власти",null,null,null,null,null,null,null,null,null,null,0,0]
[387,621300,"Кредити домаћим јавним финансијским институцијама",null,null,null,null,null,null,null,null,null,null,0,0]
[388,621400,"Кредити домаћим пословним банкама",null,null,null,null,null,null,null,null,null,null,0,0]
[389,621500,"Кредити домаћим нефинансијским јавним институцијама",null,null,null,null,null,null,null,null,null,null,0,0]
[390,621600,"Кредити физичким лицима и домаћинствима у земљи",null,null,null,null,null,null,null,null,null,null,0,0]
[391,621700,"Кредити невладиним организацијама у земљи",null,null,null,null,null,null,null,null,null,null,0,0]
[392,621800,"Кредити домаћим нефинансијским приватним предузећима",null,null,null,null,null,null,null,null,null,null,0,0]
[{"$f":"A427+1","v":393},621900,"Набавка домаћих акција и осталог капитала",null,null,null,null,null,null,null,null,null,null,0,0]
[394,622000,"НАБАВКА СТРАНЕ ФИНАНСИЈСКЕ ИМОВИНЕ (од 395 до 402)",{"$f":"SUM(D430:D437)","v":0},{"$f":"SUM(E430:E437)","v":0},0,0,0,0,0,0,0,0,0,0]
[395,622100,"Набавка страних хартија од вредности, изузев акција",null,null,null,null,null,null,null,null,null,null,0,0]
[396,622200,"Кредити страним владама",null,null,null,null,null,null,null,null,null,null,0,0]
[397,622300,"Кредити међународним организацијама",null,null,null,null,null,null,null,null,null,null,0,0]
[398,622400,"Кредити страним пословним банкама",null,null,null,null,null,null,null,null,null,null,{"$f":"SUM(H433,J433,L433)","v":0},0]
[399,622500,"Кредити страним нефинансијским институцијама",null,null,null,null,null,null,null,null,null,null,0,0]
[400,622600,"Кредити страним невладиним организацијама",null,null,null,null,null,null,null,null,null,null,0,0]
[401,622700,"Набавка страних акција и осталог капитала",null,null,null,null,null,null,null,null,null,null,0,0]
[402,622800,"Куповина стране валуте",null,null,null,null,null,null,null,null,null,null,0,0]
[403,623000,"НАБАВКА ФИНАНСИЈСКЕ ИМОВИНЕ КОЈА СЕ ФИНАНСИРА ИЗ СРЕДСТАВА ЗА РЕАЛИЗАЦИЈУ НАЦИОНАЛНОГ ИНВЕСТИЦИОНОГ ПЛАНА (404)",{"$f":"D439","v":0},{"$f":"E439","v":0},0,0,0,0,0,0,0,0,0,0]
[404,623100,"Набавка финансијске имовине која се финансира из средстава за реализацију националног инвестиционог плана ",null,null,null,null,null,null,null,null,null,null,0,0]
[405,null,"УКУПНИ РАСХОДИ И ИЗДАЦИ (147 + 311 + 357)",{"$f":"D392+D346+D182","v":8057000},{"$f":"E392+E346+E182","v":68750000},16169000,72873000,16475000,80491000,17630000,104880000,17630000,104880000,51735000,290251000]
[null,null,"Разлика (146-405 ) [ Укупни приходи, примања и пренета средства - Укупни расходи и издаци]",{"$f":"D181-D440","v":0},{"$f":"E181-E440","v":9000},0,9000,0,0,0,0,0,0,0,0]
[]
["Шифра","Извори финансирања програмске активности",null,"Вредност у базној години (2017)",null,"Очекивана вредност у 2018. години",null,"Вредност у 2019. години",null,"Вредност у 2020. години",null,"Вредност у 2021. години",null,"Укупно (2019-2021)"]
[1,2,null,3,null,4,null,5,null,6,null,7,null,"8=(5+6+7)"]
["01","Приходи из буџета",null,73886000,null,85932000,null,93061000,null,118530000,null,118530000,null,{"$f":"SUM(H445:M445)","v":330121000}]
["02","Трансфери између корисника на истом нивоу",null,null,null,null,null,null,null,null,null,null,null,{"$f":"SUM(H446:M446)","v":0}]
["03","Социјални доприноси",null,null,null,null,null,null,null,null,null,null,null,0]
["04","Сопствени приходи буџетских корисника",null,null,null,null,null,null,null,null,null,null,null,0]
["05","Донације од иностраних земаља",null,null,null,null,null,null,null,null,null,null,null,0]
["06","Донације од међународних организација",null,124000,null,76000,null,425000,null,460000,null,460000,null,{"$f":"SUM(H450:M450)","v":1345000}]
["07","Трансфери од других нивоа власти",null,null,null,null,null,null,null,null,null,null,null,0]
["08","Добровољни трансфери од физичких и правних лица",null,null,null,null,null,null,null,null,null,null,null,0]
["09","Примања од продаје нефинансијске имовине",null,null,null,null,null,null,null,null,null,null,null,0]
["10","Примања од домаћих задуживања",null,null,null,null,null,null,null,null,null,null,null,0]
["11","Примања од иностраних задуживања",null,null,null,null,null,null,null,null,null,null,null,0]
["12","Примања од отплате датих кредита и продаје финансијске имовине",null,null,null,null,null,null,null,null,null,null,null,0]
["13","Нераспоређени вишак прихода из ранијих година",null,null,null,null,null,null,null,null,null,null,null,0]
["14","Неутрошена средства од приватизације из ранијих година",null,null,null,null,null,null,null,null,null,null,null,0]
["15","Неутрошена средства донација из ранијих година",null,null,null,null,null,null,null,null,null,null,null,0]
["16","Родитељски динар за ваннаставне активности",null,2806000,null,3034000,null,3480000,null,3520000,null,3520000,null,10520000]
["56","Финансијска помоћ ЕУ",null,null,null,null,null,null,null,null,null,null,null,0]
["УКУПНО  ЗА:",null,{"$f":"$D$4","v":"Програм 9. Основно образовање и вспитање"},{"$f":"SUM(D445:E461)","v":76816000},null,{"$f":"SUM(F445:G461)","v":89042000},null,{"$f":"SUM(H445:I461)","v":96966000},null,{"$f":"SUM(J445:K461)","v":122510000},null,{"$f":"SUM(L445:M461)","v":122510000},null,{"$f":"SUM(N445:O461)","v":341986000}]
[null,null,"Разлика ( укупни расходи и издаци -  укупни извори )",{"$f":"D440+E440-D462","v":-9000},null,{"$f":"F440+G440-F462","v":0},null,{"$f":"H440+I440-H462","v":0},null,{"$f":"J440+K440-J462","v":0},null,{"$f":"L440+M440-L462","v":0},null,{"$f":"N440+O440-N462","v":0}]
[]
["ЛИСТА ПРОГРАМСКИХ АКТИВНОСТИ/ПРОЈЕКАТА У ОКВИРУ ПРОГРАМА"]
[]
["Рбр.","Назив програмских активности и пројеката у оквиру програма по буџетским корисницима",null,"Вредност у базној години (2017)",null,"Очекивана вредност у 2018. години",null,"Вредност у 2019. години",null,"Вредност у 2020. години",null,"Вредност у 2021. години",null,"Укупно (2019-2021)"]
[null,null,null,"Буџетска средства","Средства из осталих извора","Буџетска средства","Средства из осталих извора","Буџетска средства","Средства из осталих извора","Буџетска средства","Средства из осталих извора","Буџетска средства","Средства из осталих извора","Буџетска средства","Средства из осталих извора"]
[1,2,null,3,4,5,6,7,8,9,10,11,12,13,14]
[1,"2002-0001 функционисање основних школа-ОШ,, Десанка Максимовић Грделица",null,73886000,10713000,16169000,72873000,16475000,80491000,17630000,104880000,17630000,104880000,{"$f":"SUM(H470,J470,L470)","v":51735000},{"$f":"SUM(M470,K470,I470)","v":290251000}]
[2,"2002-П1 Унапређење квалитета образовања и васпитања ОШ,, Десанка Максимовић,, Грделица",null,0,0,0,0,null,0,0,0,0,0,{"$f":"SUM(H471,J471,L471)","v":0},{"$f":"SUM(M471,K471,I471)","v":0}]
[3," ",null," "," "," "," "," "," "," "," "," "," ",0,0]
[4," ",null," "," "," "," "," "," "," "," "," "," ",0,0]
[5," ",null," "," "," "," "," "," "," "," "," "," ",0,0]
[6," ",null," "," "," "," "," "," "," "," "," "," ",0,0]
[7," ",null," "," "," "," "," "," "," "," "," "," ",0,0]
[8," ",null," "," "," "," "," "," "," "," "," "," ",0,0]
[9," ",null," "," "," "," "," "," "," "," "," "," ",0,0]
[10," ",null," "," "," "," "," "," "," "," "," "," ",0,0]
[11," ",null," "," "," "," "," "," "," "," "," "," ",0,0]
[12," ",null," "," "," "," "," "," "," "," "," "," ",0,0]
[13," ",null," "," "," "," "," "," "," "," "," "," ",0,0]
[14," ",null," "," "," "," "," "," "," "," "," "," ",0,0]
[15," ",null," "," "," "," "," "," "," "," "," "," ",0,0]
[16," ",null," "," "," "," "," "," "," "," "," "," ",0,0]
[17," ",null," "," "," "," "," "," "," "," "," "," ",0,0]
[18," ",null," "," "," "," "," "," "," "," "," "," ",0,0]
[19," ",null," "," "," "," "," "," "," "," "," "," ",0,0]
[20," ",null," "," "," "," "," "," "," "," "," "," ",0,0]
[21," ",null," "," "," "," "," "," "," "," "," "," ",0,0]
[22," ",null," "," "," "," "," "," "," "," "," "," ",0,0]
[23," ",null," "," "," "," "," "," "," "," "," "," ",0,0]
[24," ",null," "," "," "," "," "," "," "," "," "," ",0,0]
[25," ",null," "," "," "," "," "," "," "," "," "," ",0,0]
[26," ",null," "," "," "," "," "," "," "," "," "," ",0,0]
[27," ",null," "," "," "," "," "," "," "," "," "," ",0,0]
[28," ",null," "," "," "," "," "," "," "," "," "," ",0,0]
[29," ",null," "," "," "," "," "," "," "," "," "," ",0,0]
[30," ",null," "," "," "," "," "," "," "," "," "," ",0,0]
[31," ",null," "," "," "," "," "," "," "," "," "," ",0,0]
[32," ",null," "," "," "," "," "," "," "," "," "," ",0,0]
[33," ",null," "," "," "," "," "," "," "," "," "," ",0,0]
[34," ",null," "," "," "," "," "," "," "," "," "," ",0,0]
[35," ",null," "," "," "," "," "," "," "," "," "," ",0,0]
[36," ",null," "," "," "," "," "," "," "," "," "," ",0,0]
[37," ",null," "," "," "," "," "," "," "," "," "," ",0,0]
[38," ",null," "," "," "," "," "," "," "," "," "," ",0,0]
[39," ",null," "," "," "," "," "," "," "," "," "," ",0,0]
[40," ",null," "," "," "," "," "," "," "," "," "," ",0,0]
["УКУПНО  ЗА:",null,0,{"$f":"SUM(D470:D509)","v":73886000},{"$f":"SUM(E470:E509)","v":10713000},16169000,72873000,16475000,80491000,17630000,104880000,17630000,104880000,51735000,290251000]
[]
["*","1-5 циља за сваки програм",null,"Напомена"]
["**","1-3 индикатора за сваки циљ",null,"У колони ","Приходи из","буџета","унешени су","приходи из","буџета града","града"]
[null,null,null,"а у колкони","други","приходи,","унешени су","приходи из","буџета града"]
[null,null,null,"републике,","донације и","остали","приходи.",null,null,null,null,null,"Одговорно лице"]
[]
[null,"Датум:","25.09.2019.",null,null,null,null,null,null,null,null,null,"Ненад","Младеновић"]

{"sheet":"Програмска активност","index":1,"n_rows":465,"n_cols":15,"rows_kept":465,"cut":false,"hidden":false,"merged":[[456,0,456,1],[456,3,456,4],[456,5,456,6],[456,7,456,8],[455,1,455,2],[455,3,455,4],[455,5,455,6],[455,7,455,8],[462,12,462,13],[456,9,456,10],[456,11,456,12],[456,13,456,14],[457,11,457,12],[457,13,457,14],[457,3,457,4],[457,5,457,6],[457,7,457,8],[457,9,457,10],[455,11,455,12],[453,13,453,14],[454,13,454,14],[455,13,455,14],[455,9,455,10],[453,1,453,2],[453,3,453,4],[453,5,453,6],[453,7,453,8],[453,9,453,10],[453,11,453,12],[454,1,454,2],[454,3,454,4],[454,5,454,6],[454,7,454,8],[454,9,454,10],[454,11,454,12],[452,1,452,2],[452,3,452,4],[452,5,452,6],[452,7,452,8],[452,9,452,10],[452,11,452,12],[452,13,452,14],[451,1,451,2],[451,3,451,4],[450,11,450,12],[450,13,450,14],[449,1,449,2],[449,3,449,4],[449,5,449,6],[449,7,449,8],[449,9,449,10],[449,11,449,12],[451,5,451,6],[451,7,451,8],[451,9,451,10],[451,11,451,12],[449,13,449,14],[450,1,450,2],[450,3,450,4],[450,5,450,6],[450,7,450,8],[450,9,450,10],[451,13,451,14],[448,1,448,2],[448,3,448,4],[448,5,448,6],[448,7,448,8],[448,9,448,10],[448,11,448,12],[448,13,448,14],[447,1,447,2],[447,3,447,4],[446,11,446,12],[446,13,446,14],[445,1,445,2],[445,3,445,4],[445,5,445,6],[445,7,445,8],[445,9,445,10],[445,11,445,12],[447,5,447,6],[447,7,447,8],[447,9,447,10],[447,11,447,12],[445,13,445,14],[446,1,446,2],[446,3,446,4],[446,5,446,6],[446,7,446,8],[446,9,446,10],[447,13,447,14],[444,1,444,2],[444,3,444,4],[444,5,444,6],[444,7,444,8],[444,9,444,10],[444,11,444,12],[444,13,444,14],[443,1,443,2],[443,3,443,4],[442,11,442,12],[442,13,442,14],[441,1,441,2],[441,3,441,4],[441,5,441,6],[441,7,441,8],[441,9,441,10],[441,11,441,12],[443,5,443,6],[443,7,443,8],[443,9,443,10],[443,11,443,12],[441,13,441,14],[442,1,442,2],[442,3,442,4],[442,5,442,6],[442,7,442,8],[442,9,442,10],[443,13,443,14],[440,1,440,2],[440,3,440,4],[440,5,440,6],[440,7,440,8],[440,9,440,10],[440,11,440,12],[440,13,440,14],[439,1,439,2],[439,3,439,4],[439,5,439,6],[439,7,439,8],[439,9,439,10],[439,11,439,12],[437,13,437,14],[438,1,438,2],[438,3,438,4],[438,5,438,6],[438,7,438,8],[438,9,438,10],[439,13,439,14],[27,5,27,6],[27,7,27,8],[27,9,27,10],[27,11,27,12],[438,11,438,12],[438,13,438,14],[437,1,437,2],[437,3,437,4],[437,5,437,6],[437,7,437,8],[437,9,437,10],[437,11,437,12],[27,13,27,14],[0,0,0,14],[1,0,1,14],[3,3,3,14],[3,0,3,2],[6,3,6,14],[7,3,7,14],[15,11,15,14],[4,0,4,2],[5,0,5,2],[4,3,4,10],[13,1,14,2],[13,0,14,0],[8,3,8,14],[9,3,9,14],[10,3,10,14],[5,3,5,10],[8,0,8,2],[26,0,26,14],[27,0,28,0],[27,1,28,1],[27,2,28,2],[27,3,27,4],[6,0,6,2],[14,3,14,5],[7,0,7,2],[11,0,11,2],[11,3,11,14],[19,0,20,0],[15,1,17,2],[15,3,15,5],[16,3,16,5],[15,0,17,0],[10,0,10,2],[17,3,17,5],[13,3,13,14],[14,11,14,14],[9,0,9,2],[23,11,23,14],[16,11,16,14],[17,11,17,14],[19,3,19,14],[21,11,21,14],[20,11,20,14],[23,3,23,5],[21,3,21,5],[22,3,22,5],[20,3,20,5],[21,1,23,2],[22,11,22,14],[21,0,23,0],[19,1,20,2]]}
["Обрасци за припрему програмског буџета"]
["2. ПРОГРАМСКА АКТИВНОСТ"]
[]
["Програм коме припада:"]
["Шифра и назив:",null,null,"2002-0001 Функционисање основних школа"]
["Функција:",null,null,"912 Основно образовање"]
["Назив организационе јединице/Буџетски корисник:",null,null,"ОШ,, Десанка Максимовић,, Грделица"]
["Сврхa:",null,null,"Стварање адекватних услова за рад у школи по прописаним стандардима"]
["Основ:"]
["Опис:",null,null,"За рад школе потребно је обезбедити одговарајуће услове ( МАТЕРИЈАЛНЕ, ТЕХНИЧКЕ...)"]
["Мере и поглавље преговора о приступању ЕУ:",null,null,"(Анекс 3 Упутства за израду програмског буџета) релевантно само за Републику Србију)"]
["Одговорно лице за спровођење прог. aктивности:",null,null,"Ненад Младеновић, директор"]
[]
[null,"Циљ*",null,"Индикатори**"]
[null,null,null,"Назив индикатора",null,null,"Вредност у базној години (2017)","Очекивана вредност у 2018. години","Циљана вредност у 2019. години","Циљана вредност у 2020. години","Циљана вредност у 2021. години","Извор верификације"]
[1,"Обезбеђени прописани услови за васпитно-образовни рад са децом у основним школама",null,"Просечан број ученика по одељењу",null,null,"17.83","18.19","16,50","18.57","18.57","Евиденција школе"]
[]
[]
[]
[null,"Циљ",null,"Индикатори"]
[null,null,null,"Назив индикатора",null,null,"Вредност у базној години (2017)","Очекивана вредност у 2018. години","Циљана вредност у 2019. години","Циљана вредност у 2020. години","Циљана вредност у 2021. години","Извор верификације"]
[2,"Унапредјенје квалитета образовања и васпитањау основним школама",null,"Број ученика који похађају ваннаставне активности у односу на укупан број",null,null,"75%","80%","100%","100%","100%","Евиденција школе"]
[null,null,null,"Број стручних лица која су добиланајманје 24 бода на стручно усавршавање, кроз учешће на семинарима на годишњем нивоу",null,null,"50%","55%","60%","90%","90%","Евиденција школе"]
[]
[]
[]
["ПЛАНИРАНА СРЕДСТВА ЗА ПРОГРАМСКУ АКТИВНОСТ"]
["Рбр.","Конто","ОПИС","Вредност у базној години (2017)",null,"Очекивана вредност у 2018. години",null,"Вредност у 2019. години",null,"Вредност у 2020. години",null,"Вредност у 2021. години",null,"Укупно (2019-2021)"]
[null,null,null,"Приходи из буџета","Приходи из осталих извора","Приходи из буџета","Приходи из осталих извора","Приходи из буџета","Приходи из осталих извора","Приходи из буџета","Приходи из осталих извора","Приходи из буџета","Приходи из осталих извора","Приходи из буџета","Приходи из осталих извора"]
[1,2,3,4,5,6,7,8,9,10,11,12,13,"14=(8+10+12)","15=(9+11+13)"]
[1,300000,"КАПИТАЛ, УТВРЂИВАЊЕ РЕЗУЛТАТА ПОСЛОВАЊА И ВАНБИЛАНСНА ЕВИДЕНЦИЈА\n(2 + 5)",{"$f":"SUM(D32,D35)","v":0},{"$f":"SUM(E32,E35)","v":0},0,9000,0,0,0,0,0,0,0,0]
[2,310000,"КАПИТАЛ (3)",{"$f":"SUM(D33)","v":0},{"$f":"SUM(E33)","v":0},{"$f":"SUM(F33)","v":0},0,0,0,0,0,0,0,0,0]
[3,311000,"КАПИТАЛ (4)",{"$f":"SUM(D34)","v":0},{"$f":"SUM(E34)","v":0},0,0,0,0,0,0,0,0,{"$f":"SUM(N34)","v":0},0]
[4,311700,"Пренета неутрошена средства из ранијих година",null,null,null,null,null,null,null,null,null,null,{"$f":"SUM(H34,J34,L34)","v":0},{"$f":"SUM(I34,K34,M34)","v":0}]
[5,320000,"УТВРЂИВАЊЕ РЕЗУЛТАТА ПОСЛОВАЊА (6)",{"$f":"SUM(D36)","v":0},{"$f":"SUM(E36)","v":0},0,9000,0,0,0,0,0,0,0,0]
[6,321000,"УТВРЂИВАЊЕ РЕЗУЛТАТА ПОСЛОВАЊА (7)",{"$f":"SUM(D37)","v":0},0,0,9000,0,0,0,0,0,0,0,0]
[7,321300,"Нераспоређени вишак прихода и примања или дефицит из ранијих година",null,null,null,9000,null,null,null,null,null,null,{"$f":"SUM(H37,J37,L37)","v":0},{"$f":"SUM(I37,K37,M37)","v":0}]
[{"$f":"A37+1","v":8},700000,"ТЕКУЋИ ПРИХОДИ \n(9 + 32 + 44 + 69 + 74 +78)",{"$f":"D39+D62+D74+D99+D104+D108","v":8057000},{"$f":"E39+E62+E74+E99+E104+E108","v":68759000},16169000,72873000,16475000,80491000,17630000,104880000,17630000,104880000,{"$f":"N39+N62+N74+N99+N104+N108","v":51735000},290251000]
[{"$f":"A38+1","v":9},710000,"ПОРЕЗИ \n(10 + 14 + 16 + 23 + 29)",{"$f":"D40+D44+D46+D53+D59","v":0},{"$f":"E40+E44+E46+E53+E59","v":0},0,0,0,0,0,0,0,0,0,0]
[10,711000,"ПОРЕЗ НА ДОХОДАК, ДОБИТ И КАПИТАЛНЕ ДОБИТКЕ (од 11 до 13)",{"$f":"SUM(D41:D43)","v":0},{"$f":"SUM(E41:E43)","v":0},0,0,0,0,0,0,0,0,{"$f":"SUM(H40,J40,L40)","v":0},0]
[11,711100,"Порези на доходак и капиталнe добиткe које плаћају физичка лица",null,null,null,null,null,null,null,null,null,null,0,0]
[12,711200,"Порези на добит и капиталне добитке које плаћају предузећа и друга правна лица",null,null,null,null,null,null,null,null,null,null,0,0]
[13,711300,"Порези на доходак, добит и капиталне добитке који се не могу разврстати између физичких и правних лица",null,null,null,null,null,null,null,null,null,null,0,0]
[14,712000,"ПОРЕЗ НА ФОНД ЗАРАДА (15)",{"$f":"SUM(D45)","v":0},0,0,0,0,0,0,0,0,0,0,0]
[15,712100,"Порез на фонд зарада",null,null,null,null,null,null,null,null,null,null,0,0]
[16,713000,"ПОРЕЗ НА ИМОВИНУ (од 17 до 22)",{"$f":"SUM(D47:D52)","v":0},0,0,0,0,0,0,0,0,0,0,0]
[17,713100,"Периодични порези на непокретности",null,null,null,null,null,null,null,null,null,null,0,0]
[18,713200,"Периодични порези на нето имовину",null,null,null,null,null,null,null,null,null,null,0,0]
[19,713300,"Порези на заоставштину, наслеђе и поклон",null,null,null,null,null,null,null,null,null,null,0,0]
[20,713400,"Порези на финансијске и капиталне трансакције",null,null,null,null,null,null,null,null,null,null,0,0]
[21,713500,"Други једнократни порези на имовину",null,null,null,null,null,null,null,null,null,null,0,0]
[22,713600,"Други периодични порези на имовину",null,null,null,null,null,null,null,null,null,null,0,0]
[23,714000,"ПОРЕЗ НА ДОБРА И УСЛУГЕ (од 24 до 28)",{"$f":"SUM(D54:D58)","v":0},0,0,0,0,0,0,0,0,0,0,0]
[24,714100,"Општи порези на добра и услуге",null,null,null,null,null,null,null,null,null,null,0,0]
[25,714300,"Добит фискалних монопола",null,null,null,null,null,null,null,null,null,null,0,0]
[26,714400,"Порези на појединачне услуге",null,null,null,null,null,null,null,null,null,null,0,0]
[27,714500,"Порези, таксе и накнаде на употребу добара, на дозволу да се добра употребљавају или делатности обављају",null,null,null,null,null,null,null,null,null,null,0,0]
[28,714600,"Други порези на добра и услуге",null,null,null,null,null,null,null,null,null,null,0,0]
[29,716000,"ДРУГИ ПОРЕЗИ (30 + 31)",{"$f":"SUM(D60:D61)","v":0},0,0,0,0,0,0,0,0,0,0,0]
[30,716100,"Други порези које искључиво плаћају предузећа, односно предузетници",null,null,null,null,null,null,null,null,null,null,0,0]
[31,716200,"Други порези које плаћају остала лица или који се не могу идентификовати",null,null,null,null,null,null,null,null,null,null,0,0]
[32,730000,"ДОНАЦИЈЕ, ПОМОЋИ И ТРАНСФЕРИ \n(33 + 36 + 41)",{"$f":"D63+D66+D71","v":0},{"$f":"E63+E66+E71","v":124000},0,76000,0,425000,0,460000,0,460000,0,1345000]
[33,731000,"ДОНАЦИЈЕ ОД ИНОСТРАНИХ ДРЖАВА (34 + 35)",{"$f":"SUM(D64:D65)","v":0},0,0,0,0,0,0,0,0,0,0,0]
[34,731100,"Текуће донације од иностраних држава",null,null,null,null,null,null,null,null,null,null,0,0]
[35,731200,"Капиталне донације од иностраних држава",null,null,null,null,null,null,null,null,null,null,0,0]
[36,732000,"ДОНАЦИЈЕ И ПОМОЋИ ОД МЕЂУНАРОДНИХ ОРГАНИЗАЦИЈА (од 37 до 40)",{"$f":"SUM(D67:D70)","v":0},{"$f":"SUM(E67:E70)","v":124000},0,76000,0,425000,0,460000,0,460000,0,1345000]
[37,732100,"Текуће донације од међународних организација",null,124000,null,76000,null,425000,null,460000,null,460000,0,1345000]
[38,732200,"Капиталне донације од међународних организација",null,null,null,null,null,null,null,null,null,null,0,0]
[39,732300,"Текуће помоћи од ЕУ",null,null,null,null,null,null,null,null,null,null,0,0]
[40,732400,"Капиталне помоћи од ЕУ",null,null,null,null,null,null,null,null,null,null,0,0]
[41,733000,"ТРАНСФЕРИ ОД ДРУГИХ НИВОА ВЛАСТИ (42 + 43)",{"$f":"SUM(D72:D73)","v":0},0,0,0,0,0,0,0,0,0,{"$f":"SUM(H71,J71,L71)","v":0},0]
[42,733100,"Текући трансфери од других нивоа власти",null,null,null,null,null,null,null,null,null,null,0,0]
[43,733200,"Капитални трансфери од других нивоа власти",null,null,null,null,null,null,null,null,null,null,0,0]
[44,740000,"ДРУГИ ПРИХОДИ (45 + 52 + 57 + 64 + 67)",{"$f":"D75+D82+D87+D94+D97","v":0},{"$f":"E75+E82+E87+E94+E97","v":2806000},0,3034000,0,3480000,0,3520000,0,3520000,0,10520000]
[45,741000,"ПРИХОДИ ОД ИМОВИНЕ (од 46 до 51)",{"$f":"SUM(D76:D81)","v":0},{"$f":"SUM(E76:E81)","v":0},0,0,0,0,0,0,0,0,0,0]
[46,741100,"Камате",null,null,null,null,null,null,null,null,null,null,0,0]
[47,741200,"Дивиденде",null,null,null,null,null,null,null,null,null,null,0,0]
[48,741300,"Повлачење прихода од квази корпорација",null,null,null,null,null,null,null,null,null,null,0,0]
[49,741400,"Приход од имовине који припада имаоцима полиса осигурања",null,null,null,null,null,null,null,null,null,null,0,0]
[50,741500,"Закуп непроизведене имовине",null,null,null,null,null,null,null,null,null,null,0,0]
[51,741600,"Финансијске промене на финансијским лизинзима",null,null,null,null,null,null,null,null,null,null,0,0]
[52,742000,"ПРИХОДИ ОД ПРОДАЈЕ ДОБАРА И УСЛУГА (од 53 до 56)",{"$f":"SUM(D83:D86)","v":0},2806000,0,3034000,0,3480000,0,3520000,0,3520000,0,10520000]
[53,742100,"Приходи од продаје добара и услуга или закупа од стране тржишних организација",null,null,null,null,null,null,null,null,null,null,0,0]
[54,742200,"Таксе и накнаде",null,null,null,null,null,null,null,null,null,null,0,0]
[55,742300,"Споредне продаје добара и услуга које врше државне нетржишне јединице",null,2806000,null,3034000,null,3480000,null,3520000,null,3520000,0,10520000]
[56,742400,"Импутиране продаје добара и услуга",null,null,null,null,null,null,null,null,null,null,0,0]
[57,743000,"НОВЧАНЕ КАЗНЕ И ОДУЗЕТА ИМОВИНСКА КОРИСТ (од 58 до 63)",{"$f":"SUM(D88:D93)","v":0},0,0,0,0,0,0,0,0,0,0,0]
[58,743100,"Приходи од новчаних казни за кривична дела",null,null,null,null,null,null,null,null,null,null,0,0]
[59,743200,"Приходи од новчаних казни за привредне преступе",null,null,null,null,null,null,null,null,null,null,0,0]
[60,743300,"Приходи од новчаних казни за прекршаје",null,null,null,null,null,null,null,null,null,null,0,0]
[61,743400,"Приходи од пенала",null,null,null,null,null,null,null,null,null,null,0,0]
[62,743500,"Приходи од одузете имовинске користи",null,null,null,null,null,null,null,null,null,null,0,0]
[63,743900,"Остале новчане казне, пенали и приходи од одузете имовинске користи",null,null,null,null,null,null,null,null,null,null,0,0]
[64,744000,"ДОБРОВОЉНИ ТРАНСФЕРИ ОД ФИЗИЧКИХ И ПРАВНИХ ЛИЦА (65 + 66)",{"$f":"SUM(D95:D96)","v":0},0,0,0,0,0,0,0,0,0,0,0]
[65,744100,"Текући добровољни трансфери од физичких и правних лица",null,null,null,null,null,null,null,null,null,null,0,0]
[66,744200,"Капитални добровољни трансфери од физичких и правних лица",null,null,null,null,null,null,null,null,null,null,0,0]
[67,745000,"МЕШОВИТИ И НЕОДРЕЂЕНИ ПРИХОДИ (68)",{"$f":"D98","v":0},{"$f":"E98","v":0},0,0,0,0,0,0,0,0,0,0]
[68,745100,"Мешовити и неодређени приходи",null,null,null,null,null,null,null,null,null,null,0,0]
[69,770000,"МЕМОРАНДУМСКЕ СТАВКЕ ЗА РЕФУНДАЦИЈУ РАСХОДА (70 + 72)",{"$f":"D100+D102","v":0},2690000,0,1812000,0,1000000,0,2000000,0,2000000,0,5000000]
[70,771000,"МЕМОРАНДУМСКЕ СТАВКЕ ЗА РЕФУНДАЦИЈУ РАСХОДА (71)",{"$f":"D101","v":0},{"$f":"E101","v":2690000},0,1812000,0,1000000,0,2000000,0,2000000,0,5000000]
[71,771100,"Меморандумске ставке за рефундацију расхода",null,2690000,null,1812000,null,1000000,null,2000000,null,2000000,0,5000000]
[72,772000,"МЕМОРАНДУМСКЕ СТАВКЕ ЗА РЕФУНДАЦИЈУ РАСХОДА ИЗ ПРЕТХОДНЕ ГОДИНЕ (73)",{"$f":"D103","v":0},{"$f":"E103","v":0},0,0,0,0,0,0,0,0,0,0]
[{"$f":"A102+1","v":73},772100,"Меморандумске ставке за рефундацију расхода из претходне године",null,null,null,null,null,null,null,null,null,null,0,0]
[74,780000,"ТРАНСФЕРИ ИЗМЕЂУ БУЏЕТСКИХ КОРИСНИКА НА ИСТОМ НИВОУ (75)",{"$f":"D105","v":0},0,0,0,0,0,0,0,0,0,0,0]
[75,781000,"ТРАНСФЕРИ ИЗМЕЂУ БУЏЕТСКИХ КОРИСНИКА НА ИСТОМ НИВОУ (76 + 77)",{"$f":"SUM(D106:D107)","v":0},0,0,0,0,0,0,0,0,0,0,0]
[76,781100,"Трансфери између буџетских корисника на истом нивоу",null,null,null,null,null,null,null,null,null,null,{"$f":"SUM(H106,J106,L106)","v":0}]
[77,781300,"Трансфери између организација обавезног социјалног осигурања",null,null,null,null,null,null,null,null,null,null,0]
[78,790000,"ПРИХОДИ ИЗ БУЏЕТА (79)",{"$f":"D109","v":8057000},63139000,16169000,67951000,16475000,75586000,17630000,98900000,17630000,98900000,51735000,273386000]
[79,791000,"ПРИХОДИ ИЗ БУЏЕТА (80)",{"$f":"D110","v":8057000},63139000,16169000,67951000,16475000,75586000,17630000,98900000,17630000,98900000,51735000,273386000]
[80,791100,"Приходи из буџета",8057000,63139000,16169000,67951000,16475000,75586000,17630000,98900000,17630000,98900000,51735000]
[81,800000,"ПРИМАЊА ОД ПРОДАЈЕ НЕФИНАНСИЈСКЕ ИМОВИНЕ (82 + 89 + 96 + 99)",{"$f":"D112+D119+D126+D129","v":0},{"$f":"E112+E119+E126+E129","v":0},0,0,0,0,0,0,0,0,0,0]
[82,810000,"ПРИМАЊА ОД ПРОДАЈЕ ОСНОВНИХ СРЕДСТАВА (83 + 85 + 87)",{"$f":"D113+D115+D117","v":0},{"$f":"E113+E115+E117","v":0},0,0,0,0,0,0,0,0,0,0]
[83,811000,"ПРИМАЊА ОД ПРОДАЈЕ НЕПОКРЕТНОСТИ (84)",{"$f":"D114","v":0},{"$f":"E114","v":0},0,0,0,0,0,0,0,0,0,0]
[84,811100,"Примања од продаје непокретности",null,null,null,null,null,null,null,null,null,null,0,0]
[85,812000,"ПРИМАЊА ОД ПРОДАЈЕ ПОКРЕТНЕ ИМОВИНЕ (86)",{"$f":"D116","v":0},0,0,0,0,0,0,0,0,0,0,0]
[86,812100,"Примања од продаје покретне имовине",null,null,null,null,null,null,null,null,null,null,0,0]
[87,813000,"ПРИМАЊА ОД ПРОДАЈЕ ОСТАЛИХ ОСНОВНИХ СРЕДСТАВА (88)",{"$f":"D118","v":0},0,0,0,0,0,0,0,0,0,0,0]
[88,813100,"Примања од продаје осталих основних средстава",null,null,null,null,null,null,null,null,null,null,0,0]
[89,820000,"ПРИМАЊА ОД ПРОДАЈЕ ЗАЛИХА (90 + 92 + 94)",{"$f":"D120+D122+D124","v":0},0,0,0,0,0,0,0,0,0,0,0]
[90,821000,"ПРИМАЊА ОД ПРОДАЈЕ РОБНИХ РЕЗЕРВИ (91)",{"$f":"D121","v":0},0,0,0,0,0,0,0,0,0,0,0]
[91,821100,"Примања од продаје робних резерви",null,null,null,null,null,null,null,null,null,null,0,0]
[92,822000,"ПРИМАЊА ОД ПРОДАЈЕ ЗАЛИХА  ПРОИЗВОДЊЕ (93)",{"$f":"D123","v":0},0,0,0,0,0,0,0,0,0,0,0]
[93,822100,"Примања од продаје залиха производње",null,null,null,null,null,null,null,null,null,null,0,0]
[94,823000,"ПРИМАЊА ОД ПРОДАЈЕ РОБЕ ЗА ДАЉУ ПРОДАЈУ (95)",{"$f":"D125","v":0},0,0,0,0,0,0,0,0,0,0,0]
[95,823100,"Примања од продаје робе за даљу продају",null,null,null,null,null,null,null,null,null,null,0,0]
[96,830000,"ПРИМАЊА ОД ПРОДАЈЕ ДРАГОЦЕНОСТИ (97)",{"$f":"D127","v":0},0,0,0,0,0,0,0,0,0,0,0]
[97,831000,"ПРИМАЊА ОД ПРОДАЈЕ ДРАГОЦЕНОСТИ (98)",0,0,0,0,0,0,0,0,0,0,0,0]
[98,831100,"Примања од продаје драгоцености",null,null,null,null,null,null,null,null,null,null,0,0]
[99,840000,"ПРИМАЊА ОД ПРОДАЈЕ ПРИРОДНЕ ИМОВИНЕ (100 + 102 + 104)",{"$f":"D130+D132+D134","v":0},0,0,0,0,0,0,0,0,0,0,0]
[100,841000,"ПРИМАЊА ОД ПРОДАЈЕ ЗЕМЉИШТА (101)",{"$f":"D131","v":0},0,0,0,0,0,0,0,0,0,0,0]
[101,841100,"Примања од продаје земљишта",null,null,null,null,null,null,null,null,null,null,0,0]
[102,842000,"ПРИМАЊА ОД ПРОДАЈЕ ПОДЗЕМНИХ БЛАГА (103)",{"$f":"D133","v":0},0,0,0,0,0,0,0,0,0,0,0]
[103,842100,"Примања од продаје подземних блага",null,null,null,null,null,null,null,null,null,null,0,0]
[104,843000,"ПРИМАЊА ОД ПРОДАЈЕ ШУМА И ВОДА (105)",{"$f":"D135","v":0},0,0,0,0,0,0,0,0,0,0,0]
[105,843100,"Примања од продаје шума и вода",null,null,null,null,null,null,null,null,null,null,{"$f":"SUM(H135,J135,L135)","v":0},0]
[106,900000,"ПРИМАЊА ОД ЗАДУЖИВАЊА И ПРОДАЈЕ ФИНАНСИЈСКЕ ИМОВИНЕ (107 + 126)",{"$f":"D137+D156","v":0},{"$f":"E137+E156","v":0},0,0,0,0,0,0,0,0,0,0]
[107,910000,"ПРИМАЊА ОД ЗАДУЖИВАЊА (108+118)",{"$f":"D138+D148","v":0},{"$f":"E138+E148","v":0},0,0,0,0,0,0,0,0,0,0]
[108,911000,"ПРИМАЊА ОД ДОМАЋИХ ЗАДУЖИВАЊА (од 109 до 117)",{"$f":"SUM(D139:D147)","v":0},0,0,0,0,0,0,0,0,0,0,0]
[109,911100,"Примања од емитовања домаћих хартија од вредности, изузев акција",null,null,null,null,null,null,null,null,null,null,0,0]
[110,911200,"Примања од задуживања од осталих нивоа власти",null,null,null,null,null,null,null,null,null,null,0,0]
[111,911300,"Примања од задуживања од јавних финансијских институција у земљи",null,null,null,null,null,null,null,null,null,null,0,0]
[112,911400,"Примања од задуживања од пословних банака у земљи",null,null,null,null,null,null,null,null,null,null,0,0]
[113,911500,"Примања од задуживања код осталих поверилаца у земљи",null,null,null,null,null,null,null,null,null,null,0,0]
[114,911600,"Примања од задуживања од домаћинстава у земљи",null,null,null,null,null,null,null,null,null,null,0,0]
[115,911700,"Примања од домаћих финансијских деривата",null,null,null,null,null,null,null,null,null,null,0,0]
[116,911800,"Примања од домаћих меница",null,null,null,null,null,null,null,null,null,null,0,0]
[117,911900,"Исправка унутрашњег дуга",null,null,null,null,null,null,null,null,null,null,0,0]
[118,912000,"ПРИМАЊА ОД ИНОСТРАНОГ ЗАДУЖИВАЊА (од 119 + 125)",{"$f":"SUM(D149:D155)","v":0},0,0,0,0,0,0,0,0,0,0,0]
[119,912100,"Примања од емитовања хартија од вредности, изузев акција, на иностраном финансијском тржишту",null,null,null,null,null,null,null,null,null,null,0,0]
[120,912200,"Примања од задуживања од иностраних држава",null,null,null,null,null,null,null,null,null,null,0,0]
[121,912300,"Примања од задуживања од мултилатералних институција",null,null,null,null,null,null,null,null,null,null,0,0]
[122,912400,"Примања од задуживања од иностраних пословних банака",null,null,null,null,null,null,null,null,null,null,0,0]
[123,912500,"Примања од задуживања од осталих иностраних поверилаца",null,null,null,null,null,null,null,null,null,null,0,0]
[124,912600,"Примања од иностраних финансијских деривата",null,null,null,null,null,null,null,null,null,null,0,0]
[125,912900,"Исправка спољног дуга",null,null,null,null,null,null,null,null,null,null,0,0]
[126,920000,"ПРИМАЊА ОД ПРОДАЈЕ ФИНАНСИЈСКЕ ИМОВИНЕ (127 + 137)",{"$f":"D157+D167","v":0},0,0,0,0,0,0,0,0,0,0,0]
[127,921000,"ПРИМАЊА ОД ПРОДАЈЕ ДОМАЋЕ ФИНАНСИЈСКЕ ИМОВИНЕ (од 128 до 136) ",{"$f":"SUM(D158:D166)","v":0},0,0,0,0,0,0,0,0,0,0,0]
[128,921100,"Примања од продаје домаћих хартија од вредности, изузев акција",null,null,null,null,null,null,null,null,null,null,0,0]
[129,921200,"Примања од отплате кредита датих осталим нивоима власти",null,null,null,null,null,null,null,null,null,null,0,0]
[130,921300,"Примања од отплате кредита датих домаћим јавним финансијским институцијама",null,null,null,null,null,null,null,null,null,null,0,0]
[131,921400,"Примања од отплате кредита домаћим пословним банкама",null,null,null,null,null,null,null,null,null,null,0,0]
[132,921500,"Примања од отплате кредита датих домаћим јавним нефинансијским институцијама",null,null,null,null,null,null,null,null,null,null,0,0]
[133,921600,"Примања од отплате кредита датих физичким лицима и домаћинствима у земљи",null,null,null,null,null,null,null,null,null,null,0,0]
[134,921700,"Примања од отплате кредита датих удружењима грађана у земљи",null,null,null,null,null,null,null,null,null,null,0,0]
[135,921800,"Примања од отплате кредита датих нефинансијским приватним предузећима у земљи",null,null,null,null,null,null,null,null,null,null,0,0]
[136,921900,"Примања од продаје домаћих акција и осталог капитала",null,null,null,null,null,null,null,null,null,null,0,0]
[{"$f":"A166+1","v":137},922000,"ПРИМАЊА ОД ПРОДАЈЕ СТРАНЕ ФИНАНСИЈСКЕ ИМОВИНЕ (од 138 до 145)",{"$f":"SUM(D168:D175)","v":0},{"$f":"SUM(E168:E175)","v":0},0,0,0,0,0,0,0,0,0,0]
[138,922100,"Примања од продаје страних хартија од вредности, изузев акција",null,null,null,null,null,null,null,null,null,null,0,0]
[139,922200,"Примања од отплате кредита датих страним владама",null,null,null,null,null,null,null,null,null,null,0,0]
[140,922300,"Примања од отплате кредита датих међународним организацијама",null,null,null,null,null,null,null,null,null,null,0,0]
[141,922400,"Примања од отплате кредита датих страним пословним банкама",null,null,null,null,null,null,null,null,null,null,0,0]
[142,922500,"Примања од отплате кредита датих страним нефинансијским институцијама",null,null,null,null,null,null,null,null,null,null,0,0]
[143,922600,"Примања од отплате кредита датих страним невладиним организацијама",null,null,null,null,null,null,null,null,null,null,0,0]
[144,922700,"Примања од продаје страних акција и осталог капитала",null,null,null,null,null,null,null,null,null,null,0,0]
[145,922800,"Примања од продаје стране валуте",null,null,null,null,null,null,null,null,null,null,0,0]
[146,null,"УКУПНИ ПРИХОДИ, ПРИМАЊА И ПРЕНЕТА СРЕДСТВА ИЗ ПРЕТХОДНЕ ГОДИНЕ (1 + 8 + 81 + 106)",{"$f":"D31+D38+D111+D136","v":8057000},{"$f":"E31+E38+E111+E136","v":68759000},16169000,72882000,16475000,80491000,17630000,104880000,17630000,104880000,{"$f":"SUM(H176,J176,L176)","v":51735000},{"$f":"SUM(I176,K176,M176)","v":290251000}]
[147,400000,"ТЕКУЋИ РАСХОДИ (148+166+211+226+250+263+279+294)",{"$f":"D178+D196+D241+D256+D280+D293+D309+D324","v":8041000},68671000,16169000,72873000,15925000,80191000,17630000,104880000,17630000,104880000,51185000,289951000]
[148,410000,"РАСХОДИ ЗА ЗАПОСЛЕНЕ (149+151+155+157+162+164)",{"$f":"D179+D181+D185+D187+D192+D194","v":2994000},{"$f":"E179+E181+E185+E187+E192+E194","v":65425000},3037000,69299000,2400000,74696000,3400000,99000000,3400000,99000000,9200000,272696000]
[149,411000,"ПЛАТЕ, ДОДАЦИ И НАКНАДЕ ЗАПОСЛЕНИХ (ЗАРАДЕ) (150)",{"$f":"D180","v":0},53188000,0,56740000,0,62236000,0,80000000,0,80000000,0,222236000]
[150,411100,"Плате, додаци и накнаде запослених",null,53188000,null,56740000,null,62236000,null,80000000,null,80000000,0,222236000]
[151,412000,"СОЦИЈАЛНИ ДОПРИНОСИ НА ТЕРЕТ ПОСЛОДАВЦА (од 152 до 154)",{"$f":"SUM(D182:D184)","v":0},9547000,0,10198000,0,11160000,0,16000000,0,16000000,0,43160000]
[152,412100,"Допринос за пензијско и инвалидско осигурање",null,6400000,null,6837000,null,7481000,null,10000000,null,10000000,0,27481000]
[153,412200,"Допринос за здравствено осигурање",null,2747000,null,2934000,null,3211000,null,5000000,null,5000000,0,13211000]
[154,412300,"Допринос за незапосленост",null,400000,null,427000,null,468000,null,1000000,null,1000000,0,2468000]
[155,413000,"НАКНАДЕ У НАТУРИ (156)",{"$f":"D186","v":279000},0,327000,0,400000,0,600000,0,600000,0,1600000,0]
[156,413100,"Накнаде у натури",279000,null,327000,null,400000,null,600000,null,600000,null,1600000,0]
[157,414000,"СОЦИЈАЛНА ДАВАЊА ЗАПОСЛЕНИМА (од 158 до 161)",{"$f":"SUM(D188:D191)","v":0},2690000,0,2361000,0,1300000,0,3000000,0,3000000,0,7300000]
[158,414100,"Исплата накнада за време одсуствовања с посла на терет фондова",null,2690000,null,1812000,null,1000000,null,2000000,null,2000000,0,5000000]
[159,414200,"Расходи за образовање деце запослених",null,null,null,null,null,null,null,null,null,null,0,0]
[160,414300,"Отпремнине и помоћи",null,null,null,549000,null,300000,null,1000000,null,1000000,0,2300000]
[161,414400,"Помоћ у медицинском лечењу запосленог или чланова уже породице и друге помоћи запосленом",null,null,null,null,null,null,null,null,null,null,0,0]
[162,415000,"НАКНАДА ТРОШКОВА ЗА ЗАПОСЛЕНЕ (163)",{"$f":"D193","v":2271000},0,1783000,0,1450000,0,1800000,0,1800000,0,5050000,0]
[163,415100,"Накнаде трошкова за запослене",2271000,null,1783000,null,1450000,null,1800000,null,1800000,null,5050000,0]
[164,416000,"НАГРАДЕ ЗАПОСЛЕНИМА И ОСТАЛИ ПОСЕБНИ РАСХОДИ (165)",{"$f":"D195","v":444000},0,927000,0,550000,0,1000000,0,1000000,0,2550000,0]
[165,416100,"Награде запосленима и остали посебни расходи",444000,null,927000,null,550000,null,1000000,null,1000000,null,2550000,0]
[166,420000,"КОРИШЋЕЊЕ УСЛУГА И РОБА (167 + 175 + 181 + 190 + 198 + 201) ",{"$f":"D197+D205+D211+D220+D228+D231","v":5022000},2894000,12690000,3552000,13495000,5425000,14030000,5840000,14030000,5840000,{"$f":"SUM(H196,J196,L196)","v":41555000},17105000]
[167,421000,"СТАЛНИ ТРОШКОВИ (од 168 до 174)",{"$f":"SUM(D198:D204)","v":2210000},66000,7640000,46000,7200000,95000,9330000,100000,9330000,100000,25860000,295000]
[168,421100,"Трошкови платног промета и банкарских услуга",102000,21000,130000,20000,130000,30000,150000,50000,150000,50000,430000,130000]
[169,421200,"Енергетске услуге",1373000,13000,6489000,15000,5950000,20000,8000000,null,8000000,null,21950000,20000]
[170,421300,"Комуналне услуге",680000,null,924000,null,1000000,null,1000000,null,1000000,null,3000000,0]
[171,421400,"Услуге комуникација",42000,32000,40000,11000,70000,20000,60000,20000,60000,20000,190000,60000]
[172,421500,"Трошкови осигурања",13000,null,57000,null,50000,null,60000,null,60000,null,170000,0]
[173,421600,"Закуп имовине и опреме",null,null,null,null,null,25000,60000,30000,60000,30000,120000,85000]
[174,421900,"Остали трошкови",null,null,null,null,null,null,null,null,null,null,0,0]
[175,422000,"ТРОШКОВИ ПУТОВАЊА (од 176 до 180)",{"$f":"SUM(D206:D210)","v":2431000},451000,2671000,476000,2600000,600000,3100000,700000,3100000,700000,8800000,2000000]
[176,422100,"Трошкови службених путовања у земљи",null,451000,null,476000,null,600000,null,700000,null,700000,0,2000000]
[177,422200,"Трошкови службених путовања у иностранство",null,null,null,null,null,null,null,null,null,null,0,0]
[178,422300,"Трошкови путовања у оквиру редовног рада",null,null,null,null,null,null,null,null,null,null,0,0]
[179,422400,"Трошкови путовања ученика",2431000,null,2671000,null,2600000,null,3100000,null,3100000,null,8800000,0]
[180,422900,"Остали трошкови транспорта",null,null,null,null,null,null,null,null,null,null,0,0]
[181,423000,"УСЛУГЕ ПО УГОВОРУ (од 182 до 189)",{"$f":"SUM(D212:D219)","v":56000},2356000,123000,3022000,255000,4470000,440000,4810000,440000,4810000,1135000,14090000]
[182,423100,"Административне услуге",null,null,null,null,null,null,null,null,null,null,0,0]
[183,423200,"Компјутерске услуге",6000,null,11000,null,15000,null,30000,null,30000,null,75000,0]
[184,423300,"Услуге образовања и усавршавања запослених",null,null,20000,null,20000,20000,100000,50000,100000,50000,220000,120000]
[185,423400,"Услуге информисања",null,null,null,null,45000,30000,30000,40000,30000,40000,105000,110000]
[186,423500,"Стручне услуге",null,null,null,464000,75000,1590000,100000,1900000,100000,1900000,275000,5390000]
[187,423600,"Услуге за домаћинство и угоститељство",null,null,null,null,null,null,null,null,null,null,0,0]
[188,423700,"Репрезентација",null,null,null,null,null,30000,null,null,null,null,0,30000]
[189,423900,"Остале опште услуге",50000,2356000,92000,2558000,100000,2800000,180000,2820000,180000,2820000,460000,8440000]
[190,424000,"СПЕЦИЈАЛИЗОВАНЕ УСЛУГЕ (од 191 до197)",{"$f":"SUM(D221:D227)","v":0},17000,35000,0,40000,60000,220000,60000,220000,60000,480000,180000]
[191,424100,"Пољопривредне услуге",null,null,null,null,null,null,null,null,null,null,0,0]
[192,424200,"Услуге образовања, културе и спорта",null,17000,null,null,null,20000,60000,20000,60000,20000,120000,60000]
[193,424300,"Медицинске услуге",null,null,null,null,20000,null,null,null,null,null,20000,0]
[194,424400,"Услуге одржавања аутопутева",null,null,null,null,null,null,null,null,null,null,0,0]
[195,424500,"Услуге одржавања националних паркова и природних површина",null,null,null,null,null,null,null,null,null,null,0,0]
[196,424600,"Услуге очувања животне средине, науке и геодетске услуге",null,null,null,null,null,null,null,null,null,null,0,0]
[197,424900,"Остале специјализоване услуге",null,null,35000,null,20000,40000,160000,40000,160000,40000,340000,120000]
[198,425000,"ТЕКУЋЕ ПОПРАВКЕ И ОДРЖАВАЊЕ (199 + 200)",{"$f":"D229+D230","v":72000},{"$f":"E229+E230","v":1000},1865000,1000,3070000,60000,380000,40000,380000,40000,3830000,140000]
[199,425100,"Текуће поправке и одржавање зграда и објеката",60000,1000,1680000,1000,3050000,40000,280000,20000,280000,20000,3610000,80000]
[200,425200,"Текуће поправке и одржавање опреме",12000,null,185000,null,20000,20000,100000,20000,100000,20000,220000,60000]
[{"$f":"A230+1","v":201},426000,"МАТЕРИЈАЛ (од 202 до 210)",{"$f":"SUM(D232:D240)","v":253000},3000,356000,7000,330000,140000,560000,130000,560000,130000,1450000,400000]
[202,426100,"Административни материјал",53000,null,82000,null,90000,10000,130000,10000,130000,10000,350000,30000]
[203,426200,"Материјали за пољопривреду",null,null,null,null,null,null,null,null,null,null,0,0]
[204,426300,"Материјали за образовање и усавршавање запослених",null,null,11000,null,10000,10000,70000,10000,70000,10000,150000,30000]
[205,426400,"Материјали за саобраћај",null,null,null,null,null,null,null,null,null,null,0,0]
[206,426500,"Материјали за очување животне средине и науку",null,null,null,null,null,null,null,null,null,null,0,0]
[207,426600,"Материјали за образовање, културу и спорт",45000,null,76000,null,40000,40000,120000,30000,120000,30000,280000,100000]
[208,426700,"Медицински и лабораторијски материјали",null,null,null,null,null,null,null,null,null,null,0,0]
[209,426800,"Материјали за одржавање хигијене и угоститељство",76000,3000,99000,null,110000,40000,120000,40000,120000,40000,350000,120000]
[210,426900,"Материјали за посебне намене",79000,null,88000,7000,80000,40000,120000,40000,120000,40000,320000,120000]
[211,430000,"АМОРТИЗАЦИЈА И УПОТРЕБА СРЕДСТАВА ЗА РАД (212 + 216 + 218 + 220 + 224)",{"$f":"D242+D246+D248+D250+D254","v":0},{"$f":"E242+E246+E248+E250+E254","v":0},0,0,0,0,0,0,0,0,0,0]
[212,431000,"АМОРТИЗАЦИЈА НЕКРЕТНИНА И ОПРЕМЕ (од 213 до 215)",{"$f":"SUM(D243:D245)","v":0},0,0,0,0,0,0,0,0,0,0,0]
[213,431100,"Амортизација зграда и грађевинскиx објеката",null,null,null,null,null,null,null,null,null,null,0,0]
[214,431200,"Амортизација опреме",null,null,null,null,null,null,null,null,null,null,0,0]
[215,431300,"Амортизација осталих некретнина и опреме",null,null,null,null,null,null,null,null,null,null,0,0]
[216,432000,"АМОРТИЗАЦИЈА КУЛТИВИСАНЕ ИМОВИНЕ (217)",{"$f":"D247","v":0},0,0,0,0,0,0,0,0,0,0,0]
[217,432100,"Амортизација култивисане опреме",null,null,null,null,null,null,null,null,null,null,0,0]
[218,433000,"УПОТРЕБА ДРАГОЦЕНОСТИ (219)",{"$f":"D249","v":0},0,0,0,0,0,0,0,0,0,0,0]
[219,433100,"Употреба драгоцености",null,null,null,null,null,null,null,null,null,null,0,0]
[220,434000,"УПОТРЕБА ПРИРОДНЕ ИМОВИНЕ (од 221 до 223)",{"$f":"SUM(D251:D253)","v":0},0,0,0,0,0,0,0,0,0,0,0]
[221,434100,"Употреба земљишта",null,null,null,null,null,null,null,null,null,null,0,0]
[222,434200,"Употреба подземног блага",null,null,null,null,null,null,null,null,null,null,0,0]
[223,434300,"Употреба шума и вода",null,null,null,null,null,null,null,null,null,null,0,0]
[224,435000,"АМОРТИЗАЦИЈА НЕМАТЕРИЈАЛНЕ ИМОВИНЕ (225)",{"$f":"D255","v":0},0,0,0,0,0,0,0,0,0,0,0]
[225,435100,"Амортизација нематеријалне имовине",null,null,null,null,null,null,null,null,null,null,0,0]
[226,440000,"ОТПЛАТА КАМАТА И ПРАТЕЋИ ТРОШКОВИ ЗАДУЖИВАЊА (227 + 237 + 244 + 246)",{"$f":"D257+D267+D274+D276","v":0},0,0,0,0,0,0,0,0,0,0,0]
[227,441000,"ОТПЛАТЕ ДОМАЋИХ КАМАТА (од 228 до 236)",{"$f":"SUM(D258:D266)","v":0},{"$f":"SUM(E258:E266)","v":0},0,0,0,0,0,0,0,0,0,0]
[228,441100,"Отплата камата на домаће хартије од вредности",null,null,null,null,null,null,null,null,null,null,{"$f":"SUM(H258,J258,L258)","v":0},0]
[229,441200,"Отплата камата осталим нивоима власти",null,null,null,null,null,null,null,null,null,null,0,0]
[230,441300,"Отплата камата домаћим јавним финансијским институцијама",null,null,null,null,null,null,null,null,null,null,0,0]
[231,441400,"Отплата камата домаћим пословним банкама",null,null,null,null,null,null,null,null,null,null,0,0]
[232,441500,"Отплата камата осталим домаћим кредиторима",null,null,null,null,null,null,null,null,null,null,0,0]
[233,441600,"Отплата камата домаћинствима у земљи",null,null,null,null,null,null,null,null,null,null,0,0]
[234,441700,"Отплата камата на домаће финансијске деривате",null,null,null,null,null,null,null,null,null,null,0,0]
[235,441800,"Отплата камата на домаће менице",null,null,null,null,null,null,null,null,null,null,0,0]
[236,441900,"Финансијске промене на финансијским лизинзима",null,null,null,null,null,null,null,null,null,null,0,0]
[237,442000,"ОТПЛАТА СТРАНИХ КАМАТА (од 238 до 243)",{"$f":"SUM(D268:D273)","v":0},0,0,0,0,0,0,0,0,0,0,0]
[238,442100,"Отплата камата на хартије од вредности емитоване на иностраном финансијском тржишту",null,null,null,null,null,null,null,null,null,null,0,0]
[239,442200,"Отплата камата страним владама",null,null,null,null,null,null,null,null,null,null,0,0]
[240,442300,"Отплата камата мултилатералним институцијама",null,null,null,null,null,null,null,null,null,null,0,0]
[241,442400,"Отплата камата страним пословним банкама",null,null,null,null,null,null,null,null,null,null,0,0]
[242,442500,"Отплата камата осталим страним кредиторима",null,null,null,null,null,null,null,null,null,null,0,0]
[243,442600,"Отплата камата на стране финансијске деривате",null,null,null,null,null,null,null,null,null,null,0,0]
[244,443000,"ОТПЛАТА КАМАТА ПО ГАРАНЦИЈАМА 245)",{"$f":"D275","v":0},{"$f":"E275","v":0},0,0,0,0,0,0,0,0,0,0]
[245,443100,"Отплата камата по гаранцијама",null,null,null,null,null,null,null,null,null,null,0,0]
[246,444000,"ПРАТЕЋИ ТРОШКОВИ ЗАДУЖИВАЊА (од 247 до 249)",{"$f":"SUM(D277:D279)","v":0},0,0,0,0,0,0,0,0,0,0,0]
[247,444100,"Негативне курсне разлике",null,null,null,null,null,null,null,null,null,null,0,0]
[248,444200,"Казне за кашњење",null,null,null,null,null,null,null,null,null,null,0,0]
[249,444300,"Остали пратећи трошкови задуживања",null,null,null,null,null,null,null,null,null,null,0,0]
[250,450000,"СУБВЕНЦИЈЕ (251 + 254 + 257 + 260)",{"$f":"D281+D284+D287+D290","v":0},0,0,0,0,0,0,0,0,0,0,0]
[251,451000,"СУБВЕНЦИЈЕ ЈАВНИМ НЕФИНАНСИЈСКИМ ПРЕДУЗЕЋИМА И ОРГАНИЗАЦИЈАМА (252 + 253)",{"$f":"SUM(D282:D283)","v":0},0,0,0,0,0,0,0,0,0,0,0]
[252,451100,"Текуће субвенције јавним нефинансијским предузећима и организацијама",null,null,null,null,null,null,null,null,null,null,0,0]
[253,451200,"Капиталне субвенције јавним нефинансијским предузећима и организацијама",null,null,null,null,null,null,null,null,null,null,0,0]
[254,452000,"СУБВЕНЦИЈЕ ПРИВАТНИМ ФИНАНСИЈСКИМ ИНСТИТУЦИЈАМА (255 + 256)",{"$f":"SUM(D285:D286)","v":0},0,0,0,0,0,0,0,0,0,0,0]
[255,452100,"Текуће субвенције приватним финансијским институцијама",null,null,null,null,null,null,null,null,null,null,0,0]
[256,452200,"Капиталне субвенције приватним финансијским институцијама",null,null,null,null,null,null,null,null,null,null,0,0]
[257,453000,"СУБВЕНЦИЈЕ ЈАВНИМ ФИНАНСИЈСКИМ ИНСТИТУЦИЈАМА (258 + 259)",{"$f":"SUM(D288:D289)","v":0},0,0,0,0,0,0,0,0,0,0,0]
[258,453100,"Текуће субвенције јавним финансијским институцијама",null,null,null,null,null,null,null,null,null,null,0,0]
[259,453200,"Капиталне субвенције јавним финансијским институцијама",null,null,null,null,null,null,null,null,null,null,0,0]
[260,454000,"СУБВЕНЦИЈЕ ПРИВАТНИМ ПРЕДУЗЕЋИМА (261 + 262)",{"$f":"SUM(D291:D292)","v":0},0,0,0,0,0,0,0,0,0,0,0]
[261,454100,"Текуће субвенције приватним предузећима",null,null,null,null,null,null,null,null,null,null,0,0]
[262,454200,"Капиталне субвенције приватним предузећима",null,null,null,null,null,null,null,null,null,null,0,0]
[263,460000,"ДОНАЦИЈЕ, ДОТАЦИЈЕ И ТРАНСФЕРИ (264 + 267 + 270 + 273 + 276)",{"$f":"D294+D297+D300+D303+D306","v":0},{"$f":"E294+E297+E300+E303+E306","v":0},0,0,0,0,0,0,0,0,0,0]
[264,461000,"ДОНАЦИЈЕ СТРАНИМ ВЛАДАМА (265 + 266)",{"$f":"SUM(D295:D296)","v":0},0,0,0,0,0,0,0,0,0,0,0]
[{"$f":"A294+1","v":265},461100,"Текуће донације страним владама",null,null,null,null,null,null,null,null,null,null,0,0]
[266,461200,"Капиталне донације страним владама",null,null,null,null,null,null,null,null,null,null,0,0]
[267,462000,"ДОТАЦИЈЕ МЕЂУНАРОДНИМ ОРГАНИЗАЦИЈАМА (268 + 269)",{"$f":"SUM(D298:D299)","v":0},0,0,0,0,0,0,0,0,0,0,0]
[268,462100,"Текуће дотације међународним организацијама",null,null,null,null,null,null,null,null,null,null,0,0]
[269,462200,"Капиталне дотације међународним организацијама",null,null,null,null,null,null,null,null,null,null,0,0]
[270,463000,"ТРАНСФЕРИ ОСТАЛИМ НИВОИМА ВЛАСТИ (271 + 272)",{"$f":"SUM(D301:D302)","v":0},{"$f":"SUM(E301:E302)","v":0},0,0,0,0,0,0,0,0,0,0]
[271,463100,"Текући трансфери осталим нивоима власти",null,null,null,null,null,null,null,null,null,null,0,0]
[272,463200,"Капитални трансфери осталим нивоима власти",null,null,null,null,null,null,null,null,null,null,0,0]
[273,464000,"ДОТАЦИЈЕ ОРГАНИЗАЦИЈАМА ОБАВЕЗНОГ СОЦИЈАЛНОГ ОСИГУРАЊА (274 + 275)",{"$f":"SUM(D304:D305)","v":0},0,0,0,0,0,0,0,0,0,0,0]
[274,464100,"Текуће дотације организацијама обавезног социјалног осигурања",null,null,null,null,null,null,null,null,null,null,0,0]
[275,464200,"Капиталне дотације организацијама обавезног социјалног осигурања",null,null,null,null,null,null,null,null,null,null,0,0]
[276,465000,"ОСТАЛЕ ДОТАЦИЈЕ И ТРАНСФЕРИ (277 + 278)",{"$f":"SUM(D307:D308)","v":0},0,0,0,0,0,0,0,0,0,0,0]
[277,465100,"Остале текуће дотације и трансфери",null,null,null,null,null,null,null,null,null,null,0,0]
[278,465200,"Остале капиталне дотације и трансфери",null,null,null,null,null,null,null,null,null,null,0,0]
[279,470000,"СОЦИЈАЛНО ОСИГУРАЊЕ И СОЦИЈАЛНА ЗАШТИТА (280 + 284)",{"$f":"D310+D314","v":0},0,0,0,0,0,0,0,0,0,0,0]
[280,471000,"ПРАВА ИЗ СОЦИЈАЛНОГ ОСИГУРАЊА (ОРГАНИЗАЦИЈЕ ОБАВЕЗНОГ СОЦИЈАЛНОГ ОСИГУРАЊА) (од 281 до 283)",{"$f":"SUM(D311:D313)","v":0},0,0,0,0,0,0,0,0,0,0,0]
[281,471100,"Права из социјалног осигурања која се исплаћују непосредно домаћинствима",null,null,null,null,null,null,null,null,null,null,0,0]
[282,471200,"Права из социјалног осигурања која се исплаћују непосредно пружаоцима услуга",null,null,null,null,null,null,null,null,null,null,0,0]
[283,471900,"Трансфери другим организацијама обавезног социјалног осигурања за доприносе за осигурање",null,null,null,null,null,null,null,null,null,null,0,0]
[284,472000,"НАКНАДЕ ЗА СОЦИЈАЛНУ ЗАШТИТУ ИЗ БУЏЕТА (од 285 до 293)",{"$f":"SUM(D315:D323)","v":0},0,0,0,0,0,0,0,0,0,0,0]
[285,472100,"Накнаде из буџета у случају болести и инвалидности",null,null,null,null,null,null,null,null,null,null,0,0]
[286,472200,"Накнаде из буџета за породиљско одсуство",null,null,null,null,null,null,null,null,null,null,0,0]
[287,472300,"Накнаде из буџета за децу и породицу",null,null,null,null,null,null,null,null,null,null,0,0]
[288,472400,"Накнаде из буџета за случај незапослености",null,null,null,null,null,null,null,null,null,null,0,0]
[289,472500,"Старосне и породичне пензије из буџета",null,null,null,null,null,null,null,null,null,null,0,0]
[290,472600,"Накнаде из буџета у случају смрти",null,null,null,null,null,null,null,null,null,null,0,0]
[291,472700,"Накнаде из буџета за образовање, културу, науку и спорт",null,null,null,null,null,null,null,null,null,null,0,0]
[292,472800,"Накнаде из буџета за становање и живот",null,null,null,null,null,null,null,null,null,null,{"$f":"SUM(H322,J322,L322)","v":0},0]
[293,472900,"Остале накнаде из буџета",null,null,null,null,null,null,null,null,null,null,0,0]
[294,480000,"ОСТАЛИ РАСХОДИ (295 + 298 + 302 + 304 + 307 + 309)",{"$f":"D325+D328+D332+D334+D337+D339","v":25000},{"$f":"E325+E328+E332+E334+E337+E339","v":352000},442000,22000,30000,70000,200000,40000,200000,40000,430000,150000]
[295,481000,"ДОТАЦИЈЕ НЕВЛАДИНИМ ОРГАНИЗАЦИЈАМА (296 + 297)",{"$f":"SUM(D326:D327)","v":0},0,0,0,0,0,0,0,0,0,0,0]
[296,481100,"Дотације непрофитним организацијама које пружају помоћ домаћинствима",null,null,null,null,null,null,null,null,null,null,0,0]
[297,481900,"Дотације осталим непрофитним институцијама",null,null,null,null,null,null,null,null,null,null,0,0]
[298,482000,"ПОРЕЗИ, ОБАВЕЗНЕ ТАКСЕ И КАЗНЕ (од 299 до 301)",{"$f":"SUM(D329:D331)","v":1000},{"$f":"SUM(E329:E331)","v":44000},0,21000,30000,40000,100000,40000,100000,40000,230000,120000]
[299,482100,"Остали порези",null,null,null,null,null,null,null,null,null,null,0,0]
[300,482200,"Обавезне таксе",1000,28000,null,null,30000,20000,50000,20000,50000,20000,130000,60000]
[301,482300,"Новчане казне и пенали",null,16000,null,21000,null,20000,50000,20000,50000,20000,100000,60000]
[302,483000,"НОВЧАНЕ КАЗНЕ И ПЕНАЛИ ПО РЕШЕЊУ СУДОВА (303)",{"$f":"D333","v":0},283000,0,0,0,30000,100000,0,100000,0,200000,30000]
[303,483100,"Новчане казне и пенали по решењу судова",null,283000,null,null,null,30000,100000,null,100000,null,200000,30000]
[304,484000,"НАКНАДА ШТЕТЕ ЗА ПОВРЕДЕ ИЛИ ШТЕТУ НАСТАЛУ УСЛЕД ЕЛЕМЕНТАРНИХ НЕПОГОДА ИЛИ ДРУГИХ ПРИРОДНИХ УЗРОКА (305 + 306)",{"$f":"SUM(D335:D336)","v":0},0,0,0,0,0,0,0,0,0,0,0]
[305,484100,"Накнада штете за повреде или штету насталу услед елементарних непогода",null,null,null,null,null,null,null,null,null,null,0,0]
[306,484200,"Накнада штете од дивљачи",null,null,null,null,null,null,null,null,null,null,0,0]
[307,485000,"НАКНАДА ШТЕТЕ ЗА ПОВРЕДЕ ИЛИ ШТЕТУ НАНЕТУ ОД СТРАНЕ ДРЖАВНИХ ОРГАНА (308)",{"$f":"D338","v":24000},25000,442000,1000,0,0,0,0,0,0,0,0]
[308,485100,"Накнада штете за повреде или штету нанету од стране државних органа",24000,25000,442000,1000,null,null,null,null,null,null,0,0]
[309,489000,"РАСХОДИ КОЈИ СЕ ФИНАНСИРАЈУ ИЗ СРЕДСТАВА ЗА РЕАЛИЗАЦИЈУ НАЦИОНАЛНОГ ИНВЕСТИЦИОНОГ ПЛАНА (310)",0,0,0,0,0,0,0,0,0,0,0,0]
[310,489100,"Расходи који се финансирају из средстава за реализацију националног инвестиционог плана",null,null,null,null,null,null,null,null,null,null,0,0]
[311,500000,"ИЗДАЦИ ЗА НЕФИНАНСИЈСКУ ИМОВИНУ (312 + 334 + 343 + 346 + 354)",{"$f":"D342+D364+D373+D376+D384","v":16000},{"$f":"E342+E364+E373+E376+E384","v":79000},0,0,550000,300000,0,0,0,0,550000,300000]
[312,510000,"ОСНОВНА СРЕДСТВА (313 + 318 + 328 + 330 + 332)",{"$f":"D343+D348+D358+D360+D362","v":16000},{"$f":"E343+E348+E358+E360+E362","v":79000},0,0,550000,300000,0,0,0,0,550000,300000]
[313,511000,"ЗГРАДЕ И ГРАЂЕВИНСКИ ОБЈЕКТИ (од 314 до 317)",{"$f":"SUM(D344:D347)","v":0},0,0,0,0,0,0,0,0,0,0,0]
[314,511100,"Куповина зграда и објеката",null,null,null,null,null,null,null,null,null,null,0,0]
[315,511200,"Изградња зграда и објеката",null,null,null,null,null,null,null,null,null,null,0,0]
[316,511300,"Капитално одржавање зграда и објеката",null,null,null,null,null,null,null,null,null,null,0,0]
[317,511400,"Пројектно планирање",null,null,null,null,null,null,null,null,null,null,0,0]
[318,512000,"МАШИНЕ И ОПРЕМА (од 319 до 327)",{"$f":"SUM(D349:D357)","v":16000},79000,0,0,550000,300000,0,0,0,0,550000,300000]
[319,512100,"Опрема за саобраћај",null,null,null,null,null,null,null,null,null,null,0,0]
[320,512200,"Административна опрема",16000,null,null,null,30000,null,null,null,null,null,30000,0]
[321,512300,"Опрема за пољопривреду",null,null,null,null,null,null,null,null,null,null,0,0]
[322,512400,"Опрема за заштиту животне средине",null,null,null,null,null,null,null,null,null,null,0,0]
[323,512500,"Медицинска и лабораторијска опрема",null,null,null,null,null,null,null,null,null,null,0,0]
[324,512600,"Опрема за образовање, културу и спорт",null,79000,null,null,520000,300000,null,null,null,null,520000,300000]
[325,512700,"Опрема за војску",null,null,null,null,null,null,null,null,null,null,0,0]
[326,512800,"Опрема за јавну безбедност",null,null,null,null,null,null,null,null,null,null,0,0]
[327,512900,"Опрема за производњу, моторна, непокретна и немоторна опрема",null,null,null,null,null,null,null,null,null,null,0,0]
[328,513000,"ОСТАЛЕ НЕКРЕТНИНЕ И ОПРЕМА (329)",{"$f":"D359","v":0},{"$f":"E359","v":0},0,0,0,0,0,0,0,0,0,0]
[{"$f":"A358+1","v":329},513100,"Остале некретнине и опрема",null,null,null,null,null,null,null,null,null,null,0,0]
[330,514000,"КУЛТИВИСАНА ИМОВИНА (331)",{"$f":"D361","v":0},{"$f":"E361","v":0},0,0,0,0,0,0,0,0,0,0]
[331,514100,"Култивисана имовина",null,null,null,null,null,null,null,null,null,null,0,0]
[332,515000,"НЕМАТЕРИЈАЛНА ИМОВИНА (333)",{"$f":"D363","v":0},{"$f":"E363","v":0},0,0,0,0,0,0,0,0,0,0]
[333,515100,"Нематеријална имовина",null,null,null,null,null,null,null,null,null,null,0,0]
[334,520000,"ЗАЛИХЕ (335 + 337 + 341)",{"$f":"D365+D367+D371","v":0},0,0,0,0,0,0,0,0,0,0,0]
[335,521000,"РОБНЕ РЕЗЕРВЕ (336)",{"$f":"D366","v":0},0,0,0,0,0,0,0,0,0,0,0]
[336,521100,"Робне резерве",null,null,null,null,null,null,null,null,null,null,0,0]
[337,522000,"ЗАЛИХЕ ПРОИЗВОДЊЕ (од 338 до 340)",{"$f":"SUM(D368:D370)","v":0},0,0,0,0,0,0,0,0,0,0,0]
[338,522100,"Залихе материјала",null,null,null,null,null,null,null,null,null,null,0,0]
[339,522200,"Залихе недовршене производње",null,null,null,null,null,null,null,null,null,null,0,0]
[340,522300,"Залихе готових производа",null,null,null,null,null,null,null,null,null,null,0,0]
[341,523000,"ЗАЛИХЕ РОБЕ ЗА ДАЉУ ПРОДАЈУ (342)",{"$f":"D372","v":0},0,0,0,0,0,0,0,0,0,0,0]
[342,523100,"Залихе робе за даљу продају",null,null,null,null,null,null,null,null,null,null,0,0]
[343,530000,"ДРАГОЦЕНОСТИ (344)",{"$f":"D374","v":0},0,0,0,0,0,0,0,0,0,0,0]
[344,531000,"ДРАГОЦЕНОСТИ (345)",0,0,0,0,0,0,0,0,0,0,0,0]
[345,531100,"Драгоцености",null,null,null,null,null,null,null,null,null,null,0,0]
[346,540000,"ПРИРОДНА ИМОВИНА (347 + 349 + 351)",{"$f":"D377+D379+D381","v":0},0,0,0,0,0,0,0,0,0,0,0]
[347,541000,"ЗЕМЉИШТЕ (348)",{"$f":"D378","v":0},0,0,0,0,0,0,0,0,0,0,0]
[348,541100,"Земљиште",null,null,null,null,null,null,null,null,null,null,0,0]
[349,542000,"РУДНА БОГАТСТВА (350)",{"$f":"D380","v":0},0,0,0,0,0,0,0,0,0,0,0]
[350,542100,"Копови",null,null,null,null,null,null,null,null,null,null,0,0]
[351,543000,"ШУМЕ И ВОДЕ (352 + 353)",{"$f":"SUM(D382:D383)","v":0},0,0,0,0,0,0,0,0,0,0,0]
[352,543100,"Шуме",null,null,null,null,null,null,null,null,null,null,0,0]
[353,543200,"Воде",null,null,null,null,null,null,null,null,null,null,0,0]
[354,550000,"НЕФИНАНСИЈСКА ИМОВИНА КОЈА СЕ ФИНАНСИРА ИЗ СРЕДСТАВА ЗА РЕАЛИЗАЦИЈУ НАЦИОНАЛНОГ ИНВЕСТИЦИОНОГ ПЛАНА (355)",{"$f":"D385","v":0},0,0,0,0,0,0,0,0,0,0,0]
[355,551000,"НЕФИНАНСИЈСКА ИМОВИНА КОЈА СЕ ФИНАНСИРА ИЗ СРЕДСТАВА ЗА РЕАЛИЗАЦИЈУ НАЦИОНАЛНОГ ИНВЕСТИЦИОНОГ ПЛАНА (356)",0,0,0,0,0,0,0,0,0,0,0,0]
[356,551100,"Нефинансијска имовина која се финансира из средстава за реализацију националног инвестиционог плана",null,null,null,null,null,null,null,null,null,null,{"$f":"SUM(H386,J386,L386)","v":0},0]
[357,600000,"ИЗДАЦИ ЗА ОТПЛАТУ ГЛАВНИЦЕ И НАБАВКУ ФИНАНСИЈСКЕ ИМОВИНЕ (358 + 383)",{"$f":"D388+D413","v":0},{"$f":"E388+E413","v":0},0,0,0,0,0,0,0,0,0,0]
[358,610000,"ОТПЛАТА ГЛАВНИЦЕ (359 + 369 + 377 + 384)",{"$f":"D389+D399+D407+D409+D411","v":0},{"$f":"E389+E399+E407+E409+E411","v":0},0,0,0,0,0,0,0,0,0,0]
[359,611000,"ОТПЛАТА ГЛАВНИЦЕ ДОМАЋИМ КРЕДИТОРИМА (од 360 до 368)",{"$f":"SUM(D390:D398)","v":0},0,0,0,0,0,0,0,0,0,0,0]
[360,611100,"Отплата главнице на домаће хартије од вредности, изузев акција",null,null,null,null,null,null,null,null,null,null,0,0]
[361,611200,"Отплата главнице осталим нивоима власти",null,null,null,null,null,null,null,null,null,null,0,0]
[362,611300,"Отплата главнице домаћим јавним финансијским институцијама",null,null,null,null,null,null,null,null,null,null,0,0]
[363,611400,"Отплата главнице домаћим пословним банкама",null,null,null,null,null,null,null,null,null,null,0,0]
[364,611500,"Отплата главнице осталим домаћим кредиторима",null,null,null,null,null,null,null,null,null,null,0,0]
[365,611600,"Отплата главнице домаћинствима у земљи",null,null,null,null,null,null,null,null,null,null,0,0]
[366,611700,"Отплата главнице на домаће финансијске деривате",null,null,null,null,null,null,null,null,null,null,0,0]
[367,611800,"Отплата домаћих меница",null,null,null,null,null,null,null,null,null,null,0,0]
[368,611900,"Исправка унутрашњег дуга",null,null,null,null,null,null,null,null,null,null,0,0]
[369,612000,"ОТПЛАТА ГЛАВНИЦЕ СТРАНИМ КРЕДИТОРИМА (од 370 до 376)",{"$f":"SUM(D400:D406)","v":0},0,0,0,0,0,0,0,0,0,0,0]
[370,612100,"Отплата главнице на хартије од вредности, изузев акција, емитоване на иностраном финансијском тржишту",null,null,null,null,null,null,null,null,null,null,0,0]
[371,612200,"Отплата главнице страним владама",null,null,null,null,null,null,null,null,null,null,0,0]
[372,612300,"Отплата главнице мултилатералним институцијама",null,null,null,null,null,null,null,null,null,null,0,0]
[373,612400,"Отплате главнице страним пословним банкама",null,null,null,null,null,null,null,null,null,null,0,0]
[374,612500,"Отплате главнице осталим страним кредиторима",null,null,null,null,null,null,null,null,null,null,0,0]
[375,612600,"Отплата главнице на стране финансијске деривате",null,null,null,null,null,null,null,null,null,null,0,0]
[376,612900,"Исправка спољног дуга",null,null,null,null,null,null,null,null,null,null,0,0]
[377,613000,"ОТПЛАТА ГЛАВНИЦЕ ПО ГАРАНЦИЈАМА (378)",{"$f":"D408","v":0},{"$f":"E408","v":0},0,0,0,0,0,0,0,0,0,0]
[378,613100,"Отплата главнице по гаранцијама",null,null,null,null,null,null,null,null,null,null,0,0]
[379,614000,"ОТПЛАТА ГЛАВНИЦЕ ЗА ФИНАНСИЈСКИ ЛИЗИНГ (380)",{"$f":"D410","v":0},{"$f":"E410","v":0},0,0,0,0,0,0,0,0,0,0]
[380,614100,"Отплата главнице за финансијски лизинг",null,null,null,null,null,null,null,null,null,null,0,0]
[381,615000,"ОТПЛАТА ГАРАНЦИЈА ПО КОМЕРЦИЈАЛНИМ ТРАНСАКЦИЈАМА (382)",{"$f":"D412","v":0},{"$f":"E412","v":0},0,0,0,0,0,0,0,0,0,0]
[382,615100,"Отплата гаранција по комерцијалним трансакцијама",null,null,null,null,null,null,null,null,null,null,0,0]
[383,620000,"НАБАВКА ФИНАНСИЈСКЕ ИМОВИНЕ (384 + 394 + 403)",{"$f":"D414+D424+D433","v":0},{"$f":"E414+E424+E433","v":0},0,0,0,0,0,0,0,0,0,0]
[384,621000,"НАБАВКА ДОМАЋЕ ФИНАНСИЈСКЕ ИМОВИНЕ (од 385 до 393)",{"$f":"SUM(D415:D423)","v":0},0,0,0,0,0,0,0,0,0,0,0]
[385,621100,"Набавка домаћих хартија од вредности, изузев акција",null,null,null,null,null,null,null,null,null,null,0,0]
[386,621200,"Кредити осталим нивоима власти",null,null,null,null,null,null,null,null,null,null,0,0]
[387,621300,"Кредити домаћим јавним финансијским институцијама",null,null,null,null,null,null,null,null,null,null,0,0]
[388,621400,"Кредити домаћим пословним банкама",null,null,null,null,null,null,null,null,null,null,0,0]
[389,621500,"Кредити домаћим нефинансијским јавним институцијама",null,null,null,null,null,null,null,null,null,null,0,0]
[390,621600,"Кредити физичким лицима и домаћинствима у земљи",null,null,null,null,null,null,null,null,null,null,0,0]
[391,621700,"Кредити невладиним организацијама у земљи",null,null,null,null,null,null,null,null,null,null,0,0]
[392,621800,"Кредити домаћим нефинансијским приватним предузећима",null,null,null,null,null,null,null,null,null,null,0,0]
[{"$f":"A422+1","v":393},621900,"Набавка домаћих акција и осталог капитала",null,null,null,null,null,null,null,null,null,null,0,0]
[394,622000,"НАБАВКА СТРАНЕ ФИНАНСИЈСКЕ ИМОВИНЕ (од 395 до 402)",{"$f":"SUM(D425:D432)","v":0},{"$f":"SUM(E425:E432)","v":0},0,0,0,0,0,0,0,0,0,0]
[395,622100,"Набавка страних хартија од вредности, изузев акција",null,null,null,null,null,null,null,null,null,null,0,0]
[396,622200,"Кредити страним владама",null,null,null,null,null,null,null,null,null,null,0,0]
[397,622300,"Кредити међународним организацијама",null,null,null,null,null,null,null,null,null,null,0,0]
[398,622400,"Кредити страним пословним банкама",null,null,null,null,null,null,null,null,null,null,0,0]
[399,622500,"Кредити страним нефинансијским институцијама",null,null,null,null,null,null,null,null,null,null,0,0]
[400,622600,"Кредити страним невладиним организацијама",null,null,null,null,null,null,null,null,null,null,0,0]
[401,622700,"Набавка страних акција и осталог капитала",null,null,null,null,null,null,null,null,null,null,0,0]
[402,622800,"Куповина стране валуте",null,null,null,null,null,null,null,null,null,null,0,0]
[403,623000,"НАБАВКА ФИНАНСИЈСКЕ ИМОВИНЕ КОЈА СЕ ФИНАНСИРА ИЗ СРЕДСТАВА ЗА РЕАЛИЗАЦИЈУ НАЦИОНАЛНОГ ИНВЕСТИЦИОНОГ ПЛАНА (404)",{"$f":"D434","v":0},{"$f":"E434","v":0},0,0,0,0,0,0,0,0,0,0]
[404,623100,"Набавка финансијске имовине која се финансира из средстава за реализацију националног инвестиционог плана ",null,null,null,null,null,null,null,null,null,null,0,0]
[405,null,"УКУПНИ РАСХОДИ И ИЗДАЦИ (147 + 311 + 357)",{"$f":"D387+D341+D177","v":8057000},68750000,16169000,72873000,16475000,80491000,17630000,104880000,17630000,104880000,51735000,290251000]
[null,null,"Разлика (146-405 ) [ Укупни приходи, примања и пренета средства - Укупни расходи и издаци]",{"$f":"D176-D435","v":0},{"$f":"E176-E435","v":9000},0,9000,0,0,0,0,0,0,0,0]
[]
["Шифра","Извори финансирања програмске активности",null,"Вредност у базној години (2017)",null,"Очекивана вредност у 2018. години",null,"Вредност у 2019. години",null,"Вредност у 2020. години",null,"Вредност у 2021. години",null,"Укупно (2019-2021)"]
[1,2,null,3,null,4,null,5,null,6,null,7,null,"8=(5+6+7)"]
["01","Приходи из буџета",null,73886000,null,85932000,null,93061000,null,118530000,null,118530000,null,{"$f":"SUM(H440,J440,L440)","v":330121000}]
["02","Трансфери између корисника на истом нивоу",null,null,null,null,null,null,null,null,null,null,null,{"$f":"SUM(H441,J441,L441)","v":0}]
["03","Социјални доприноси",null,null,null,null,null,null,null,null,null,null,null,0]
["04","Сопствени приходи буџетских корисника",null,null,null,null,null,null,null,null,null,null,null,0]
["05","Донације од иностраних земаља",null,null,null,null,null,null,null,null,null,null,null,0]
["06","Донације од међународних организација",null,124000,null,76000,null,425000,null,460000,null,460000,null,1345000]
["07","Трансфери од других нивоа власти",null,null,null,null,null,null,null,null,null,null,null,0]
["08","Добровољни трансфери од физичких и правних лица",null,null,null,null,null,null,null,null,null,null,null,0]
["09","Примања од продаје нефинансијске имовине",null,null,null,null,null,null,null,null,null,null,null,0]
["10","Примања од домаћих задуживања",null,null,null,null,null,null,null,null,null,null,null,0]
["11","Примања од иностраних задуживања",null,null,null,null,null,null,null,null,null,null,null,0]
["12","Примања од отплате датих кредита и продаје финансијске имовине",null,null,null,null,null,null,null,null,null,null,null,0]
["13","Нераспоређени вишак прихода из ранијих година",null,null,null,null,null,null,null,null,null,null,null,0]
["14","Неутрошена средства од приватизације из ранијих година",null,null,null,null,null,null,null,null,null,null,null,0]
["15","Неутрошена средства донација из ранијих година",null,null,null,null,null,null,null,null,null,null,null,0]
["16","Родитељски динар за ваннаставне активности",null,2806000,null,3034000,null,3480000,null,3520000,null,3520000,null,10520000]
["56","Финансијска помоћ ЕУ",null,null,null,null,null,null,null,null,null,null,null,0]
["УКУПНО  ЗА:",null,{"$f":"$D$5","v":"2002-0001 Функционисање основних школа"},{"$f":"SUM(D440:E456)","v":76816000},null,{"$f":"SUM(F440:G456)","v":89042000},null,{"$f":"SUM(H440:I456)","v":96966000},null,{"$f":"SUM(J440:K456)","v":122510000},null,{"$f":"SUM(L440:M456)","v":122510000},null,{"$f":"SUM(H457:M457)","v":341986000}]
[null,null,"Разлика ( укупни расходи и издаци -  укупни извори )",{"$f":"D435+E435-D457","v":-9000},null,{"$f":"F435+G435-F457","v":0},null,{"$f":"H435+I435-H457","v":0},null,{"$f":"J435+K435-J457","v":0},null,{"$f":"L435+M435-L457","v":0},null,{"$f":"N435+O435-N457","v":0}]
[]
["*","1-3 циља за сваку програмску активност"]
["**","1-3 индикатора исхода/излазног резултата за сваки циљ",null,null,"Напомена:"]
[null,null,null,null,"у колони","Приходи из","буџета","унешени су ","приходи из","буџета града"]
[null,null,null,null,"а у колони","Приходи из","осталих ","извора","унешени су","приходи из",null,null,"Одговорно лице"]
[null,null,null,null,"буџета","републике,","донације и ","остали прих."]
[null,"Датум:","25.09.2019.",null,null,null,null,null,null,null,null,null,"Ненад","Младенови","ћ"]

{"sheet":"Пројекат (2)","index":2,"n_rows":463,"n_cols":15,"rows_kept":463,"cut":false,"hidden":false,"merged":[[460,12,460,13],[455,3,455,4],[455,5,455,6],[455,7,455,8],[455,9,455,10],[455,11,455,12],[455,13,455,14],[453,13,453,14],[454,0,454,1],[454,3,454,4],[454,5,454,6],[454,7,454,8],[454,9,454,10],[454,11,454,12],[454,13,454,14],[453,1,453,2],[453,3,453,4],[453,5,453,6],[453,7,453,8],[453,9,453,10],[453,11,453,12],[451,13,451,14],[452,1,452,2],[452,3,452,4],[452,5,452,6],[452,7,452,8],[452,9,452,10],[452,11,452,12],[452,13,452,14],[451,1,451,2],[451,3,451,4],[451,5,451,6],[451,7,451,8],[451,9,451,10],[451,11,451,12],[449,13,449,14],[450,1,450,2],[450,3,450,4],[450,5,450,6],[450,7,450,8],[450,9,450,10],[450,11,450,12],[450,13,450,14],[449,1,449,2],[449,3,449,4],[449,5,449,6],[449,7,449,8],[449,9,449,10],[449,11,449,12],[447,13,447,14],[448,1,448,2],[448,3,448,4],[448,5,448,6],[448,7,448,8],[448,9,448,10],[448,11,448,12],[448,13,448,14],[447,1,447,2],[447,3,447,4],[447,5,447,6],[447,7,447,8],[447,9,447,10],[447,11,447,12],[445,13,445,14],[446,1,446,2],[446,3,446,4],[446,5,446,6],[446,7,446,8],[446,9,446,10],[446,11,446,12],[446,13,446,14],[445,1,445,2],[445,3,445,4],[445,5,445,6],[445,7,445,8],[445,9,445,10],[445,11,445,12],[443,13,443,14],[444,1,444,2],[444,3,444,4],[444,5,444,6],[444,7,444,8],[444,9,444,10],[444,11,444,12],[444,13,444,14],[443,1,443,2],[443,3,443,4],[443,5,443,6],[443,7,443,8],[443,9,443,10],[443,11,443,12],[441,13,441,14],[442,1,442,2],[442,3,442,4],[442,5,442,6],[442,7,442,8],[442,9,442,10],[442,11,442,12],[442,13,442,14],[441,1,441,2],[441,3,441,4],[441,5,441,6],[441,7,441,8],[441,9,441,10],[441,11,441,12],[439,13,439,14],[440,1,440,2],[440,3,440,4],[440,5,440,6],[440,7,440,8],[440,9,440,10],[440,11,440,12],[440,13,440,14],[439,1,439,2],[439,3,439,4],[439,5,439,6],[439,7,439,8],[439,9,439,10],[439,11,439,12],[437,13,437,14],[438,1,438,2],[438,3,438,4],[438,5,438,6],[438,7,438,8],[438,9,438,10],[438,11,438,12],[438,13,438,14],[437,1,437,2],[437,3,437,4],[437,5,437,6],[437,7,437,8],[437,9,437,10],[437,11,437,12],[435,13,435,14],[436,1,436,2],[436,3,436,4],[436,5,436,6],[436,7,436,8],[436,9,436,10],[436,11,436,12],[436,13,436,14],[435,1,435,2],[435,3,435,4],[435,5,435,6],[435,7,435,8],[435,9,435,10],[435,11,435,12],[24,0,24,14],[25,0,26,0],[25,1,26,1],[25,2,26,2],[25,3,25,4],[25,5,25,6],[25,7,25,8],[25,9,25,10],[25,11,25,12],[25,13,25,14],[19,0,21,0],[19,1,21,2],[19,3,19,5],[19,11,19,14],[20,3,20,5],[20,11,20,14],[21,3,21,5],[21,11,21,14],[15,0,15,2],[15,3,15,14],[17,0,18,0],[17,1,18,2],[17,3,17,14],[18,3,18,5],[18,11,18,14],[12,0,12,2],[12,3,12,14],[13,0,13,2],[13,3,13,14],[14,0,14,2],[14,3,14,14],[9,0,9,2],[9,3,9,14],[10,0,10,2],[10,3,10,14],[11,0,11,2],[11,3,11,14],[6,0,6,2],[6,3,6,10],[7,0,7,2],[7,3,7,14],[8,0,8,2],[8,3,8,14],[0,0,0,14],[1,0,1,14],[3,0,3,2],[3,3,3,14],[4,0,4,2],[5,0,5,2],[5,3,5,14]]}
["Обрасци за припрему програмског буџета"]
["3. ПРОЈЕКАТ"]
[]
["Програм коме припада:",null,null,{"$f":"IF(Програм!$D$4=\"\",\"\",Програм!$D$4)","v":"Програм 9. Основно образовање и вспитање"}]
["Шифра пројекта:",null,null,{"$f":"Програм!$D$5","v":2002},"П1"]
["Назив пројекта:",null,null,"Унапређење квлитета образовања и васпитања"]
["Функција:",null,null,"912- Основно образовање"]
["Назив организационе јединице/Буџетски корисник:",null,null,"ОШ ,, ДЕСАНКА  МАКСИМОВИЋ,,  ГРДЕЛИЦА"]
["Сврха:",null,null,"Унапређење квлитета образовања и васпитања"]
["Основ:",null,null,"Пројетна документација"]
["Опис:",null,null,"Израда ограде"]
["Трајање пројекта:",null,null,2019]
["Ознака за капитални пројекат:",null,null,"пројетна документација"]
["Ознака да ли је ИПА пројекат:"]
["Мере и поглавље преговора о приступању ЕУ:"]
["Одговорно лице за спровођење пројекта:",null,null,"Ненад Младеновић"]
[]
[null,"Циљ*",null,"Индикатори**"]
[null,null,null,"Назив индикатора",null,null,"Вредност у базној години (2017)","Очекивана вредност у 2018. години","Циљана вредност у 2019. години","Циљана вредност у 2020. години","Циљана вредност у 2021. години","Извор верификације"]
[1,"Унапређење квалитета образовања",null,"Број деце које похађају ваннаставне активности",null,null,0.75,0.8,0.9,0.95,0.95,"Школска документација"]
[null,null,null,"Број стручних лица која су добила најмање 24 бода за стручно усавршавње",null,null,0.5,0.55000000000000004,0.6,0.65,0.65,"Извештај о стручном усавршавању"]
[]
[]
[]
["ПЛАНИРАНА СРЕДСТВА ЗА ПРОЈЕКАТ"]
["Рбр.","Конто","ОПИС","Вредност у базној години (2017)",null,"Очекивана вредност у 2018. години",null,"Вредност у 2019. години",null,"Вредност у 2020. години",null,"Вредност у 2021. години",null,"Укупно (2019-2021)"]
[null,null,null,"Приходи из буџета","Приходи из осталих извора","Приходи из буџета","Приходи из осталих извора","Приходи из буџета","Приходи из осталих извора","Приходи из буџета","Приходи из осталих извора","Приходи из буџета","Приходи из осталих извора","Приходи из буџета","Приходи из осталих извора"]
[1,2,3,4,5,6,7,8,9,10,11,12,13,"14=(8+10+12)","15=(9+11+13)"]
[1,300000,"КАПИТАЛ, УТВРЂИВАЊЕ РЕЗУЛТАТА ПОСЛОВАЊА И ВАНБИЛАНСНА ЕВИДЕНЦИЈА\n(2 + 5)",{"$f":"SUM(D30,D33)","v":0},{"$f":"SUM(E30,E33)","v":0},0,0,0,0,0,0,0,0,0,0]
[2,310000,"КАПИТАЛ (3)",{"$f":"SUM(D31)","v":0},{"$f":"SUM(E31)","v":0},0,0,0,0,0,0,0,0,0,0]
[3,311000,"КАПИТАЛ (4)",{"$f":"SUM(D32)","v":0},0,0,0,0,0,0,0,0,0,0,0]
[4,311700,"Пренета неутрошена средства из ранијих година",null,null,null,null,null,null,null,null,null,null,{"$f":"SUM(H32,J32,L32)","v":0},{"$f":"SUM(I32,K32,M32)","v":0}]
[5,320000,"УТВРЂИВАЊЕ РЕЗУЛТАТА ПОСЛОВАЊА (6)",{"$f":"SUM(D34)","v":0},{"$f":"SUM(E34)","v":0},0,0,0,0,0,0,0,0,0,0]
[6,321000,"УТВРЂИВАЊЕ РЕЗУЛТАТА ПОСЛОВАЊА (7)",{"$f":"SUM(D35)","v":0},0,0,0,0,0,0,0,0,0,0,0]
[7,321300,"Нераспоређени вишак прихода и примања или дефицит из ранијих година",null,null,null,null,null,null,null,null,null,null,{"$f":"SUM(H35,J35,L35)","v":0},{"$f":"SUM(I35,K35,M35)","v":0}]
[{"$f":"A35+1","v":8},700000,"ТЕКУЋИ ПРИХОДИ \n(9 + 32 + 44 + 69 + 74 +78)",{"$f":"D37+D60+D72+D97+D102+D106","v":0},{"$f":"E37+E60+E72+E97+E102+E106","v":0},0,0,0,0,0,0,0,0,{"$f":"N37+N60+N72+N97+N102+N106","v":0},0]
[{"$f":"A36+1","v":9},710000,"ПОРЕЗИ \n(10 + 14 + 16 + 23 + 29)",{"$f":"D38+D42+D44+D51+D57","v":0},{"$f":"E38+E42+E44+E51+E57","v":0},0,0,0,0,0,0,0,0,0,0]
[10,711000,"ПОРЕЗ НА ДОХОДАК, ДОБИТ И КАПИТАЛНЕ ДОБИТКЕ (од 11 до 13)",{"$f":"SUM(D39:D41)","v":0},{"$f":"SUM(E39:E41)","v":0},0,0,0,0,0,0,0,0,{"$f":"SUM(H38,J38,L38)","v":0},0]
[11,711100,"Порези на доходак и капиталнe добиткe које плаћају физичка лица",null,null,null,null,null,null,null,null,null,null,0,0]
[12,711200,"Порези на добит и капиталне добитке које плаћају предузећа и друга правна лица",null,null,null,null,null,null,null,null,null,null,0,0]
[13,711300,"Порези на доходак, добит и капиталне добитке који се не могу разврстати између физичких и правних лица",null,null,null,null,null,null,null,null,null,null,0,0]
[14,712000,"ПОРЕЗ НА ФОНД ЗАРАДА (15)",{"$f":"SUM(D43)","v":0},0,0,0,0,0,0,0,0,0,0,0]
[15,712100,"Порез на фонд зарада",null,null,null,null,null,null,null,null,null,null,0,0]
[16,713000,"ПОРЕЗ НА ИМОВИНУ (од 17 до 22)",{"$f":"SUM(D45:D50)","v":0},0,0,0,0,0,0,0,0,0,0,0]
[17,713100,"Периодични порези на непокретности",null,null,null,null,null,null,null,null,null,null,0,0]
[18,713200,"Периодични порези на нето имовину",null,null,null,null,null,null,null,null,null,null,0,0]
[19,713300,"Порези на заоставштину, наслеђе и поклон",null,null,null,null,null,null,null,null,null,null,0,0]
[20,713400,"Порези на финансијске и капиталне трансакције",null,null,null,null,null,null,null,null,null,null,0,0]
[21,713500,"Други једнократни порези на имовину",null,null,null,null,null,null,null,null,null,null,0,0]
[22,713600,"Други периодични порези на имовину",null,null,null,null,null,null,null,null,null,null,0,0]
[23,714000,"ПОРЕЗ НА ДОБРА И УСЛУГЕ (од 24 до 28)",{"$f":"SUM(D52:D56)","v":0},0,0,0,0,0,0,0,0,0,0,0]
[24,714100,"Општи порези на добра и услуге",null,null,null,null,null,null,null,null,null,null,0,0]
[25,714300,"Добит фискалних монопола",null,null,null,null,null,null,null,null,null,null,0,0]
[26,714400,"Порези на појединачне услуге",null,null,null,null,null,null,null,null,null,null,0,0]
[27,714500,"Порези, таксе и накнаде на употребу добара, на дозволу да се добра употребљавају или делатности обављају",null,null,null,null,null,null,null,null,null,null,0,0]
[28,714600,"Други порези на добра и услуге",null,null,null,null,null,null,null,null,null,null,0,0]
[29,716000,"ДРУГИ ПОРЕЗИ (30 + 31)",{"$f":"SUM(D58:D59)","v":0},0,0,0,0,0,0,0,0,0,0,0]
[30,716100,"Други порези које искључиво плаћају предузећа, односно предузетници",null,null,null,null,null,null,null,null,null,null,0,0]
[31,716200,"Други порези које плаћају остала лица или који се не могу идентификовати",null,null,null,null,null,null,null,null,null,null,0,0]
[32,730000,"ДОНАЦИЈЕ, ПОМОЋИ И ТРАНСФЕРИ \n(33 + 36 + 41)",{"$f":"D61+D64+D69","v":0},{"$f":"E61+E64+E69","v":0},0,0,0,0,0,0,0,0,0,0]
[33,731000,"ДОНАЦИЈЕ ОД ИНОСТРАНИХ ДРЖАВА (34 + 35)",{"$f":"SUM(D62:D63)","v":0},0,0,0,0,0,0,0,0,0,0,0]
[34,731100,"Текуће донације од иностраних држава",null,null,null,null,null,null,null,null,null,null,0,0]
[35,731200,"Капиталне донације од иностраних држава",null,null,null,null,null,null,null,null,null,null,0,0]
[36,732000,"ДОНАЦИЈЕ И ПОМОЋИ ОД МЕЂУНАРОДНИХ ОРГАНИЗАЦИЈА (од 37 до 40)",{"$f":"SUM(D65:D68)","v":0},{"$f":"SUM(E65:E68)","v":0},0,0,0,0,0,0,0,0,0,0]
[37,732100,"Текуће донације од међународних организација",null,null,null,null,null,null,null,null,null,null,0,0]
[38,732200,"Капиталне донације од међународних организација",null,null,null,null,null,null,null,null,null,null,0,0]
[39,732300,"Текуће помоћи од ЕУ",null,null,null,null,null,null,null,null,null,null,0,0]
[40,732400,"Капиталне помоћи од ЕУ",null,null,null,null,null,null,null,null,null,null,0,0]
[41,733000,"ТРАНСФЕРИ ОД ДРУГИХ НИВОА ВЛАСТИ (42 + 43)",{"$f":"SUM(D70:D71)","v":0},0,0,0,0,0,0,0,0,0,{"$f":"SUM(H69,J69,L69)","v":0},0]
[42,733100,"Текући трансфери од других нивоа власти",null,null,null,null,null,null,null,null,null,null,0,0]
[43,733200,"Капитални трансфери од других нивоа власти",null,null,null,null,null,null,null,null,null,null,0,0]
[44,740000,"ДРУГИ ПРИХОДИ (45 + 52 + 57 + 64 + 67)",{"$f":"D73+D80+D85+D92+D95","v":0},{"$f":"E73+E80+E85+E92+E95","v":0},0,0,0,0,0,0,0,0,0,0]
[45,741000,"ПРИХОДИ ОД ИМОВИНЕ (од 46 до 51)",{"$f":"SUM(D74:D79)","v":0},{"$f":"SUM(E74:E79)","v":0},0,0,0,0,0,0,0,0,0,0]
[46,741100,"Камате",null,null,null,null,null,null,null,null,null,null,0,0]
[47,741200,"Дивиденде",null,null,null,null,null,null,null,null,null,null,0,0]
[48,741300,"Повлачење прихода од квази корпорација",null,null,null,null,null,null,null,null,null,null,0,0]
[49,741400,"Приход од имовине који припада имаоцима полиса осигурања",null,null,null,null,null,null,null,null,null,null,0,0]
[50,741500,"Закуп непроизведене имовине",null,null,null,null,null,null,null,null,null,null,0,0]
[51,741600,"Финансијске промене на финансијским лизинзима",null,null,null,null,null,null,null,null,null,null,0,0]
[52,742000,"ПРИХОДИ ОД ПРОДАЈЕ ДОБАРА И УСЛУГА (од 53 до 56)",{"$f":"SUM(D81:D84)","v":0},0,0,0,0,0,0,0,0,0,0,0]
[53,742100,"Приходи од продаје добара и услуга или закупа од стране тржишних организација",null,null,null,null,null,null,null,null,null,null,0,0]
[54,742200,"Таксе и накнаде",null,null,null,null,null,null,null,null,null,null,0,0]
[55,742300,"Споредне продаје добара и услуга које врше државне нетржишне јединице",null,null,null,null,null,null,null,null,null,null,0,0]
[56,742400,"Импутиране продаје добара и услуга",null,null,null,null,null,null,null,null,null,null,0,0]
[57,743000,"НОВЧАНЕ КАЗНЕ И ОДУЗЕТА ИМОВИНСКА КОРИСТ (од 58 до 63)",{"$f":"SUM(D86:D91)","v":0},0,0,0,0,0,0,0,0,0,0,0]
[58,743100,"Приходи од новчаних казни за кривична дела",null,null,null,null,null,null,null,null,null,null,0,0]
[59,743200,"Приходи од новчаних казни за привредне преступе",null,null,null,null,null,null,null,null,null,null,0,0]
[60,743300,"Приходи од новчаних казни за прекршаје",null,null,null,null,null,null,null,null,null,null,0,0]
[61,743400,"Приходи од пенала",null,null,null,null,null,null,null,null,null,null,0,0]
[62,743500,"Приходи од одузете имовинске користи",null,null,null,null,null,null,null,null,null,null,0,0]
[63,743900,"Остале новчане казне, пенали и приходи од одузете имовинске користи",null,null,null,null,null,null,null,null,null,null,0,0]
[64,744000,"ДОБРОВОЉНИ ТРАНСФЕРИ ОД ФИЗИЧКИХ И ПРАВНИХ ЛИЦА (65 + 66)",{"$f":"SUM(D93:D94)","v":0},0,0,0,0,0,0,0,0,0,0,0]
[65,744100,"Текући добровољни трансфери од физичких и правних лица",null,null,null,null,null,null,null,null,null,null,0,0]
[66,744200,"Капитални добровољни трансфери од физичких и правних лица",null,null,null,null,null,null,null,null,null,null,0,0]
[67,745000,"МЕШОВИТИ И НЕОДРЕЂЕНИ ПРИХОДИ (68)",{"$f":"D96","v":0},{"$f":"E96","v":0},0,0,0,0,0,0,0,0,0,0]
[68,745100,"Мешовити и неодређени приходи",null,null,null,null,null,null,null,null,null,null,0,0]
[69,770000,"МЕМОРАНДУМСКЕ СТАВКЕ ЗА РЕФУНДАЦИЈУ РАСХОДА (70 + 72)",{"$f":"D98+D100","v":0},0,0,0,0,0,0,0,0,0,0,0]
[70,771000,"МЕМОРАНДУМСКЕ СТАВКЕ ЗА РЕФУНДАЦИЈУ РАСХОДА (71)",{"$f":"D99","v":0},{"$f":"E99","v":0},0,0,0,0,0,0,0,0,0,0]
[71,771100,"Меморандумске ставке за рефундацију расхода",null,null,null,null,null,null,null,null,null,null,0,0]
[72,772000,"МЕМОРАНДУМСКЕ СТАВКЕ ЗА РЕФУНДАЦИЈУ РАСХОДА ИЗ ПРЕТХОДНЕ ГОДИНЕ (73)",{"$f":"D101","v":0},{"$f":"E101","v":0},0,0,0,0,0,0,0,0,0,0]
[{"$f":"A100+1","v":73},772100,"Меморандумске ставке за рефундацију расхода из претходне године",null,null,null,null,null,null,null,null,null,null,0,0]
[74,780000,"ТРАНСФЕРИ ИЗМЕЂУ БУЏЕТСКИХ КОРИСНИКА НА ИСТОМ НИВОУ (75)",{"$f":"D103","v":0},0,0,0,0,0,0,0,0,0,0,0]
[75,781000,"ТРАНСФЕРИ ИЗМЕЂУ БУЏЕТСКИХ КОРИСНИКА НА ИСТОМ НИВОУ (76 + 77)",{"$f":"SUM(D104:D105)","v":0},0,0,0,0,0,0,0,0,0,0,0]
[76,781100,"Трансфери између буџетских корисника на истом нивоу",null,null,null,null,null,null,null,null,null,null,0]
[77,781300,"Трансфери између организација обавезног социјалног осигурања",null,null,null,null,null,null,null,null,null,null,{"$f":"SUM(H105,J105,L105)","v":0},0]
[78,790000,"ПРИХОДИ ИЗ БУЏЕТА (79)",{"$f":"D107","v":0},0,0,0,0,0,0,0,0,0,0,0]
[79,791000,"ПРИХОДИ ИЗ БУЏЕТА (80)",{"$f":"D108","v":0},0,0,0,0,0,0,0,0,0,0,{"$f":"SUM(I107,K107,M107)","v":0}]
[80,791100,"Приходи из буџета",null,null,null,null,null,null,null,null,null,null,0]
[81,800000,"ПРИМАЊА ОД ПРОДАЈЕ НЕФИНАНСИЈСКЕ ИМОВИНЕ (82 + 89 + 96 + 99)",{"$f":"D110+D117+D124+D127","v":0},{"$f":"E110+E117+E124+E127","v":0},0,0,0,0,0,0,0,0,0,0]
[82,810000,"ПРИМАЊА ОД ПРОДАЈЕ ОСНОВНИХ СРЕДСТАВА (83 + 85 + 87)",{"$f":"D111+D113+D115","v":0},{"$f":"E111+E113+E115","v":0},0,0,0,0,0,0,0,0,0,0]
[83,811000,"ПРИМАЊА ОД ПРОДАЈЕ НЕПОКРЕТНОСТИ (84)",{"$f":"D112","v":0},{"$f":"E112","v":0},0,0,0,0,0,0,0,0,0,0]
[84,811100,"Примања од продаје непокретности",null,null,null,null,null,null,null,null,null,null,0,0]
[85,812000,"ПРИМАЊА ОД ПРОДАЈЕ ПОКРЕТНЕ ИМОВИНЕ (86)",{"$f":"D114","v":0},0,0,0,0,0,0,0,0,0,0,0]
[86,812100,"Примања од продаје покретне имовине",null,null,null,null,null,null,null,null,null,null,0,0]
[87,813000,"ПРИМАЊА ОД ПРОДАЈЕ ОСТАЛИХ ОСНОВНИХ СРЕДСТАВА (88)",{"$f":"D116","v":0},0,0,0,0,0,0,0,0,0,0,0]
[88,813100,"Примања од продаје осталих основних средстава",null,null,null,null,null,null,null,null,null,null,0,0]
[89,820000,"ПРИМАЊА ОД ПРОДАЈЕ ЗАЛИХА (90 + 92 + 94)",{"$f":"D118+D120+D122","v":0},0,0,0,0,0,0,0,0,0,0,0]
[90,821000,"ПРИМАЊА ОД ПРОДАЈЕ РОБНИХ РЕЗЕРВИ (91)",{"$f":"D119","v":0},0,0,0,0,0,0,0,0,0,0,0]
[91,821100,"Примања од продаје робних резерви",null,null,null,null,null,null,null,null,null,null,0,0]
[92,822000,"ПРИМАЊА ОД ПРОДАЈЕ ЗАЛИХА  ПРОИЗВОДЊЕ (93)",{"$f":"D121","v":0},0,0,0,0,0,0,0,0,0,0,0]
[93,822100,"Примања од продаје залиха производње",null,null,null,null,null,null,null,null,null,null,0,0]
[94,823000,"ПРИМАЊА ОД ПРОДАЈЕ РОБЕ ЗА ДАЉУ ПРОДАЈУ (95)",{"$f":"D123","v":0},0,0,0,0,0,0,0,0,0,0,0]
[95,823100,"Примања од продаје робе за даљу продају",null,null,null,null,null,null,null,null,null,null,0,0]
[96,830000,"ПРИМАЊА ОД ПРОДАЈЕ ДРАГОЦЕНОСТИ (97)",{"$f":"D125","v":0},0,0,0,0,0,0,0,0,0,0,0]
[97,831000,"ПРИМАЊА ОД ПРОДАЈЕ ДРАГОЦЕНОСТИ (98)",0,0,0,0,0,0,0,0,0,0,0,0]
[98,831100,"Примања од продаје драгоцености",null,null,null,null,null,null,null,null,null,null,0,0]
[99,840000,"ПРИМАЊА ОД ПРОДАЈЕ ПРИРОДНЕ ИМОВИНЕ (100 + 102 + 104)",{"$f":"D128+D130+D132","v":0},0,0,0,0,0,0,0,0,0,0,0]
[100,841000,"ПРИМАЊА ОД ПРОДАЈЕ ЗЕМЉИШТА (101)",{"$f":"D129","v":0},0,0,0,0,0,0,0,0,0,0,0]
[101,841100,"Примања од продаје земљишта",null,null,null,null,null,null,null,null,null,null,0,0]
[102,842000,"ПРИМАЊА ОД ПРОДАЈЕ ПОДЗЕМНИХ БЛАГА (103)",{"$f":"D131","v":0},0,0,0,0,0,0,0,0,0,0,0]
[103,842100,"Примања од продаје подземних блага",null,null,null,null,null,null,null,null,null,null,0,0]
[104,843000,"ПРИМАЊА ОД ПРОДАЈЕ ШУМА И ВОДА (105)",{"$f":"D133","v":0},0,0,0,0,0,0,0,0,0,0,0]
[105,843100,"Примања од продаје шума и вода",null,null,null,null,null,null,null,null,null,null,{"$f":"SUM(H133,J133,L133)","v":0},0]
[106,900000,"ПРИМАЊА ОД ЗАДУЖИВАЊА И ПРОДАЈЕ ФИНАНСИЈСКЕ ИМОВИНЕ (107 + 126)",{"$f":"D135+D154","v":0},{"$f":"E135+E154","v":0},0,0,0,0,0,0,0,0,0,0]
[107,910000,"ПРИМАЊА ОД ЗАДУЖИВАЊА (108+118)",{"$f":"D136+D146","v":0},{"$f":"E136+E146","v":0},0,0,0,0,0,0,0,0,0,0]
[108,911000,"ПРИМАЊА ОД ДОМАЋИХ ЗАДУЖИВАЊА (од 109 до 117)",{"$f":"SUM(D137:D145)","v":0},0,0,0,0,0,0,0,0,0,0,0]
[109,911100,"Примања од емитовања домаћих хартија од вредности, изузев акција",null,null,null,null,null,null,null,null,null,null,0,0]
[110,911200,"Примања од задуживања од осталих нивоа власти",null,null,null,null,null,null,null,null,null,null,0,0]
[111,911300,"Примања од задуживања од јавних финансијских институција у земљи",null,null,null,null,null,null,null,null,null,null,0,0]
[112,911400,"Примања од задуживања од пословних банака у земљи",null,null,null,null,null,null,null,null,null,null,0,0]
[113,911500,"Примања од задуживања код осталих поверилаца у земљи",null,null,null,null,null,null,null,null,null,null,0,0]
[114,911600,"Примања од задуживања од домаћинстава у земљи",null,null,null,null,null,null,null,null,null,null,0,0]
[115,911700,"Примања од домаћих финансијских деривата",null,null,null,null,null,null,null,null,null,null,0,0]
[116,911800,"Примања од домаћих меница",null,null,null,null,null,null,null,null,null,null,0,0]
[117,911900,"Исправка унутрашњег дуга",null,null,null,null,null,null,null,null,null,null,0,0]
[118,912000,"ПРИМАЊА ОД ИНОСТРАНОГ ЗАДУЖИВАЊА (од 119 + 125)",{"$f":"SUM(D147:D153)","v":0},0,0,0,0,0,0,0,0,0,0,0]
[119,912100,"Примања од емитовања хартија од вредности, изузев акција, на иностраном финансијском тржишту",null,null,null,null,null,null,null,null,null,null,0,0]
[120,912200,"Примања од задуживања од иностраних држава",null,null,null,null,null,null,null,null,null,null,0,0]
[121,912300,"Примања од задуживања од мултилатералних институција",null,null,null,null,null,null,null,null,null,null,0,0]
[122,912400,"Примања од задуживања од иностраних пословних банака",null,null,null,null,null,null,null,null,null,null,0,0]
[123,912500,"Примања од задуживања од осталих иностраних поверилаца",null,null,null,null,null,null,null,null,null,null,0,0]
[124,912600,"Примања од иностраних финансијских деривата",null,null,null,null,null,null,null,null,null,null,0,0]
[125,912900,"Исправка спољног дуга",null,null,null,null,null,null,null,null,null,null,0,0]
[126,920000,"ПРИМАЊА ОД ПРОДАЈЕ ФИНАНСИЈСКЕ ИМОВИНЕ (127 + 137)",{"$f":"D155+D165","v":0},0,0,0,0,0,0,0,0,0,0,0]
[127,921000,"ПРИМАЊА ОД ПРОДАЈЕ ДОМАЋЕ ФИНАНСИЈСКЕ ИМОВИНЕ (од 128 до 136) ",{"$f":"SUM(D156:D164)","v":0},0,0,0,0,0,0,0,0,0,0,0]
[128,921100,"Примања од продаје домаћих хартија од вредности, изузев акција",null,null,null,null,null,null,null,null,null,null,0,0]
[129,921200,"Примања од отплате кредита датих осталим нивоима власти",null,null,null,null,null,null,null,null,null,null,0,0]
[130,921300,"Примања од отплате кредита датих домаћим јавним финансијским институцијама",null,null,null,null,null,null,null,null,null,null,0,0]
[131,921400,"Примања од отплате кредита домаћим пословним банкама",null,null,null,null,null,null,null,null,null,null,0,0]
[132,921500,"Примања од отплате кредита датих домаћим јавним нефинансијским институцијама",null,null,null,null,null,null,null,null,null,null,0,0]
[133,921600,"Примања од отплате кредита датих физичким лицима и домаћинствима у земљи",null,null,null,null,null,null,null,null,null,null,0,0]
[134,921700,"Примања од отплате кредита датих удружењима грађана у земљи",null,null,null,null,null,null,null,null,null,null,0,0]
[135,921800,"Примања од отплате кредита датих нефинансијским приватним предузећима у земљи",null,null,null,null,null,null,null,null,null,null,0,0]
[136,921900,"Примања од продаје домаћих акција и осталог капитала",null,null,null,null,null,null,null,null,null,null,0,0]
[{"$f":"A164+1","v":137},922000,"ПРИМАЊА ОД ПРОДАЈЕ СТРАНЕ ФИНАНСИЈСКЕ ИМОВИНЕ (од 138 до 145)",{"$f":"SUM(D166:D173)","v":0},{"$f":"SUM(E166:E173)","v":0},0,0,0,0,0,0,0,0,0,0]
[138,922100,"Примања од продаје страних хартија од вредности, изузев акција",null,null,null,null,null,null,null,null,null,null,0,0]
[139,922200,"Примања од отплате кредита датих страним владама",null,null,null,null,null,null,null,null,null,null,0,0]
[140,922300,"Примања од отплате кредита датих међународним организацијама",null,null,null,null,null,null,null,null,null,null,0,0]
[141,922400,"Примања од отплате кредита датих страним пословним банкама",null,null,null,null,null,null,null,null,null,null,0,0]
[142,922500,"Примања од отплате кредита датих страним нефинансијским институцијама",null,null,null,null,null,null,null,null,null,null,0,0]
[143,922600,"Примања од отплате кредита датих страним невладиним организацијама",null,null,null,null,null,null,null,null,null,null,0,0]
[144,922700,"Примања од продаје страних акција и осталог капитала",null,null,null,null,null,null,null,null,null,null,0,0]
[145,922800,"Примања од продаје стране валуте",null,null,null,null,null,null,null,null,null,null,0,0]
[146,null,"УКУПНИ ПРИХОДИ, ПРИМАЊА И ПРЕНЕТА СРЕДСТВА ИЗ ПРЕТХОДНЕ ГОДИНЕ (1 + 8 + 81 + 106)",{"$f":"D29+D36+D109+D134","v":0},{"$f":"E29+E36+E109+E134","v":0},0,0,0,0,0,0,0,0,{"$f":"SUM(H174,J174,L174)","v":0},{"$f":"SUM(I174,K174,M174)","v":0}]
[147,400000,"ТЕКУЋИ РАСХОДИ (148+166+211+226+250+263+279+294)",{"$f":"D176+D194+D239+D254+D278+D291+D307+D322","v":0},0,0,0,0,0,0,0,0,0,0,0]
[148,410000,"РАСХОДИ ЗА ЗАПОСЛЕНЕ (149+151+155+157+162+164)",{"$f":"D177+D179+D183+D185+D190+D192","v":0},{"$f":"E177+E179+E183+E185+E190+E192","v":0},0,0,0,0,0,0,0,0,0,0]
[149,411000,"ПЛАТЕ, ДОДАЦИ И НАКНАДЕ ЗАПОСЛЕНИХ (ЗАРАДЕ) (150)",{"$f":"D178","v":0},0,0,0,0,0,0,0,0,0,0,0]
[150,411100,"Плате, додаци и накнаде запослених",null,null,null,null,null,null,null,null,null,null,0,0]
[151,412000,"СОЦИЈАЛНИ ДОПРИНОСИ НА ТЕРЕТ ПОСЛОДАВЦА (од 152 до 154)",{"$f":"SUM(D180:D182)","v":0},0,0,0,0,0,0,0,0,0,0,0]
[152,412100,"Допринос за пензијско и инвалидско осигурање",null,null,null,null,null,null,null,null,null,null,0,0]
[153,412200,"Допринос за здравствено осигурање",null,null,null,null,null,null,null,null,null,null,0,0]
[154,412300,"Допринос за незапосленост",null,null,null,null,null,null,null,null,null,null,0,0]
[155,413000,"НАКНАДЕ У НАТУРИ (156)",{"$f":"D184","v":0},0,0,0,0,0,0,0,0,0,0,0]
[156,413100,"Накнаде у натури",null,null,null,null,null,null,null,null,null,null,0,0]
[157,414000,"СОЦИЈАЛНА ДАВАЊА ЗАПОСЛЕНИМА (од 158 до 161)",{"$f":"SUM(D186:D189)","v":0},0,0,0,0,0,0,0,0,0,0,0]
[158,414100,"Исплата накнада за време одсуствовања с посла на терет фондова",null,null,null,null,null,null,null,null,null,null,0,0]
[159,414200,"Расходи за образовање деце запослених",null,null,null,null,null,null,null,null,null,null,0,0]
[160,414300,"Отпремнине и помоћи",null,null,null,null,null,null,null,null,null,null,0,0]
[161,414400,"Помоћ у медицинском лечењу запосленог или чланова уже породице и друге помоћи запосленом",null,null,null,null,null,null,null,null,null,null,0,0]
[162,415000,"НАКНАДА ТРОШКОВА ЗА ЗАПОСЛЕНЕ (163)",{"$f":"D191","v":0},0,0,0,0,0,0,0,0,0,0,0]
[163,415100,"Накнаде трошкова за запослене",null,null,null,null,null,null,null,null,null,null,0,0]
[164,416000,"НАГРАДЕ ЗАПОСЛЕНИМА И ОСТАЛИ ПОСЕБНИ РАСХОДИ (165)",{"$f":"D193","v":0},0,0,0,0,0,0,0,0,0,0,0]
[165,416100,"Награде запосленима и остали посебни расходи",null,null,null,null,null,null,null,null,null,null,0,0]
[166,420000,"КОРИШЋЕЊЕ УСЛУГА И РОБА (167 + 175 + 181 + 190 + 198 + 201) ",{"$f":"D195+D203+D209+D218+D226+D229","v":0},0,0,0,0,0,0,0,0,0,{"$f":"SUM(H194,J194,L194)","v":0},0]
[167,421000,"СТАЛНИ ТРОШКОВИ (од 168 до 174)",{"$f":"SUM(D196:D202)","v":0},0,0,0,0,0,0,0,0,0,0,0]
[168,421100,"Трошкови платног промета и банкарских услуга",null,null,null,null,null,null,null,null,null,null,0,0]
[169,421200,"Енергетске услуге",null,null,null,null,null,null,null,null,null,null,0,0]
[170,421300,"Комуналне услуге",null,null,null,null,null,null,null,null,null,null,0,0]
[171,421400,"Услуге комуникација",null,null,null,null,null,null,null,null,null,null,0,0]
[172,421500,"Трошкови осигурања",null,null,null,null,null,null,null,null,null,null,0,0]
[173,421600,"Закуп имовине и опреме",null,null,null,null,null,null,null,null,null,null,0,0]
[174,421900,"Остали трошкови",null,null,null,null,null,null,null,null,null,null,0,0]
[175,422000,"ТРОШКОВИ ПУТОВАЊА (од 176 до 180)",{"$f":"SUM(D204:D208)","v":0},0,0,0,0,0,0,0,0,0,0,0]
[176,422100,"Трошкови службених путовања у земљи",null,null,null,null,null,null,null,null,null,null,0,0]
[177,422200,"Трошкови службених путовања у иностранство",null,null,null,null,null,null,null,null,null,null,0,0]
[178,422300,"Трошкови путовања у оквиру редовног рада",null,null,null,null,null,null,null,null,null,null,0,0]
[179,422400,"Трошкови путовања ученика",null,null,null,null,null,null,null,null,null,null,0,0]
[180,422900,"Остали трошкови транспорта",null,null,null,null,null,null,null,null,null,null,0,0]
[181,423000,"УСЛУГЕ ПО УГОВОРУ (од 182 до 189)",{"$f":"SUM(D210:D217)","v":0},0,0,0,0,0,0,0,0,0,0,0]
[182,423100,"Административне услуге",null,null,null,null,null,null,null,null,null,null,0,0]
[183,423200,"Компјутерске услуге",null,null,null,null,null,null,null,null,null,null,0,0]
[184,423300,"Услуге образовања и усавршавања запослених",null,null,null,null,null,null,null,null,null,null,0,0]
[185,423400,"Услуге информисања",null,null,null,null,null,null,null,null,null,null,0,0]
[186,423500,"Стручне услуге",null,null,null,null,null,null,null,null,null,null,0,0]
[187,423600,"Услуге за домаћинство и угоститељство",null,null,null,null,null,null,null,null,null,null,0,0]
[188,423700,"Репрезентација",null,null,null,null,null,null,null,null,null,null,0,0]
[189,423900,"Остале опште услуге",null,null,null,null,null,null,null,null,null,null,0,0]
[190,424000,"СПЕЦИЈАЛИЗОВАНЕ УСЛУГЕ (од 191 до197)",{"$f":"SUM(D219:D225)","v":0},0,0,0,0,0,0,0,0,0,0,0]
[191,424100,"Пољопривредне услуге",null,null,null,null,null,null,null,null,null,null,0,0]
[192,424200,"Услуге образовања, културе и спорта",null,null,null,null,null,null,null,null,null,null,0,0]
[193,424300,"Медицинске услуге",null,null,null,null,null,null,null,null,null,null,0,0]
[194,424400,"Услуге одржавања аутопутева",null,null,null,null,null,null,null,null,null,null,0,0]
[195,424500,"Услуге одржавања националних паркова и природних површина",null,null,null,null,null,null,null,null,null,null,0,0]
[196,424600,"Услуге очувања животне средине, науке и геодетске услуге",null,null,null,null,null,null,null,null,null,null,0,0]
[197,424900,"Остале специјализоване услуге",null,null,null,null,null,null,null,null,null,null,0,0]
[198,425000,"ТЕКУЋЕ ПОПРАВКЕ И ОДРЖАВАЊЕ (199 + 200)",{"$f":"D227+D228","v":0},{"$f":"E227+E228","v":0},0,0,0,0,0,0,0,0,0,0]
[199,425100,"Текуће поправке и одржавање зграда и објеката",null,null,null,null,null,null,null,null,null,null,0,0]
[200,425200,"Текуће поправке и одржавање опреме",null,null,null,null,null,null,null,null,null,null,0,0]
[{"$f":"A228+1","v":201},426000,"МАТЕРИЈАЛ (од 202 до 210)",{"$f":"SUM(D230:D238)","v":0},0,0,0,0,0,0,0,0,0,0,0]
[202,426100,"Административни материјал",null,null,null,null,null,null,null,null,null,null,0,0]
[203,426200,"Материјали за пољопривреду",null,null,null,null,null,null,null,null,null,null,0,0]
[204,426300,"Материјали за образовање и усавршавање запослених",null,null,null,null,null,null,null,null,null,null,0,0]
[205,426400,"Материјали за саобраћај",null,null,null,null,null,null,null,null,null,null,0,0]
[206,426500,"Материјали за очување животне средине и науку",null,null,null,null,null,null,null,null,null,null,0,0]
[207,426600,"Материјали за образовање, културу и спорт",null,null,null,null,null,null,null,null,null,null,0,0]
[208,426700,"Медицински и лабораторијски материјали",null,null,null,null,null,null,null,null,null,null,0,0]
[209,426800,"Материјали за одржавање хигијене и угоститељство",null,null,null,null,null,null,null,null,null,null,0,0]
[210,426900,"Материјали за посебне намене",null,null,null,null,null,null,null,null,null,null,0,0]
[211,430000,"АМОРТИЗАЦИЈА И УПОТРЕБА СРЕДСТАВА ЗА РАД (212 + 216 + 218 + 220 + 224)",{"$f":"D240+D244+D246+D248+D252","v":0},{"$f":"E240+E244+E246+E248+E252","v":0},0,0,0,0,0,0,0,0,0,0]
[212,431000,"АМОРТИЗАЦИЈА НЕКРЕТНИНА И ОПРЕМЕ (од 213 до 215)",{"$f":"SUM(D241:D243)","v":0},0,0,0,0,0,0,0,0,0,0,0]
[213,431100,"Амортизација зграда и грађевинскиx објеката",null,null,null,null,null,null,null,null,null,null,0,0]
[214,431200,"Амортизација опреме",null,null,null,null,null,null,null,null,null,null,0,0]
[215,431300,"Амортизација осталих некретнина и опреме",null,null,null,null,null,null,null,null,null,null,0,0]
[216,432000,"АМОРТИЗАЦИЈА КУЛТИВИСАНЕ ИМОВИНЕ (217)",{"$f":"D245","v":0},0,0,0,0,0,0,0,0,0,0,0]
[217,432100,"Амортизација култивисане опреме",null,null,null,null,null,null,null,null,null,null,0,0]
[218,433000,"УПОТРЕБА ДРАГОЦЕНОСТИ (219)",{"$f":"D247","v":0},0,0,0,0,0,0,0,0,0,0,0]
[219,433100,"Употреба драгоцености",null,null,null,null,null,null,null,null,null,null,0,0]
[220,434000,"УПОТРЕБА ПРИРОДНЕ ИМОВИНЕ (од 221 до 223)",{"$f":"SUM(D249:D251)","v":0},0,0,0,0,0,0,0,0,0,0,0]
[221,434100,"Употреба земљишта",null,null,null,null,null,null,null,null,null,null,0,0]
[222,434200,"Употреба подземног блага",null,null,null,null,null,null,null,null,null,null,0,0]
[223,434300,"Употреба шума и вода",null,null,null,null,null,null,null,null,null,null,0,0]
[224,435000,"АМОРТИЗАЦИЈА НЕМАТЕРИЈАЛНЕ ИМОВИНЕ (225)",{"$f":"D253","v":0},0,0,0,0,0,0,0,0,0,0,0]
[225,435100,"Амортизација нематеријалне имовине",null,null,null,null,null,null,null,null,null,null,0,0]
[226,440000,"ОТПЛАТА КАМАТА И ПРАТЕЋИ ТРОШКОВИ ЗАДУЖИВАЊА (227 + 237 + 244 + 246)",{"$f":"D255+D265+D272+D274","v":0},0,0,0,0,0,0,0,0,0,0,0]
[227,441000,"ОТПЛАТЕ ДОМАЋИХ КАМАТА (од 228 до 236)",{"$f":"SUM(D256:D264)","v":0},{"$f":"SUM(E256:E264)","v":0},0,0,0,0,0,0,0,0,0,0]
[228,441100,"Отплата камата на домаће хартије од вредности",null,null,null,null,null,null,null,null,null,null,{"$f":"SUM(H256,J256,L256)","v":0},0]
[229,441200,"Отплата камата осталим нивоима власти",null,null,null,null,null,null,null,null,null,null,0,0]
[230,441300,"Отплата камата домаћим јавним финансијским институцијама",null,null,null,null,null,null,null,null,null,null,0,0]
[231,441400,"Отплата камата домаћим пословним банкама",null,null,null,null,null,null,null,null,null,null,0,0]
[232,441500,"Отплата камата осталим домаћим кредиторима",null,null,null,null,null,null,null,null,null,null,0,0]
[233,441600,"Отплата камата домаћинствима у земљи",null,null,null,null,null,null,null,null,null,null,0,0]
[234,441700,"Отплата камата на домаће финансијске деривате",null,null,null,null,null,null,null,null,null,null,0,0]
[235,441800,"Отплата камата на домаће менице",null,null,null,null,null,null,null,null,null,null,0,0]
[236,441900,"Финансијске промене на финансијским лизинзима",null,null,null,null,null,null,null,null,null,null,0,0]
[237,442000,"ОТПЛАТА СТРАНИХ КАМАТА (од 238 до 243)",{"$f":"SUM(D266:D271)","v":0},0,0,0,0,0,0,0,0,0,0,0]
[238,442100,"Отплата камата на хартије од вредности емитоване на иностраном финансијском тржишту",null,null,null,null,null,null,null,null,null,null,0,0]
[239,442200,"Отплата камата страним владама",null,null,null,null,null,null,null,null,null,null,0,0]
[240,442300,"Отплата камата мултилатералним институцијама",null,null,null,null,null,null,null,null,null,null,0,0]
[241,442400,"Отплата камата страним пословним банкама",null,null,null,null,null,null,null,null,null,null,0,0]
[242,442500,"Отплата камата осталим страним кредиторима",null,null,null,null,null,null,null,null,null,null,0,0]
[243,442600,"Отплата камата на стране финансијске деривате",null,null,null,null,null,null,null,null,null,null,0,0]
[244,443000,"ОТПЛАТА КАМАТА ПО ГАРАНЦИЈАМА 245)",{"$f":"D273","v":0},{"$f":"E273","v":0},0,0,0,0,0,0,0,0,0,0]
[245,443100,"Отплата камата по гаранцијама",null,null,null,null,null,null,null,null,null,null,0,0]
[246,444000,"ПРАТЕЋИ ТРОШКОВИ ЗАДУЖИВАЊА (од 247 до 249)",{"$f":"SUM(D275:D277)","v":0},0,0,0,0,0,0,0,0,0,0,0]
[247,444100,"Негативне курсне разлике",null,null,null,null,null,null,null,null,null,null,0,0]
[248,444200,"Казне за кашњење",null,null,null,null,null,null,null,null,null,null,0,0]
[249,444300,"Остали пратећи трошкови задуживања",null,null,null,null,null,null,null,null,null,null,0,0]
[250,450000,"СУБВЕНЦИЈЕ (251 + 254 + 257 + 260)",{"$f":"D279+D282+D285+D288","v":0},0,0,0,0,0,0,0,0,0,0,0]
[251,451000,"СУБВЕНЦИЈЕ ЈАВНИМ НЕФИНАНСИЈСКИМ ПРЕДУЗЕЋИМА И ОРГАНИЗАЦИЈАМА (252 + 253)",{"$f":"SUM(D280:D281)","v":0},0,0,0,0,0,0,0,0,0,0,0]
[252,451100,"Текуће субвенције јавним нефинансијским предузећима и организацијама",null,null,null,null,null,null,null,null,null,null,0,0]
[253,451200,"Капиталне субвенције јавним нефинансијским предузећима и организацијама",null,null,null,null,null,null,null,null,null,null,0,0]
[254,452000,"СУБВЕНЦИЈЕ ПРИВАТНИМ ФИНАНСИЈСКИМ ИНСТИТУЦИЈАМА (255 + 256)",{"$f":"SUM(D283:D284)","v":0},0,0,0,0,0,0,0,0,0,0,0]
[255,452100,"Текуће субвенције приватним финансијским институцијама",null,null,null,null,null,null,null,null,null,null,0,0]
[256,452200,"Капиталне субвенције приватним финансијским институцијама",null,null,null,null,null,null,null,null,null,null,0,0]
[257,453000,"СУБВЕНЦИЈЕ ЈАВНИМ ФИНАНСИЈСКИМ ИНСТИТУЦИЈАМА (258 + 259)",{"$f":"SUM(D286:D287)","v":0},0,0,0,0,0,0,0,0,0,0,0]
[258,453100,"Текуће субвенције јавним финансијским институцијама",null,null,null,null,null,null,null,null,null,null,0,0]
[259,453200,"Капиталне субвенције јавним финансијским институцијама",null,null,null,null,null,null,null,null,null,null,0,0]
[260,454000,"СУБВЕНЦИЈЕ ПРИВАТНИМ ПРЕДУЗЕЋИМА (261 + 262)",{"$f":"SUM(D289:D290)","v":0},0,0,0,0,0,0,0,0,0,0,0]
[261,454100,"Текуће субвенције приватним предузећима",null,null,null,null,null,null,null,null,null,null,0,0]
[262,454200,"Капиталне субвенције приватним предузећима",null,null,null,null,null,null,null,null,null,null,0,0]
[263,460000,"ДОНАЦИЈЕ, ДОТАЦИЈЕ И ТРАНСФЕРИ (264 + 267 + 270 + 273 + 276)",{"$f":"D292+D295+D298+D301+D304","v":0},{"$f":"E292+E295+E298+E301+E304","v":0},0,0,0,0,0,0,0,0,0,0]
[264,461000,"ДОНАЦИЈЕ СТРАНИМ ВЛАДАМА (265 + 266)",{"$f":"SUM(D293:D294)","v":0},0,0,0,0,0,0,0,0,0,0,0]
[{"$f":"A292+1","v":265},461100,"Текуће донације страним владама",null,null,null,null,null,null,null,null,null,null,0,0]
[266,461200,"Капиталне донације страним владама",null,null,null,null,null,null,null,null,null,null,0,0]
[267,462000,"ДОТАЦИЈЕ МЕЂУНАРОДНИМ ОРГАНИЗАЦИЈАМА (268 + 269)",{"$f":"SUM(D296:D297)","v":0},0,0,0,0,0,0,0,0,0,0,0]
[268,462100,"Текуће дотације међународним организацијама",null,null,null,null,null,null,null,null,null,null,0,0]
[269,462200,"Капиталне дотације међународним организацијама",null,null,null,null,null,null,null,null,null,null,0,0]
[270,463000,"ТРАНСФЕРИ ОСТАЛИМ НИВОИМА ВЛАСТИ (271 + 272)",{"$f":"SUM(D299:D300)","v":0},{"$f":"SUM(E299:E300)","v":0},0,0,0,0,0,0,0,0,0,0]
[271,463100,"Текући трансфери осталим нивоима власти",null,null,null,null,null,null,null,null,null,null,0,0]
[272,463200,"Капитални трансфери осталим нивоима власти",null,null,null,null,null,null,null,null,null,null,0,0]
[273,464000,"ДОТАЦИЈЕ ОРГАНИЗАЦИЈАМА ОБАВЕЗНОГ СОЦИЈАЛНОГ ОСИГУРАЊА (274 + 275)",{"$f":"SUM(D302:D303)","v":0},0,0,0,0,0,0,0,0,0,0,0]
[274,464100,"Текуће дотације организацијама обавезног социјалног осигурања",null,null,null,null,null,null,null,null,null,null,0,0]
[275,464200,"Капиталне дотације организацијама обавезног социјалног осигурања",null,null,null,null,null,null,null,null,null,null,0,0]
[276,465000,"ОСТАЛЕ ДОТАЦИЈЕ И ТРАНСФЕРИ (277 + 278)",{"$f":"SUM(D305:D306)","v":0},0,0,0,0,0,0,0,0,0,0,0]
[277,465100,"Остале текуће дотације и трансфери",null,null,null,null,null,null,null,null,null,null,0,0]
[278,465200,"Остале капиталне дотације и трансфери",null,null,null,null,null,null,null,null,null,null,0,0]
[279,470000,"СОЦИЈАЛНО ОСИГУРАЊЕ И СОЦИЈАЛНА ЗАШТИТА (280 + 284)",{"$f":"D308+D312","v":0},0,0,0,0,0,0,0,0,0,0,0]
[280,471000,"ПРАВА ИЗ СОЦИЈАЛНОГ ОСИГУРАЊА (ОРГАНИЗАЦИЈЕ ОБАВЕЗНОГ СОЦИЈАЛНОГ ОСИГУРАЊА) (од 281 до 283)",{"$f":"SUM(D309:D311)","v":0},0,0,0,0,0,0,0,0,0,0,0]
[281,471100,"Права из социјалног осигурања која се исплаћују непосредно домаћинствима",null,null,null,null,null,null,null,null,null,null,0,0]
[282,471200,"Права из социјалног осигурања која се исплаћују непосредно пружаоцима услуга",null,null,null,null,null,null,null,null,null,null,0,0]
[283,471900,"Трансфери другим организацијама обавезног социјалног осигурања за доприносе за осигурање",null,null,null,null,null,null,null,null,null,null,0,0]
[284,472000,"НАКНАДЕ ЗА СОЦИЈАЛНУ ЗАШТИТУ ИЗ БУЏЕТА (од 285 до 293)",{"$f":"SUM(D313:D321)","v":0},0,0,0,0,0,0,0,0,0,0,0]
[285,472100,"Накнаде из буџета у случају болести и инвалидности",null,null,null,null,null,null,null,null,null,null,0,0]
[286,472200,"Накнаде из буџета за породиљско одсуство",null,null,null,null,null,null,null,null,null,null,0,0]
[287,472300,"Накнаде из буџета за децу и породицу",null,null,null,null,null,null,null,null,null,null,0,0]
[288,472400,"Накнаде из буџета за случај незапослености",null,null,null,null,null,null,null,null,null,null,0,0]
[289,472500,"Старосне и породичне пензије из буџета",null,null,null,null,null,null,null,null,null,null,0,0]
[290,472600,"Накнаде из буџета у случају смрти",null,null,null,null,null,null,null,null,null,null,0,0]
[291,472700,"Накнаде из буџета за образовање, културу, науку и спорт",null,null,null,null,null,null,null,null,null,null,0,0]
[292,472800,"Накнаде из буџета за становање и живот",null,null,null,null,null,null,null,null,null,null,{"$f":"SUM(H320,J320,L320)","v":0},0]
[293,472900,"Остале накнаде из буџета",null,null,null,null,null,null,null,null,null,null,0,0]
[294,480000,"ОСТАЛИ РАСХОДИ (295 + 298 + 302 + 304 + 307 + 309)",{"$f":"D323+D326+D330+D332+D335+D337","v":0},{"$f":"E323+E326+E330+E332+E335+E337","v":0},0,0,0,0,0,0,0,0,0,0]
[295,481000,"ДОТАЦИЈЕ НЕВЛАДИНИМ ОРГАНИЗАЦИЈАМА (296 + 297)",{"$f":"SUM(D324:D325)","v":0},0,0,0,0,0,0,0,0,0,0,0]
[296,481100,"Дотације непрофитним организацијама које пружају помоћ домаћинствима",null,null,null,null,null,null,null,null,null,null,0,0]
[297,481900,"Дотације осталим непрофитним институцијама",null,null,null,null,null,null,null,null,null,null,0,0]
[298,482000,"ПОРЕЗИ, ОБАВЕЗНЕ ТАКСЕ И КАЗНЕ (од 299 до 301)",{"$f":"SUM(D327:D329)","v":0},{"$f":"SUM(E327:E329)","v":0},0,0,0,0,0,0,0,0,0,0]
[299,482100,"Остали порези",null,null,null,null,null,null,null,null,null,null,0,0]
[300,482200,"Обавезне таксе",null,null,null,null,null,null,null,null,null,null,0,0]
[301,482300,"Новчане казне и пенали",null,null,null,null,null,null,null,null,null,null,0,0]
[302,483000,"НОВЧАНЕ КАЗНЕ И ПЕНАЛИ ПО РЕШЕЊУ СУДОВА (303)",{"$f":"D331","v":0},0,0,0,0,0,0,0,0,0,0,0]
[303,483100,"Новчане казне и пенали по решењу судова",null,null,null,null,null,null,null,null,null,null,0,0]
[304,484000,"НАКНАДА ШТЕТЕ ЗА ПОВРЕДЕ ИЛИ ШТЕТУ НАСТАЛУ УСЛЕД ЕЛЕМЕНТАРНИХ НЕПОГОДА ИЛИ ДРУГИХ ПРИРОДНИХ УЗРОКА (305 + 306)",{"$f":"SUM(D333:D334)","v":0},0,0,0,0,0,0,0,0,0,0,0]
[305,484100,"Накнада штете за повреде или штету насталу услед елементарних непогода",null,null,null,null,null,null,null,null,null,null,0,0]
[306,484200,"Накнада штете од дивљачи",null,null,null,null,null,null,null,null,null,null,0,0]
[307,485000,"НАКНАДА ШТЕТЕ ЗА ПОВРЕДЕ ИЛИ ШТЕТУ НАНЕТУ ОД СТРАНЕ ДРЖАВНИХ ОРГАНА (308)",{"$f":"D336","v":0},0,0,0,0,0,0,0,0,0,0,0]
[308,485100,"Накнада штете за повреде или штету нанету од стране државних органа",null,null,null,null,null,null,null,null,null,null,0,0]
[309,489000,"РАСХОДИ КОЈИ СЕ ФИНАНСИРАЈУ ИЗ СРЕДСТАВА ЗА РЕАЛИЗАЦИЈУ НАЦИОНАЛНОГ ИНВЕСТИЦИОНОГ ПЛАНА (310)",0,0,0,0,0,0,0,0,0,0,0,0]
[310,489100,"Расходи који се финансирају из средстава за реализацију националног инвестиционог плана",null,null,null,null,null,null,null,null,null,null,0,0]
[311,500000,"ИЗДАЦИ ЗА НЕФИНАНСИЈСКУ ИМОВИНУ (312 + 334 + 343 + 346 + 354)",{"$f":"D340+D362+D371+D374+D382","v":0},{"$f":"E340+E362+E371+E374+E382","v":0},0,0,0,0,0,0,0,0,0,0]
[312,510000,"ОСНОВНА СРЕДСТВА (313 + 318 + 328 + 330 + 332)",{"$f":"D341+D346+D356+D358+D360","v":0},{"$f":"E341+E346+E356+E358+E360","v":0},0,0,0,0,0,0,0,0,0,0]
[313,511000,"ЗГРАДЕ И ГРАЂЕВИНСКИ ОБЈЕКТИ (од 314 до 317)",{"$f":"SUM(D342:D345)","v":0},0,0,0,0,0,0,0,0,0,0,0]
[314,511100,"Куповина зграда и објеката",null,null,null,null,null,null,null,null,null,null,0,0]
[315,511200,"Изградња зграда и објеката",null,null,null,null,null,null,null,null,null,null,0,0]
[316,511300,"Капитално одржавање зграда и објеката",null,null,null,null,null,null,null,null,null,null,0,0]
[317,511400,"Пројектно планирање",null,null,null,null,null,null,null,null,null,null,0,0]
[318,512000,"МАШИНЕ И ОПРЕМА (од 319 до 327)",{"$f":"SUM(D347:D355)","v":0},0,0,0,0,0,0,0,0,0,0,0]
[319,512100,"Опрема за саобраћај",null,null,null,null,null,null,null,null,null,null,0,0]
[320,512200,"Административна опрема",null,null,null,null,null,null,null,null,null,null,0,0]
[321,512300,"Опрема за пољопривреду",null,null,null,null,null,null,null,null,null,null,0,0]
[322,512400,"Опрема за заштиту животне средине",null,null,null,null,null,null,null,null,null,null,0,0]
[323,512500,"Медицинска и лабораторијска опрема",null,null,null,null,null,null,null,null,null,null,0,0]
[324,512600,"Опрема за образовање, културу и спорт",null,null,null,null,null,null,null,null,null,null,0,0]
[325,512700,"Опрема за војску",null,null,null,null,null,null,null,null,null,null,0,0]
[326,512800,"Опрема за јавну безбедност",null,null,null,null,null,null,null,null,null,null,0,0]
[327,512900,"Опрема за производњу, моторна, непокретна и немоторна опрема",null,null,null,null,null,null,null,null,null,null,0,0]
[328,513000,"ОСТАЛЕ НЕКРЕТНИНЕ И ОПРЕМА (329)",{"$f":"D357","v":0},{"$f":"E357","v":0},0,0,0,0,0,0,0,0,0,0]
[{"$f":"A356+1","v":329},513100,"Остале некретнине и опрема",null,null,null,null,null,null,null,null,null,null,0,0]
[330,514000,"КУЛТИВИСАНА ИМОВИНА (331)",{"$f":"D359","v":0},{"$f":"E359","v":0},0,0,0,0,0,0,0,0,0,0]
[331,514100,"Култивисана имовина",null,null,null,null,null,null,null,null,null,null,0,0]
[332,515000,"НЕМАТЕРИЈАЛНА ИМОВИНА (333)",{"$f":"D361","v":0},{"$f":"E361","v":0},0,0,0,0,0,0,0,0,0,0]
[333,515100,"Нематеријална имовина",null,null,null,null,null,null,null,null,null,null,0,0]
[334,520000,"ЗАЛИХЕ (335 + 337 + 341)",{"$f":"D363+D365+D369","v":0},0,0,0,0,0,0,0,0,0,0,0]
[335,521000,"РОБНЕ РЕЗЕРВЕ (336)",{"$f":"D364","v":0},0,0,0,0,0,0,0,0,0,0,0]
[336,521100,"Робне резерве",null,null,null,null,null,null,null,null,null,null,0,0]
[337,522000,"ЗАЛИХЕ ПРОИЗВОДЊЕ (од 338 до 340)",{"$f":"SUM(D366:D368)","v":0},0,0,0,0,0,0,0,0,0,0,0]
[338,522100,"Залихе материјала",null,null,null,null,null,null,null,null,null,null,0,0]
[339,522200,"Залихе недовршене производње",null,null,null,null,null,null,null,null,null,null,0,0]
[340,522300,"Залихе готових производа",null,null,null,null,null,null,null,null,null,null,0,0]
[341,523000,"ЗАЛИХЕ РОБЕ ЗА ДАЉУ ПРОДАЈУ (342)",{"$f":"D370","v":0},0,0,0,0,0,0,0,0,0,0,0]
[342,523100,"Залихе робе за даљу продају",null,null,null,null,null,null,null,null,null,null,0,0]
[343,530000,"ДРАГОЦЕНОСТИ (344)",{"$f":"D372","v":0},0,0,0,0,0,0,0,0,0,0,0]
[344,531000,"ДРАГОЦЕНОСТИ (345)",0,0,0,0,0,0,0,0,0,0,0,0]
[345,531100,"Драгоцености",null,null,null,null,null,null,null,null,null,null,0,0]
[346,540000,"ПРИРОДНА ИМОВИНА (347 + 349 + 351)",{"$f":"D375+D377+D379","v":0},0,0,0,0,0,0,0,0,0,0,0]
[347,541000,"ЗЕМЉИШТЕ (348)",{"$f":"D376","v":0},0,0,0,0,0,0,0,0,0,0,0]
[348,541100,"Земљиште",null,null,null,null,null,null,null,null,null,null,0,0]
[349,542000,"РУДНА БОГАТСТВА (350)",{"$f":"D378","v":0},0,0,0,0,0,0,0,0,0,0,0]
[350,542100,"Копови",null,null,null,null,null,null,null,null,null,null,0,0]
[351,543000,"ШУМЕ И ВОДЕ (352 + 353)",{"$f":"SUM(D380:D381)","v":0},0,0,0,0,0,0,0,0,0,0,0]
[352,543100,"Шуме",null,null,null,null,null,null,null,null,null,null,0,0]
[353,543200,"Воде",null,null,null,null,null,null,null,null,null,null,0,0]
[354,550000,"НЕФИНАНСИЈСКА ИМОВИНА КОЈА СЕ ФИНАНСИРА ИЗ СРЕДСТАВА ЗА РЕАЛИЗАЦИЈУ НАЦИОНАЛНОГ ИНВЕСТИЦИОНОГ ПЛАНА (355)",{"$f":"D383","v":0},0,0,0,0,0,0,0,0,0,0,0]
[355,551000,"НЕФИНАНСИЈСКА ИМОВИНА КОЈА СЕ ФИНАНСИРА ИЗ СРЕДСТАВА ЗА РЕАЛИЗАЦИЈУ НАЦИОНАЛНОГ ИНВЕСТИЦИОНОГ ПЛАНА (356)",0,0,0,0,0,0,0,0,0,0,0,0]
[356,551100,"Нефинансијска имовина која се финансира из средстава за реализацију националног инвестиционог плана",null,null,null,null,null,null,null,null,null,null,{"$f":"SUM(H384,J384,L384)","v":0},0]
[357,600000,"ИЗДАЦИ ЗА ОТПЛАТУ ГЛАВНИЦЕ И НАБАВКУ ФИНАНСИЈСКЕ ИМОВИНЕ (358 + 383)",{"$f":"D386+D411","v":0},{"$f":"E386+E411","v":0},0,0,0,0,0,0,0,0,0,0]
[358,610000,"ОТПЛАТА ГЛАВНИЦЕ (359 + 369 + 377 + 384)",{"$f":"D387+D397+D405+D407+D409","v":0},{"$f":"E387+E397+E405+E407+E409","v":0},0,0,0,0,0,0,0,0,0,0]
[359,611000,"ОТПЛАТА ГЛАВНИЦЕ ДОМАЋИМ КРЕДИТОРИМА (од 360 до 368)",{"$f":"SUM(D388:D396)","v":0},0,0,0,0,0,0,0,0,0,0,0]
[360,611100,"Отплата главнице на домаће хартије од вредности, изузев акција",null,null,null,null,null,null,null,null,null,null,0,0]
[361,611200,"Отплата главнице осталим нивоима власти",null,null,null,null,null,null,null,null,null,null,0,0]
[362,611300,"Отплата главнице домаћим јавним финансијским институцијама",null,null,null,null,null,null,null,null,null,null,0,0]
[363,611400,"Отплата главнице домаћим пословним банкама",null,null,null,null,null,null,null,null,null,null,0,0]
[364,611500,"Отплата главнице осталим домаћим кредиторима",null,null,null,null,null,null,null,null,null,null,0,0]
[365,611600,"Отплата главнице домаћинствима у земљи",null,null,null,null,null,null,null,null,null,null,0,0]
[366,611700,"Отплата главнице на домаће финансијске деривате",null,null,null,null,null,null,null,null,null,null,0,0]
[367,611800,"Отплата домаћих меница",null,null,null,null,null,null,null,null,null,null,0,0]
[368,611900,"Исправка унутрашњег дуга",null,null,null,null,null,null,null,null,null,null,0,0]
[369,612000,"ОТПЛАТА ГЛАВНИЦЕ СТРАНИМ КРЕДИТОРИМА (од 370 до 376)",{"$f":"SUM(D398:D404)","v":0},0,0,0,0,0,0,0,0,0,0,0]
[370,612100,"Отплата главнице на хартије од вредности, изузев акција, емитоване на иностраном финансијском тржишту",null,null,null,null,null,null,null,null,null,null,0,0]
[371,612200,"Отплата главнице страним владама",null,null,null,null,null,null,null,null,null,null,0,0]
[372,612300,"Отплата главнице мултилатералним институцијама",null,null,null,null,null,null,null,null,null,null,0,0]
[373,612400,"Отплате главнице страним пословним банкама",null,null,null,null,null,null,null,null,null,null,0,0]
[374,612500,"Отплате главнице осталим страним кредиторима",null,null,null,null,null,null,null,null,null,null,0,0]
[375,612600,"Отплата главнице на стране финансијске деривате",null,null,null,null,null,null,null,null,null,null,0,0]
[376,612900,"Исправка спољног дуга",null,null,null,null,null,null,null,null,null,null,0,0]
[377,613000,"ОТПЛАТА ГЛАВНИЦЕ ПО ГАРАНЦИЈАМА (378)",{"$f":"D406","v":0},{"$f":"E406","v":0},0,0,0,0,0,0,0,0,0,0]
[378,613100,"Отплата главнице по гаранцијама",null,null,null,null,null,null,null,null,null,null,0,0]
[379,614000,"ОТПЛАТА ГЛАВНИЦЕ ЗА ФИНАНСИЈСКИ ЛИЗИНГ (380)",{"$f":"D408","v":0},{"$f":"E408","v":0},0,0,0,0,0,0,0,0,0,0]
[380,614100,"Отплата главнице за финансијски лизинг",null,null,null,null,null,null,null,null,null,null,0,0]
[381,615000,"ОТПЛАТА ГАРАНЦИЈА ПО КОМЕРЦИЈАЛНИМ ТРАНСАКЦИЈАМА (382)",{"$f":"D410","v":0},{"$f":"E410","v":0},0,0,0,0,0,0,0,0,0,0]
[382,615100,"Отплата гаранција по комерцијалним трансакцијама",null,null,null,null,null,null,null,null,null,null,0,0]
[383,620000,"НАБАВКА ФИНАНСИЈСКЕ ИМОВИНЕ (384 + 394 + 403)",{"$f":"D412+D422+D431","v":0},{"$f":"E412+E422+E431","v":0},0,0,0,0,0,0,0,0,0,0]
[384,621000,"НАБАВКА ДОМАЋЕ ФИНАНСИЈСКЕ ИМОВИНЕ (од 385 до 393)",{"$f":"SUM(D413:D421)","v":0},0,0,0,0,0,0,0,0,0,0,0]
[385,621100,"Набавка домаћих хартија од вредности, изузев акција",null,null,null,null,null,null,null,null,null,null,0,0]
[386,621200,"Кредити осталим нивоима власти",null,null,null,null,null,null,null,null,null,null,0,0]
[387,621300,"Кредити домаћим јавним финансијским институцијама",null,null,null,null,null,null,null,null,null,null,0,0]
[388,621400,"Кредити домаћим пословним банкама",null,null,null,null,null,null,null,null,null,null,0,0]
[389,621500,"Кредити домаћим нефинансијским јавним институцијама",null,null,null,null,null,null,null,null,null,null,0,0]
[390,621600,"Кредити физичким лицима и домаћинствима у земљи",null,null,null,null,null,null,null,null,null,null,0,0]
[391,621700,"Кредити невладиним организацијама у земљи",null,null,null,null,null,null,null,null,null,null,0,0]
[392,621800,"Кредити домаћим нефинансијским приватним предузећима",null,null,null,null,null,null,null,null,null,null,0,0]
[{"$f":"A420+1","v":393},621900,"Набавка домаћих акција и осталог капитала",null,null,null,null,null,null,null,null,null,null,0,0]
[394,622000,"НАБАВКА СТРАНЕ ФИНАНСИЈСКЕ ИМОВИНЕ (од 395 до 402)",{"$f":"SUM(D423:D430)","v":0},{"$f":"SUM(E423:E430)","v":0},0,0,0,0,0,0,0,0,0,0]
[395,622100,"Набавка страних хартија од вредности, изузев акција",null,null,null,null,null,null,null,null,null,null,0,0]
[396,622200,"Кредити страним владама",null,null,null,null,null,null,null,null,null,null,0,0]
[397,622300,"Кредити међународним организацијама",null,null,null,null,null,null,null,null,null,null,0,0]
[398,622400,"Кредити страним пословним банкама",null,null,null,null,null,null,null,null,null,null,0,0]
[399,622500,"Кредити страним нефинансијским институцијама",null,null,null,null,null,null,null,null,null,null,0,0]
[400,622600,"Кредити страним невладиним организацијама",null,null,null,null,null,null,null,null,null,null,0,0]
[401,622700,"Набавка страних акција и осталог капитала",null,null,null,null,null,null,null,null,null,null,0,0]
[402,622800,"Куповина стране валуте",null,null,null,null,null,null,null,null,null,null,0,0]
[403,623000,"НАБАВКА ФИНАНСИЈСКЕ ИМОВИНЕ КОЈА СЕ ФИНАНСИРА ИЗ СРЕДСТАВА ЗА РЕАЛИЗАЦИЈУ НАЦИОНАЛНОГ ИНВЕСТИЦИОНОГ ПЛАНА (404)",{"$f":"D432","v":0},{"$f":"E432","v":0},0,0,0,0,0,0,0,0,0,0]
[404,623100,"Набавка финансијске имовине која се финансира из средстава за реализацију националног инвестиционог плана ",null,null,null,null,null,null,null,null,null,null,0,0]
[405,null,"УКУПНИ РАСХОДИ И ИЗДАЦИ (147 + 311 + 357)",{"$f":"D385+D339+D175","v":0},0,0,0,0,0,0,0,0,0,0,0]
[null,null,"Разлика (146-405 ) [ Укупни приходи, примања и пренета средства - Укупни расходи и издаци]",{"$f":"D174-D433","v":0},{"$f":"E174-E433","v":0},0,0,0,0,0,0,0,0,0,0]
[]
["Шифра","Извори финансирања пројекта",null,"Вредност у базној години (2017)",null,"Очекивана вредност у 2018. години",null,"Вредност у 2019. години",null,"Вредност у 2020. години",null,"Вредност у 2021. години",null,"Укупно (2019-2021)"]
[1,2,null,3,null,4,null,5,null,6,null,7,null,"8=(5+6+7)"]
["01","Приходи из буџета",null,null,null,null,null,null,null,null,null,null,null,{"$f":"SUM(H438,J438,L438)","v":0}]
["02","Трансфери између корисника на истом нивоу",null,null,null,null,null,null,null,null,null,null,null,{"$f":"SUM(H439,J439,L439)","v":0}]
["03","Социјални доприноси",null,null,null,null,null,null,null,null,null,null,null,0]
["04","Сопствени приходи буџетских корисника",null,null,null,null,null,null,null,null,null,null,null,0]
["05","Донације од иностраних земаља",null,null,null,null,null,null,null,null,null,null,null,0]
["06","Донације од међународних организација",null,null,null,null,null,null,null,null,null,null,null,0]
["07","Трансфери од других нивоа власти",null,null,null,null,null,null,null,null,null,null,null,0]
["08","Добровољни трансфери од физичких и правних лица",null,null,null,null,null,null,null,null,null,null,null,0]
["09","Примања од продаје нефинансијске имовине",null,null,null,null,null,null,null,null,null,null,null,0]
["10","Примања од домаћих задуживања",null,null,null,null,null,null,null,null,null,null,null,0]
["11","Примања од иностраних задуживања",null,null,null,null,null,null,null,null,null,null,null,0]
["12","Примања од отплате датих кредита и продаје финансијске имовине",null,null,null,null,null,null,null,null,null,null,null,0]
["13","Нераспоређени вишак прихода из ранијих година",null,null,null,null,null,null,null,null,null,null,null,0]
["14","Неутрошена средства од приватизације из ранијих година",null,null,null,null,null,null,null,null,null,null,null,0]
["15","Неутрошена средства донација из ранијих година",null,null,null,null,null,null,null,null,null,null,null,0]
["16","Родитељски динар за ваннаставне активности",null,null,null,null,null,null,null,null,null,null,null,0]
["56","Финансијска помоћ ЕУ",null,null,null,null,null,null,null,null,null,null,null,{"$f":"SUM(H454,J454,L454)","v":0}]
["УКУПНО  ЗА:",null,{"$f":"$D$5&\"-\"&$E$5&\"   \"&$D$6","v":"2002-П1   Унапређење квлитета образовања и васпитања"},{"$f":"SUM(D438:E454)","v":0},null,{"$f":"SUM(F438:G454)","v":0},null,{"$f":"SUM(H438:I454)","v":0},null,{"$f":"SUM(J438:K454)","v":0},null,{"$f":"SUM(L438:M454)","v":0},null,{"$f":"SUM(H455:M455)","v":0}]
[null,null,"Разлика ( укупни расходи и издаци -  укупни извори )",{"$f":"D433+E433-D455","v":0},null,{"$f":"F433+G433-F455","v":0},null,{"$f":"H433+I433-H455","v":0},null,{"$f":"J433+K433-J455","v":0},null,{"$f":"L433+M433-L455","v":0},null,{"$f":"N433+O433-N455","v":0}]
[]
["*","1-3 циља за сваку програмску активност"]
["**","1-3 индикатора исхода/излазног резултата за сваки циљ"]
[]
[null,null,null,null,null,null,null,null,null,null,null,null,"Одговорно лице"]
[]
[null,"Датум:","06.05.2019.",null,null,null,null,null,null,null,null,null,"Ненад Младеновић"]

{"sheet":"Пројекат (3)","index":3,"n_rows":463,"n_cols":15,"rows_kept":463,"cut":false,"hidden":false,"merged":[[460,12,460,13],[455,3,455,4],[455,5,455,6],[455,7,455,8],[455,9,455,10],[455,11,455,12],[455,13,455,14],[453,13,453,14],[454,0,454,1],[454,3,454,4],[454,5,454,6],[454,7,454,8],[454,9,454,10],[454,11,454,12],[454,13,454,14],[453,1,453,2],[453,3,453,4],[453,5,453,6],[453,7,453,8],[453,9,453,10],[453,11,453,12],[451,13,451,14],[452,1,452,2],[452,3,452,4],[452,5,452,6],[452,7,452,8],[452,9,452,10],[452,11,452,12],[452,13,452,14],[451,1,451,2],[451,3,451,4],[451,5,451,6],[451,7,451,8],[451,9,451,10],[451,11,451,12],[449,13,449,14],[450,1,450,2],[450,3,450,4],[450,5,450,6],[450,7,450,8],[450,9,450,10],[450,11,450,12],[450,13,450,14],[449,1,449,2],[449,3,449,4],[449,5,449,6],[449,7,449,8],[449,9,449,10],[449,11,449,12],[447,13,447,14],[448,1,448,2],[448,3,448,4],[448,5,448,6],[448,7,448,8],[448,9,448,10],[448,11,448,12],[448,13,448,14],[447,1,447,2],[447,3,447,4],[447,5,447,6],[447,7,447,8],[447,9,447,10],[447,11,447,12],[445,13,445,14],[446,1,446,2],[446,3,446,4],[446,5,446,6],[446,7,446,8],[446,9,446,10],[446,11,446,12],[446,13,446,14],[445,1,445,2],[445,3,445,4],[445,5,445,6],[445,7,445,8],[445,9,445,10],[445,11,445,12],[443,13,443,14],[444,1,444,2],[444,3,444,4],[444,5,444,6],[444,7,444,8],[444,9,444,10],[444,11,444,12],[444,13,444,14],[443,1,443,2],[443,3,443,4],[443,5,443,6],[443,7,443,8],[443,9,443,10],[443,11,443,12],[441,13,441,14],[442,1,442,2],[442,3,442,4],[442,5,442,6],[442,7,442,8],[442,9,442,10],[442,11,442,12],[442,13,442,14],[441,1,441,2],[441,3,441,4],[441,5,441,6],[441,7,441,8],[441,9,441,10],[441,11,441,12],[439,13,439,14],[440,1,440,2],[440,3,440,4],[440,5,440,6],[440,7,440,8],[440,9,440,10],[440,11,440,12],[440,13,440,14],[439,1,439,2],[439,3,439,4],[439,5,439,6],[439,7,439,8],[439,9,439,10],[439,11,439,12],[437,13,437,14],[438,1,438,2],[438,3,438,4],[438,5,438,6],[438,7,438,8],[438,9,438,10],[438,11,438,12],[438,13,438,14],[437,1,437,2],[437,3,437,4],[437,5,437,6],[437,7,437,8],[437,9,437,10],[437,11,437,12],[435,13,435,14],[436,1,436,2],[436,3,436,4],[436,5,436,6],[436,7,436,8],[436,9,436,10],[436,11,436,12],[436,13,436,14],[435,1,435,2],[435,3,435,4],[435,5,435,6],[435,7,435,8],[435,9,435,10],[435,11,435,12],[24,0,24,14],[25,0,26,0],[25,1,26,1],[25,2,26,2],[25,3,25,4],[25,5,25,6],[25,7,25,8],[25,9,25,10],[25,11,25,12],[25,13,25,14],[19,0,21,0],[19,1,21,2],[19,3,19,5],[19,11,19,14],[20,3,20,5],[20,11,20,14],[21,3,21,5],[21,11,21,14],[15,0,15,2],[15,3,15,14],[17,0,18,0],[17,1,18,2],[17,3,17,14],[18,3,18,5],[18,11,18,14],[12,0,12,2],[12,3,12,14],[13,0,13,2],[13,3,13,14],[14,0,14,2],[14,3,14,14],[9,0,9,2],[9,3,9,14],[10,0,10,2],[10,3,10,14],[11,0,11,2],[11,3,11,14],[6,0,6,2],[6,3,6,10],[7,0,7,2],[7,3,7,14],[8,0,8,2],[8,3,8,14],[0,0,0,14],[1,0,1,14],[3,0,3,2],[3,3,3,14],[4,0,4,2],[5,0,5,2],[5,3,5,14]]}
["Обрасци за припрему програмског буџета"]
["3. ПРОЈЕКАТ"]
[]
["Програм коме припада:",null,null,{"$f":"IF(Програм!$D$4=\"\",\"\",Програм!$D$4)","v":"Програм 9. Основно образовање и вспитање"}]
["Шифра пројекта:",null,null,{"$f":"Програм!$D$5","v":2002},"П1"]
["Назив пројекта:",null,null,"Унапређење квлитета образовања и васпитања"]
["Функција:",null,null,"912- Основно образовање"]
["Назив организационе јединице/Буџетски корисник:",null,null,"ОШ ,, ДЕСАНКА  МАКСИМОВИЋ,,  ГРДЕЛИЦА"]
["Сврха:",null,null,"Унапређење квлитета образовања и васпитања"]
["Основ:",null,null,"Пројетна документација"]
["Опис:",null,null,"Реконструкција спрата школе "]
["Трајање пројекта:",null,null,2019]
["Ознака за капитални пројекат:",null,null,"пројетна документација"]
["Ознака да ли је ИПА пројекат:"]
["Мере и поглавље преговора о приступању ЕУ:"]
["Одговорно лице за спровођење пројекта:",null,null,"Ненад Младеновић"]
[]
[null,"Циљ*",null,"Индикатори**"]
[null,null,null,"Назив индикатора",null,null,"Вредност у базној години (2017)","Очекивана вредност у 2018. години","Циљана вредност у 2019. години","Циљана вредност у 2020. години","Циљана вредност у 2021. години","Извор верификације"]
[1,"Унапређење квалитета образовања",null,"Број деце које похађају ваннаставне активности",null,null,0.75,0.8,0.9,0.95,0.95,"Школска документација"]
[null,null,null,"Број стручних лица која су добила најмање 24 бода за стручно усавршавње",null,null,0.5,0.55000000000000004,0.6,0.65,0.65,"Извештај о стручном усавршавању"]
[]
[]
[]
["ПЛАНИРАНА СРЕДСТВА ЗА ПРОЈЕКАТ"]
["Рбр.","Конто","ОПИС","Вредност у базној години (2017)",null,"Очекивана вредност у 2018. години",null,"Вредност у 2019. години",null,"Вредност у 2020. години",null,"Вредност у 2021. години",null,"Укупно (2019-2021)"]
[null,null,null,"Приходи из буџета","Приходи из осталих извора","Приходи из буџета","Приходи из осталих извора","Приходи из буџета","Приходи из осталих извора","Приходи из буџета","Приходи из осталих извора","Приходи из буџета","Приходи из осталих извора","Приходи из буџета","Приходи из осталих извора"]
[1,2,3,4,5,6,7,8,9,10,11,12,13,"14=(8+10+12)","15=(9+11+13)"]
[1,300000,"КАПИТАЛ, УТВРЂИВАЊЕ РЕЗУЛТАТА ПОСЛОВАЊА И ВАНБИЛАНСНА ЕВИДЕНЦИЈА\n(2 + 5)",{"$f":"SUM(D30,D33)","v":0},{"$f":"SUM(E30,E33)","v":0},0,0,0,0,0,0,0,0,0,0]
[2,310000,"КАПИТАЛ (3)",{"$f":"SUM(D31)","v":0},{"$f":"SUM(E31)","v":0},0,0,0,0,0,0,0,0,0,0]
[3,311000,"КАПИТАЛ (4)",{"$f":"SUM(D32)","v":0},0,0,0,0,0,0,0,0,0,0,0]
[4,311700,"Пренета неутрошена средства из ранијих година",null,null,null,null,null,null,null,null,null,null,{"$f":"SUM(H32,J32,L32)","v":0},{"$f":"SUM(I32,K32,M32)","v":0}]
[5,320000,"УТВРЂИВАЊЕ РЕЗУЛТАТА ПОСЛОВАЊА (6)",{"$f":"SUM(D34)","v":0},{"$f":"SUM(E34)","v":0},0,0,0,0,0,0,0,0,0,0]
[6,321000,"УТВРЂИВАЊЕ РЕЗУЛТАТА ПОСЛОВАЊА (7)",{"$f":"SUM(D35)","v":0},0,0,0,0,0,0,0,0,0,0,0]
[7,321300,"Нераспоређени вишак прихода и примања или дефицит из ранијих година",null,null,null,null,null,null,null,null,null,null,{"$f":"SUM(H35,J35,L35)","v":0},{"$f":"SUM(I35,K35,M35)","v":0}]
[{"$f":"A35+1","v":8},700000,"ТЕКУЋИ ПРИХОДИ \n(9 + 32 + 44 + 69 + 74 +78)",{"$f":"D37+D60+D72+D97+D102+D106","v":0},{"$f":"E37+E60+E72+E97+E102+E106","v":0},0,0,1800000,0,0,0,0,0,{"$f":"N37+N60+N72+N97+N102+N106","v":1800000},0]
[{"$f":"A36+1","v":9},710000,"ПОРЕЗИ \n(10 + 14 + 16 + 23 + 29)",{"$f":"D38+D42+D44+D51+D57","v":0},{"$f":"E38+E42+E44+E51+E57","v":0},0,0,0,0,0,0,0,0,0,0]
[10,711000,"ПОРЕЗ НА ДОХОДАК, ДОБИТ И КАПИТАЛНЕ ДОБИТКЕ (од 11 до 13)",{"$f":"SUM(D39:D41)","v":0},{"$f":"SUM(E39:E41)","v":0},0,0,0,0,0,0,0,0,{"$f":"SUM(H38,J38,L38)","v":0},0]
[11,711100,"Порези на доходак и капиталнe добиткe које плаћају физичка лица",null,null,null,null,null,null,null,null,null,null,0,0]
[12,711200,"Порези на добит и капиталне добитке које плаћају предузећа и друга правна лица",null,null,null,null,null,null,null,null,null,null,0,0]
[13,711300,"Порези на доходак, добит и капиталне добитке који се не могу разврстати између физичких и правних лица",null,null,null,null,null,null,null,null,null,null,0,0]
[14,712000,"ПОРЕЗ НА ФОНД ЗАРАДА (15)",{"$f":"SUM(D43)","v":0},0,0,0,0,0,0,0,0,0,0,0]
[15,712100,"Порез на фонд зарада",null,null,null,null,null,null,null,null,null,null,0,0]
[16,713000,"ПОРЕЗ НА ИМОВИНУ (од 17 до 22)",{"$f":"SUM(D45:D50)","v":0},0,0,0,0,0,0,0,0,0,0,0]
[17,713100,"Периодични порези на непокретности",null,null,null,null,null,null,null,null,null,null,0,0]
[18,713200,"Периодични порези на нето имовину",null,null,null,null,null,null,null,null,null,null,0,0]
[19,713300,"Порези на заоставштину, наслеђе и поклон",null,null,null,null,null,null,null,null,null,null,0,0]
[20,713400,"Порези на финансијске и капиталне трансакције",null,null,null,null,null,null,null,null,null,null,0,0]
[21,713500,"Други једнократни порези на имовину",null,null,null,null,null,null,null,null,null,null,0,0]
[22,713600,"Други периодични порези на имовину",null,null,null,null,null,null,null,null,null,null,0,0]
[23,714000,"ПОРЕЗ НА ДОБРА И УСЛУГЕ (од 24 до 28)",{"$f":"SUM(D52:D56)","v":0},0,0,0,0,0,0,0,0,0,0,0]
[24,714100,"Општи порези на добра и услуге",null,null,null,null,null,null,null,null,null,null,0,0]
[25,714300,"Добит фискалних монопола",null,null,null,null,null,null,null,null,null,null,0,0]
[26,714400,"Порези на појединачне услуге",null,null,null,null,null,null,null,null,null,null,0,0]
[27,714500,"Порези, таксе и накнаде на употребу добара, на дозволу да се добра употребљавају или делатности обављају",null,null,null,null,null,null,null,null,null,null,0,0]
[28,714600,"Други порези на добра и услуге",null,null,null,null,null,null,null,null,null,null,0,0]
[29,716000,"ДРУГИ ПОРЕЗИ (30 + 31)",{"$f":"SUM(D58:D59)","v":0},0,0,0,0,0,0,0,0,0,0,0]
[30,716100,"Други порези које искључиво плаћају предузећа, односно предузетници",null,null,null,null,null,null,null,null,null,null,0,0]
[31,716200,"Други порези које плаћају остала лица или који се не могу идентификовати",null,null,null,null,null,null,null,null,null,null,0,0]
[32,730000,"ДОНАЦИЈЕ, ПОМОЋИ И ТРАНСФЕРИ \n(33 + 36 + 41)",{"$f":"D61+D64+D69","v":0},{"$f":"E61+E64+E69","v":0},0,0,0,0,0,0,0,0,0,0]
[33,731000,"ДОНАЦИЈЕ ОД ИНОСТРАНИХ ДРЖАВА (34 + 35)",{"$f":"SUM(D62:D63)","v":0},0,0,0,0,0,0,0,0,0,0,0]
[34,731100,"Текуће донације од иностраних држава",null,null,null,null,null,null,null,null,null,null,0,0]
[35,731200,"Капиталне донације од иностраних држава",null,null,null,null,null,null,null,null,null,null,0,0]
[36,732000,"ДОНАЦИЈЕ И ПОМОЋИ ОД МЕЂУНАРОДНИХ ОРГАНИЗАЦИЈА (од 37 до 40)",{"$f":"SUM(D65:D68)","v":0},{"$f":"SUM(E65:E68)","v":0},0,0,0,0,0,0,0,0,0,0]
[37,732100,"Текуће донације од међународних организација",null,null,null,null,null,null,null,null,null,null,0,0]
[38,732200,"Капиталне донације од међународних организација",null,null,null,null,null,null,null,null,null,null,0,0]
[39,732300,"Текуће помоћи од ЕУ",null,null,null,null,null,null,null,null,null,null,0,0]
[40,732400,"Капиталне помоћи од ЕУ",null,null,null,null,null,null,null,null,null,null,0,0]
[41,733000,"ТРАНСФЕРИ ОД ДРУГИХ НИВОА ВЛАСТИ (42 + 43)",{"$f":"SUM(D70:D71)","v":0},0,0,0,0,0,0,0,0,0,{"$f":"SUM(H69,J69,L69)","v":0},0]
[42,733100,"Текући трансфери од других нивоа власти",null,null,null,null,null,null,null,null,null,null,0,0]
[43,733200,"Капитални трансфери од других нивоа власти",null,null,null,null,null,null,null,null,null,null,0,0]
[44,740000,"ДРУГИ ПРИХОДИ (45 + 52 + 57 + 64 + 67)",{"$f":"D73+D80+D85+D92+D95","v":0},{"$f":"E73+E80+E85+E92+E95","v":0},0,0,0,0,0,0,0,0,0,0]
[45,741000,"ПРИХОДИ ОД ИМОВИНЕ (од 46 до 51)",{"$f":"SUM(D74:D79)","v":0},{"$f":"SUM(E74:E79)","v":0},0,0,0,0,0,0,0,0,0,0]
[46,741100,"Камате",null,null,null,null,null,null,null,null,null,null,0,0]
[47,741200,"Дивиденде",null,null,null,null,null,null,null,null,null,null,0,0]
[48,741300,"Повлачење прихода од квази корпорација",null,null,null,null,null,null,null,null,null,null,0,0]
[49,741400,"Приход од имовине који припада имаоцима полиса осигурања",null,null,null,null,null,null,null,null,null,null,0,0]
[50,741500,"Закуп непроизведене имовине",null,null,null,null,null,null,null,null,null,null,0,0]
[51,741600,"Финансијске промене на финансијским лизинзима",null,null,null,null,null,null,null,null,null,null,0,0]
[52,742000,"ПРИХОДИ ОД ПРОДАЈЕ ДОБАРА И УСЛУГА (од 53 до 56)",{"$f":"SUM(D81:D84)","v":0},0,0,0,0,0,0,0,0,0,0,0]
[53,742100,"Приходи од продаје добара и услуга или закупа од стране тржишних организација",null,null,null,null,null,null,null,null,null,null,0,0]
[54,742200,"Таксе и накнаде",null,null,null,null,null,null,null,null,null,null,0,0]
[55,742300,"Споредне продаје добара и услуга које врше државне нетржишне јединице",null,null,null,null,null,null,null,null,null,null,0,0]
[56,742400,"Импутиране продаје добара и услуга",null,null,null,null,null,null,null,null,null,null,0,0]
[57,743000,"НОВЧАНЕ КАЗНЕ И ОДУЗЕТА ИМОВИНСКА КОРИСТ (од 58 до 63)",{"$f":"SUM(D86:D91)","v":0},0,0,0,0,0,0,0,0,0,0,0]
[58,743100,"Приходи од новчаних казни за кривична дела",null,null,null,null,null,null,null,null,null,null,0,0]
[59,743200,"Приходи од новчаних казни за привредне преступе",null,null,null,null,null,null,null,null,null,null,0,0]
[60,743300,"Приходи од новчаних казни за прекршаје",null,null,null,null,null,null,null,null,null,null,0,0]
[61,743400,"Приходи од пенала",null,null,null,null,null,null,null,null,null,null,0,0]
[62,743500,"Приходи од одузете имовинске користи",null,null,null,null,null,null,null,null,null,null,0,0]
[63,743900,"Остале новчане казне, пенали и приходи од одузете имовинске користи",null,null,null,null,null,null,null,null,null,null,0,0]
[64,744000,"ДОБРОВОЉНИ ТРАНСФЕРИ ОД ФИЗИЧКИХ И ПРАВНИХ ЛИЦА (65 + 66)",{"$f":"SUM(D93:D94)","v":0},0,0,0,0,0,0,0,0,0,0,0]
[65,744100,"Текући добровољни трансфери од физичких и правних лица",null,null,null,null,null,null,null,null,null,null,0,0]
[66,744200,"Капитални добровољни трансфери од физичких и правних лица",null,null,null,null,null,null,null,null,null,null,0,0]
[67,745000,"МЕШОВИТИ И НЕОДРЕЂЕНИ ПРИХОДИ (68)",{"$f":"D96","v":0},{"$f":"E96","v":0},0,0,0,0,0,0,0,0,0,0]
[68,745100,"Мешовити и неодређени приходи",null,null,null,null,null,null,null,null,null,null,0,0]
[69,770000,"МЕМОРАНДУМСКЕ СТАВКЕ ЗА РЕФУНДАЦИЈУ РАСХОДА (70 + 72)",{"$f":"D98+D100","v":0},0,0,0,0,0,0,0,0,0,0,0]
[70,771000,"МЕМОРАНДУМСКЕ СТАВКЕ ЗА РЕФУНДАЦИЈУ РАСХОДА (71)",{"$f":"D99","v":0},{"$f":"E99","v":0},0,0,0,0,0,0,0,0,0,0]
[71,771100,"Меморандумске ставке за рефундацију расхода",null,null,null,null,null,null,null,null,null,null,0,0]
[72,772000,"МЕМОРАНДУМСКЕ СТАВКЕ ЗА РЕФУНДАЦИЈУ РАСХОДА ИЗ ПРЕТХОДНЕ ГОДИНЕ (73)",{"$f":"D101","v":0},{"$f":"E101","v":0},0,0,0,0,0,0,0,0,0,0]
[{"$f":"A100+1","v":73},772100,"Меморандумске ставке за рефундацију расхода из претходне године",null,null,null,null,null,null,null,null,null,null,0,0]
[74,780000,"ТРАНСФЕРИ ИЗМЕЂУ БУЏЕТСКИХ КОРИСНИКА НА ИСТОМ НИВОУ (75)",{"$f":"D103","v":0},0,0,0,0,0,0,0,0,0,0,0]
[75,781000,"ТРАНСФЕРИ ИЗМЕЂУ БУЏЕТСКИХ КОРИСНИКА НА ИСТОМ НИВОУ (76 + 77)",{"$f":"SUM(D104:D105)","v":0},0,0,0,0,0,0,0,0,0,0,0]
[76,781100,"Трансфери између буџетских корисника на истом нивоу",null,null,null,null,null,null,null,null,null,null,0]
[77,781300,"Трансфери између организација обавезног социјалног осигурања",null,null,null,null,null,null,null,null,null,null,{"$f":"SUM(H105,J105,L105)","v":0},0]
[78,790000,"ПРИХОДИ ИЗ БУЏЕТА (79)",{"$f":"D107","v":0},0,0,0,1800000,0,0,0,0,0,1800000,0]
[79,791000,"ПРИХОДИ ИЗ БУЏЕТА (80)",{"$f":"D108","v":0},0,0,0,1800000,0,0,0,0,0,1800000,{"$f":"SUM(I107,K107,M107)","v":0}]
[80,791100,"Приходи из буџета",null,null,null,null,1800000,null,null,null,null,null,1800000]
[81,800000,"ПРИМАЊА ОД ПРОДАЈЕ НЕФИНАНСИЈСКЕ ИМОВИНЕ (82 + 89 + 96 + 99)",{"$f":"D110+D117+D124+D127","v":0},{"$f":"E110+E117+E124+E127","v":0},0,0,0,0,0,0,0,0,0,0]
[82,810000,"ПРИМАЊА ОД ПРОДАЈЕ ОСНОВНИХ СРЕДСТАВА (83 + 85 + 87)",{"$f":"D111+D113+D115","v":0},{"$f":"E111+E113+E115","v":0},0,0,0,0,0,0,0,0,0,0]
[83,811000,"ПРИМАЊА ОД ПРОДАЈЕ НЕПОКРЕТНОСТИ (84)",{"$f":"D112","v":0},{"$f":"E112","v":0},0,0,0,0,0,0,0,0,0,0]
[84,811100,"Примања од продаје непокретности",null,null,null,null,null,null,null,null,null,null,0,0]
[85,812000,"ПРИМАЊА ОД ПРОДАЈЕ ПОКРЕТНЕ ИМОВИНЕ (86)",{"$f":"D114","v":0},0,0,0,0,0,0,0,0,0,0,0]
[86,812100,"Примања од продаје покретне имовине",null,null,null,null,null,null,null,null,null,null,0,0]
[87,813000,"ПРИМАЊА ОД ПРОДАЈЕ ОСТАЛИХ ОСНОВНИХ СРЕДСТАВА (88)",{"$f":"D116","v":0},0,0,0,0,0,0,0,0,0,0,0]
[88,813100,"Примања од продаје осталих основних средстава",null,null,null,null,null,null,null,null,null,null,0,0]
[89,820000,"ПРИМАЊА ОД ПРОДАЈЕ ЗАЛИХА (90 + 92 + 94)",{"$f":"D118+D120+D122","v":0},0,0,0,0,0,0,0,0,0,0,0]
[90,821000,"ПРИМАЊА ОД ПРОДАЈЕ РОБНИХ РЕЗЕРВИ (91)",{"$f":"D119","v":0},0,0,0,0,0,0,0,0,0,0,0]
[91,821100,"Примања од продаје робних резерви",null,null,null,null,null,null,null,null,null,null,0,0]
[92,822000,"ПРИМАЊА ОД ПРОДАЈЕ ЗАЛИХА  ПРОИЗВОДЊЕ (93)",{"$f":"D121","v":0},0,0,0,0,0,0,0,0,0,0,0]
[93,822100,"Примања од продаје залиха производње",null,null,null,null,null,null,null,null,null,null,0,0]
[94,823000,"ПРИМАЊА ОД ПРОДАЈЕ РОБЕ ЗА ДАЉУ ПРОДАЈУ (95)",{"$f":"D123","v":0},0,0,0,0,0,0,0,0,0,0,0]
[95,823100,"Примања од продаје робе за даљу продају",null,null,null,null,null,null,null,null,null,null,0,0]
[96,830000,"ПРИМАЊА ОД ПРОДАЈЕ ДРАГОЦЕНОСТИ (97)",{"$f":"D125","v":0},0,0,0,0,0,0,0,0,0,0,0]
[97,831000,"ПРИМАЊА ОД ПРОДАЈЕ ДРАГОЦЕНОСТИ (98)",0,0,0,0,0,0,0,0,0,0,0,0]
[98,831100,"Примања од продаје драгоцености",null,null,null,null,null,null,null,null,null,null,0,0]
[99,840000,"ПРИМАЊА ОД ПРОДАЈЕ ПРИРОДНЕ ИМОВИНЕ (100 + 102 + 104)",{"$f":"D128+D130+D132","v":0},0,0,0,0,0,0,0,0,0,0,0]
[100,841000,"ПРИМАЊА ОД ПРОДАЈЕ ЗЕМЉИШТА (101)",{"$f":"D129","v":0},0,0,0,0,0,0,0,0,0,0,0]
[101,841100,"Примања од продаје земљишта",null,null,null,null,null,null,null,null,null,null,0,0]
[102,842000,"ПРИМАЊА ОД ПРОДАЈЕ ПОДЗЕМНИХ БЛАГА (103)",{"$f":"D131","v":0},0,0,0,0,0,0,0,0,0,0,0]
[103,842100,"Примања од продаје подземних блага",null,null,null,null,null,null,null,null,null,null,0,0]
[104,843000,"ПРИМАЊА ОД ПРОДАЈЕ ШУМА И ВОДА (105)",{"$f":"D133","v":0},0,0,0,0,0,0,0,0,0,0,0]
[105,843100,"Примања од продаје шума и вода",null,null,null,null,null,null,null,null,null,null,{"$f":"SUM(H133,J133,L133)","v":0},0]
[106,900000,"ПРИМАЊА ОД ЗАДУЖИВАЊА И ПРОДАЈЕ ФИНАНСИЈСКЕ ИМОВИНЕ (107 + 126)",{"$f":"D135+D154","v":0},{"$f":"E135+E154","v":0},0,0,0,0,0,0,0,0,0,0]
[107,910000,"ПРИМАЊА ОД ЗАДУЖИВАЊА (108+118)",{"$f":"D136+D146","v":0},{"$f":"E136+E146","v":0},0,0,0,0,0,0,0,0,0,0]
[108,911000,"ПРИМАЊА ОД ДОМАЋИХ ЗАДУЖИВАЊА (од 109 до 117)",{"$f":"SUM(D137:D145)","v":0},0,0,0,0,0,0,0,0,0,0,0]
[109,911100,"Примања од емитовања домаћих хартија од вредности, изузев акција",null,null,null,null,null,null,null,null,null,null,0,0]
[110,911200,"Примања од задуживања од осталих нивоа власти",null,null,null,null,null,null,null,null,null,null,0,0]
[111,911300,"Примања од задуживања од јавних финансијских институција у земљи",null,null,null,null,null,null,null,null,null,null,0,0]
[112,911400,"Примања од задуживања од пословних банака у земљи",null,null,null,null,null,null,null,null,null,null,0,0]
[113,911500,"Примања од задуживања код осталих поверилаца у земљи",null,null,null,null,null,null,null,null,null,null,0,0]
[114,911600,"Примања од задуживања од домаћинстава у земљи",null,null,null,null,null,null,null,null,null,null,0,0]
[115,911700,"Примања од домаћих финансијских деривата",null,null,null,null,null,null,null,null,null,null,0,0]
[116,911800,"Примања од домаћих меница",null,null,null,null,null,null,null,null,null,null,0,0]
[117,911900,"Исправка унутрашњег дуга",null,null,null,null,null,null,null,null,null,null,0,0]
[118,912000,"ПРИМАЊА ОД ИНОСТРАНОГ ЗАДУЖИВАЊА (од 119 + 125)",{"$f":"SUM(D147:D153)","v":0},0,0,0,0,0,0,0,0,0,0,0]
[119,912100,"Примања од емитовања хартија од вредности, изузев акција, на иностраном финансијском тржишту",null,null,null,null,null,null,null,null,null,null,0,0]
[120,912200,"Примања од задуживања од иностраних држава",null,null,null,null,null,null,null,null,null,null,0,0]
[121,912300,"Примања од задуживања од мултилатералних институција",null,null,null,null,null,null,null,null,null,null,0,0]
[122,912400,"Примања од задуживања од иностраних пословних банака",null,null,null,null,null,null,null,null,null,null,0,0]
[123,912500,"Примања од задуживања од осталих иностраних поверилаца",null,null,null,null,null,null,null,null,null,null,0,0]
[124,912600,"Примања од иностраних финансијских деривата",null,null,null,null,null,null,null,null,null,null,0,0]
[125,912900,"Исправка спољног дуга",null,null,null,null,null,null,null,null,null,null,0,0]
[126,920000,"ПРИМАЊА ОД ПРОДАЈЕ ФИНАНСИЈСКЕ ИМОВИНЕ (127 + 137)",{"$f":"D155+D165","v":0},0,0,0,0,0,0,0,0,0,0,0]
[127,921000,"ПРИМАЊА ОД ПРОДАЈЕ ДОМАЋЕ ФИНАНСИЈСКЕ ИМОВИНЕ (од 128 до 136) ",{"$f":"SUM(D156:D164)","v":0},0,0,0,0,0,0,0,0,0,0,0]
[128,921100,"Примања од продаје домаћих хартија од вредности, изузев акција",null,null,null,null,null,null,null,null,null,null,0,0]
[129,921200,"Примања од отплате кредита датих осталим нивоима власти",null,null,null,null,null,null,null,null,null,null,0,0]
[130,921300,"Примања од отплате кредита датих домаћим јавним финансијским институцијама",null,null,null,null,null,null,null,null,null,null,0,0]
[131,921400,"Примања од отплате кредита домаћим пословним банкама",null,null,null,null,null,null,null,null,null,null,0,0]
[132,921500,"Примања од отплате кредита датих домаћим јавним нефинансијским институцијама",null,null,null,null,null,null,null,null,null,null,0,0]
[133,921600,"Примања од отплате кредита датих физичким лицима и домаћинствима у земљи",null,null,null,null,null,null,null,null,null,null,0,0]
[134,921700,"Примања од отплате кредита датих удружењима грађана у земљи",null,null,null,null,null,null,null,null,null,null,0,0]
[135,921800,"Примања од отплате кредита датих нефинансијским приватним предузећима у земљи",null,null,null,null,null,null,null,null,null,null,0,0]
[136,921900,"Примања од продаје домаћих акција и осталог капитала",null,null,null,null,null,null,null,null,null,null,0,0]
[{"$f":"A164+1","v":137},922000,"ПРИМАЊА ОД ПРОДАЈЕ СТРАНЕ ФИНАНСИЈСКЕ ИМОВИНЕ (од 138 до 145)",{"$f":"SUM(D166:D173)","v":0},{"$f":"SUM(E166:E173)","v":0},0,0,0,0,0,0,0,0,0,0]
[138,922100,"Примања од продаје страних хартија од вредности, изузев акција",null,null,null,null,null,null,null,null,null,null,0,0]
[139,922200,"Примања од отплате кредита датих страним владама",null,null,null,null,null,null,null,null,null,null,0,0]
[140,922300,"Примања од отплате кредита датих међународним организацијама",null,null,null,null,null,null,null,null,null,null,0,0]
[141,922400,"Примања од отплате кредита датих страним пословним банкама",null,null,null,null,null,null,null,null,null,null,0,0]
[142,922500,"Примања од отплате кредита датих страним нефинансијским институцијама",null,null,null,null,null,null,null,null,null,null,0,0]
[143,922600,"Примања од отплате кредита датих страним невладиним организацијама",null,null,null,null,null,null,null,null,null,null,0,0]
[144,922700,"Примања од продаје страних акција и осталог капитала",null,null,null,null,null,null,null,null,null,null,0,0]
[145,922800,"Примања од продаје стране валуте",null,null,null,null,null,null,null,null,null,null,0,0]
[146,null,"УКУПНИ ПРИХОДИ, ПРИМАЊА И ПРЕНЕТА СРЕДСТВА ИЗ ПРЕТХОДНЕ ГОДИНЕ (1 + 8 + 81 + 106)",{"$f":"D29+D36+D109+D134","v":0},{"$f":"E29+E36+E109+E134","v":0},0,0,1800000,0,0,0,0,0,{"$f":"SUM(H174,J174,L174)","v":1800000},{"$f":"SUM(I174,K174,M174)","v":0}]
[147,400000,"ТЕКУЋИ РАСХОДИ (148+166+211+226+250+263+279+294)",{"$f":"D176+D194+D239+D254+D278+D291+D307+D322","v":0},0,0,0,1800000,0,0,0,0,0,1800000,0]
[148,410000,"РАСХОДИ ЗА ЗАПОСЛЕНЕ (149+151+155+157+162+164)",{"$f":"D177+D179+D183+D185+D190+D192","v":0},{"$f":"E177+E179+E183+E185+E190+E192","v":0},0,0,0,0,0,0,0,0,0,0]
[149,411000,"ПЛАТЕ, ДОДАЦИ И НАКНАДЕ ЗАПОСЛЕНИХ (ЗАРАДЕ) (150)",{"$f":"D178","v":0},0,0,0,0,0,0,0,0,0,0,0]
[150,411100,"Плате, додаци и накнаде запослених",null,null,null,null,null,null,null,null,null,null,0,0]
[151,412000,"СОЦИЈАЛНИ ДОПРИНОСИ НА ТЕРЕТ ПОСЛОДАВЦА (од 152 до 154)",{"$f":"SUM(D180:D182)","v":0},0,0,0,0,0,0,0,0,0,0,0]
[152,412100,"Допринос за пензијско и инвалидско осигурање",null,null,null,null,null,null,null,null,null,null,0,0]
[153,412200,"Допринос за здравствено осигурање",null,null,null,null,null,null,null,null,null,null,0,0]
[154,412300,"Допринос за незапосленост",null,null,null,null,null,null,null,null,null,null,0,0]
[155,413000,"НАКНАДЕ У НАТУРИ (156)",{"$f":"D184","v":0},0,0,0,0,0,0,0,0,0,0,0]
[156,413100,"Накнаде у натури",null,null,null,null,null,null,null,null,null,null,0,0]
[157,414000,"СОЦИЈАЛНА ДАВАЊА ЗАПОСЛЕНИМА (од 158 до 161)",{"$f":"SUM(D186:D189)","v":0},0,0,0,0,0,0,0,0,0,0,0]
[158,414100,"Исплата накнада за време одсуствовања с посла на терет фондова",null,null,null,null,null,null,null,null,null,null,0,0]
[159,414200,"Расходи за образовање деце запослених",null,null,null,null,null,null,null,null,null,null,0,0]
[160,414300,"Отпремнине и помоћи",null,null,null,null,null,null,null,null,null,null,0,0]
[161,414400,"Помоћ у медицинском лечењу запосленог или чланова уже породице и друге помоћи запосленом",null,null,null,null,null,null,null,null,null,null,0,0]
[162,415000,"НАКНАДА ТРОШКОВА ЗА ЗАПОСЛЕНЕ (163)",{"$f":"D191","v":0},0,0,0,0,0,0,0,0,0,0,0]
[163,415100,"Накнаде трошкова за запослене",null,null,null,null,null,null,null,null,null,null,0,0]
[164,416000,"НАГРАДЕ ЗАПОСЛЕНИМА И ОСТАЛИ ПОСЕБНИ РАСХОДИ (165)",{"$f":"D193","v":0},0,0,0,0,0,0,0,0,0,0,0]
[165,416100,"Награде запосленима и остали посебни расходи",null,null,null,null,null,null,null,null,null,null,0,0]
[166,420000,"КОРИШЋЕЊЕ УСЛУГА И РОБА (167 + 175 + 181 + 190 + 198 + 201) ",{"$f":"D195+D203+D209+D218+D226+D229","v":0},0,0,0,1800000,0,0,0,0,0,{"$f":"SUM(H194,J194,L194)","v":1800000},0]
[167,421000,"СТАЛНИ ТРОШКОВИ (од 168 до 174)",{"$f":"SUM(D196:D202)","v":0},0,0,0,0,0,0,0,0,0,0,0]
[168,421100,"Трошкови платног промета и банкарских услуга",null,null,null,null,null,null,null,null,null,null,0,0]
[169,421200,"Енергетске услуге",null,null,null,null,null,null,null,null,null,null,0,0]
[170,421300,"Комуналне услуге",null,null,null,null,null,null,null,null,null,null,0,0]
[171,421400,"Услуге комуникација",null,null,null,null,null,null,null,null,null,null,0,0]
[172,421500,"Трошкови осигурања",null,null,null,null,null,null,null,null,null,null,0,0]
[173,421600,"Закуп имовине и опреме",null,null,null,null,null,null,null,null,null,null,0,0]
[174,421900,"Остали трошкови",null,null,null,null,null,null,null,null,null,null,0,0]
[175,422000,"ТРОШКОВИ ПУТОВАЊА (од 176 до 180)",{"$f":"SUM(D204:D208)","v":0},0,0,0,0,0,0,0,0,0,0,0]
[176,422100,"Трошкови службених путовања у земљи",null,null,null,null,null,null,null,null,null,null,0,0]
[177,422200,"Трошкови службених путовања у иностранство",null,null,null,null,null,null,null,null,null,null,0,0]
[178,422300,"Трошкови путовања у оквиру редовног рада",null,null,null,null,null,null,null,null,null,null,0,0]
[179,422400,"Трошкови путовања ученика",null,null,null,null,null,null,null,null,null,null,0,0]
[180,422900,"Остали трошкови транспорта",null,null,null,null,null,null,null,null,null,null,0,0]
[181,423000,"УСЛУГЕ ПО УГОВОРУ (од 182 до 189)",{"$f":"SUM(D210:D217)","v":0},0,0,0,0,0,0,0,0,0,0,0]
[182,423100,"Административне услуге",null,null,null,null,null,null,null,null,null,null,0,0]
[183,423200,"Компјутерске услуге",null,null,null,null,null,null,null,null,null,null,0,0]
[184,423300,"Услуге образовања и усавршавања запослених",null,null,null,null,null,null,null,null,null,null,0,0]
[185,423400,"Услуге информисања",null,null,null,null,null,null,null,null,null,null,0,0]
[186,423500,"Стручне услуге",null,null,null,null,null,null,null,null,null,null,0,0]
[187,423600,"Услуге за домаћинство и угоститељство",null,null,null,null,null,null,null,null,null,null,0,0]
[188,423700,"Репрезентација",null,null,null,null,null,null,null,null,null,null,0,0]
[189,423900,"Остале опште услуге",null,null,null,null,null,null,null,null,null,null,0,0]
[190,424000,"СПЕЦИЈАЛИЗОВАНЕ УСЛУГЕ (од 191 до197)",{"$f":"SUM(D219:D225)","v":0},0,0,0,0,0,0,0,0,0,0,0]
[191,424100,"Пољопривредне услуге",null,null,null,null,null,null,null,null,null,null,0,0]
[192,424200,"Услуге образовања, културе и спорта",null,null,null,null,null,null,null,null,null,null,0,0]
[193,424300,"Медицинске услуге",null,null,null,null,null,null,null,null,null,null,0,0]
[194,424400,"Услуге одржавања аутопутева",null,null,null,null,null,null,null,null,null,null,0,0]
[195,424500,"Услуге одржавања националних паркова и природних површина",null,null,null,null,null,null,null,null,null,null,0,0]
[196,424600,"Услуге очувања животне средине, науке и геодетске услуге",null,null,null,null,null,null,null,null,null,null,0,0]
[197,424900,"Остале специјализоване услуге",null,null,null,null,null,null,null,null,null,null,0,0]
[198,425000,"ТЕКУЋЕ ПОПРАВКЕ И ОДРЖАВАЊЕ (199 + 200)",{"$f":"D227+D228","v":0},{"$f":"E227+E228","v":0},0,0,1800000,0,0,0,0,0,1800000,0]
[199,425100,"Текуће поправке и одржавање зграда и објеката",null,null,null,null,1800000,null,null,null,null,null,1800000,0]
[200,425200,"Текуће поправке и одржавање опреме",null,null,null,null,null,null,null,null,null,null,0,0]
[{"$f":"A228+1","v":201},426000,"МАТЕРИЈАЛ (од 202 до 210)",{"$f":"SUM(D230:D238)","v":0},0,0,0,0,0,0,0,0,0,0,0]
[202,426100,"Административни материјал",null,null,null,null,null,null,null,null,null,null,0,0]
[203,426200,"Материјали за пољопривреду",null,null,null,null,null,null,null,null,null,null,0,0]
[204,426300,"Материјали за образовање и усавршавање запослених",null,null,null,null,null,null,null,null,null,null,0,0]
[205,426400,"Материјали за саобраћај",null,null,null,null,null,null,null,null,null,null,0,0]
[206,426500,"Материјали за очување животне средине и науку",null,null,null,null,null,null,null,null,null,null,0,0]
[207,426600,"Материјали за образовање, културу и спорт",null,null,null,null,null,null,null,null,null,null,0,0]
[208,426700,"Медицински и лабораторијски материјали",null,null,null,null,null,null,null,null,null,null,0,0]
[209,426800,"Материјали за одржавање хигијене и угоститељство",null,null,null,null,null,null,null,null,null,null,0,0]
[210,426900,"Материјали за посебне намене",null,null,null,null,null,null,null,null,null,null,0,0]
[211,430000,"АМОРТИЗАЦИЈА И УПОТРЕБА СРЕДСТАВА ЗА РАД (212 + 216 + 218 + 220 + 224)",{"$f":"D240+D244+D246+D248+D252","v":0},{"$f":"E240+E244+E246+E248+E252","v":0},0,0,0,0,0,0,0,0,0,0]
[212,431000,"АМОРТИЗАЦИЈА НЕКРЕТНИНА И ОПРЕМЕ (од 213 до 215)",{"$f":"SUM(D241:D243)","v":0},0,0,0,0,0,0,0,0,0,0,0]
[213,431100,"Амортизација зграда и грађевинскиx објеката",null,null,null,null,null,null,null,null,null,null,0,0]
[214,431200,"Амортизација опреме",null,null,null,null,null,null,null,null,null,null,0,0]
[215,431300,"Амортизација осталих некретнина и опреме",null,null,null,null,null,null,null,null,null,null,0,0]
[216,432000,"АМОРТИЗАЦИЈА КУЛТИВИСАНЕ ИМОВИНЕ (217)",{"$f":"D245","v":0},0,0,0,0,0,0,0,0,0,0,0]
[217,432100,"Амортизација култивисане опреме",null,null,null,null,null,null,null,null,null,null,0,0]
[218,433000,"УПОТРЕБА ДРАГОЦЕНОСТИ (219)",{"$f":"D247","v":0},0,0,0,0,0,0,0,0,0,0,0]
[219,433100,"Употреба драгоцености",null,null,null,null,null,null,null,null,null,null,0,0]
[220,434000,"УПОТРЕБА ПРИРОДНЕ ИМОВИНЕ (од 221 до 223)",{"$f":"SUM(D249:D251)","v":0},0,0,0,0,0,0,0,0,0,0,0]
[221,434100,"Употреба земљишта",null,null,null,null,null,null,null,null,null,null,0,0]
[222,434200,"Употреба подземног блага",null,null,null,null,null,null,null,null,null,null,0,0]
[223,434300,"Употреба шума и вода",null,null,null,null,null,null,null,null,null,null,0,0]
[224,435000,"АМОРТИЗАЦИЈА НЕМАТЕРИЈАЛНЕ ИМОВИНЕ (225)",{"$f":"D253","v":0},0,0,0,0,0,0,0,0,0,0,0]
[225,435100,"Амортизација нематеријалне имовине",null,null,null,null,null,null,null,null,null,null,0,0]
[226,440000,"ОТПЛАТА КАМАТА И ПРАТЕЋИ ТРОШКОВИ ЗАДУЖИВАЊА (227 + 237 + 244 + 246)",{"$f":"D255+D265+D272+D274","v":0},0,0,0,0,0,0,0,0,0,0,0]
[227,441000,"ОТПЛАТЕ ДОМАЋИХ КАМАТА (од 228 до 236)",{"$f":"SUM(D256:D264)","v":0},{"$f":"SUM(E256:E264)","v":0},0,0,0,0,0,0,0,0,0,0]
[228,441100,"Отплата камата на домаће хартије од вредности",null,null,null,null,null,null,null,null,null,null,{"$f":"SUM(H256,J256,L256)","v":0},0]
[229,441200,"Отплата камата осталим нивоима власти",null,null,null,null,null,null,null,null,null,null,0,0]
[230,441300,"Отплата камата домаћим јавним финансијским институцијама",null,null,null,null,null,null,null,null,null,null,0,0]
[231,441400,"Отплата камата домаћим пословним банкама",null,null,null,null,null,null,null,null,null,null,0,0]
[232,441500,"Отплата камата осталим домаћим кредиторима",null,null,null,null,null,null,null,null,null,null,0,0]
[233,441600,"Отплата камата домаћинствима у земљи",null,null,null,null,null,null,null,null,null,null,0,0]
[234,441700,"Отплата камата на домаће финансијске деривате",null,null,null,null,null,null,null,null,null,null,0,0]
[235,441800,"Отплата камата на домаће менице",null,null,null,null,null,null,null,null,null,null,0,0]
[236,441900,"Финансијске промене на финансијским лизинзима",null,null,null,null,null,null,null,null,null,null,0,0]
[237,442000,"ОТПЛАТА СТРАНИХ КАМАТА (од 238 до 243)",{"$f":"SUM(D266:D271)","v":0},0,0,0,0,0,0,0,0,0,0,0]
[238,442100,"Отплата камата на хартије од вредности емитоване на иностраном финансијском тржишту",null,null,null,null,null,null,null,null,null,null,0,0]
[239,442200,"Отплата камата страним владама",null,null,null,null,null,null,null,null,null,null,0,0]
[240,442300,"Отплата камата мултилатералним институцијама",null,null,null,null,null,null,null,null,null,null,0,0]
[241,442400,"Отплата камата страним пословним банкама",null,null,null,null,null,null,null,null,null,null,0,0]
[242,442500,"Отплата камата осталим страним кредиторима",null,null,null,null,null,null,null,null,null,null,0,0]
[243,442600,"Отплата камата на стране финансијске деривате",null,null,null,null,null,null,null,null,null,null,0,0]
[244,443000,"ОТПЛАТА КАМАТА ПО ГАРАНЦИЈАМА 245)",{"$f":"D273","v":0},{"$f":"E273","v":0},0,0,0,0,0,0,0,0,0,0]
[245,443100,"Отплата камата по гаранцијама",null,null,null,null,null,null,null,null,null,null,0,0]
[246,444000,"ПРАТЕЋИ ТРОШКОВИ ЗАДУЖИВАЊА (од 247 до 249)",{"$f":"SUM(D275:D277)","v":0},0,0,0,0,0,0,0,0,0,0,0]
[247,444100,"Негативне курсне разлике",null,null,null,null,null,null,null,null,null,null,0,0]
[248,444200,"Казне за кашњење",null,null,null,null,null,null,null,null,null,null,0,0]
[249,444300,"Остали пратећи трошкови задуживања",null,null,null,null,null,null,null,null,null,null,0,0]
[250,450000,"СУБВЕНЦИЈЕ (251 + 254 + 257 + 260)",{"$f":"D279+D282+D285+D288","v":0},0,0,0,0,0,0,0,0,0,0,0]
[251,451000,"СУБВЕНЦИЈЕ ЈАВНИМ НЕФИНАНСИЈСКИМ ПРЕДУЗЕЋИМА И ОРГАНИЗАЦИЈАМА (252 + 253)",{"$f":"SUM(D280:D281)","v":0},0,0,0,0,0,0,0,0,0,0,0]
[252,451100,"Текуће субвенције јавним нефинансијским предузећима и организацијама",null,null,null,null,null,null,null,null,null,null,0,0]
[253,451200,"Капиталне субвенције јавним нефинансијским предузећима и организацијама",null,null,null,null,null,null,null,null,null,null,0,0]
[254,452000,"СУБВЕНЦИЈЕ ПРИВАТНИМ ФИНАНСИЈСКИМ ИНСТИТУЦИЈАМА (255 + 256)",{"$f":"SUM(D283:D284)","v":0},0,0,0,0,0,0,0,0,0,0,0]
[255,452100,"Текуће субвенције приватним финансијским институцијама",null,null,null,null,null,null,null,null,null,null,0,0]
[256,452200,"Капиталне субвенције приватним финансијским институцијама",null,null,null,null,null,null,null,null,null,null,0,0]
[257,453000,"СУБВЕНЦИЈЕ ЈАВНИМ ФИНАНСИЈСКИМ ИНСТИТУЦИЈАМА (258 + 259)",{"$f":"SUM(D286:D287)","v":0},0,0,0,0,0,0,0,0,0,0,0]
[258,453100,"Текуће субвенције јавним финансијским институцијама",null,null,null,null,null,null,null,null,null,null,0,0]
[259,453200,"Капиталне субвенције јавним финансијским институцијама",null,null,null,null,null,null,null,null,null,null,0,0]
[260,454000,"СУБВЕНЦИЈЕ ПРИВАТНИМ ПРЕДУЗЕЋИМА (261 + 262)",{"$f":"SUM(D289:D290)","v":0},0,0,0,0,0,0,0,0,0,0,0]
[261,454100,"Текуће субвенције приватним предузећима",null,null,null,null,null,null,null,null,null,null,0,0]
[262,454200,"Капиталне субвенције приватним предузећима",null,null,null,null,null,null,null,null,null,null,0,0]
[263,460000,"ДОНАЦИЈЕ, ДОТАЦИЈЕ И ТРАНСФЕРИ (264 + 267 + 270 + 273 + 276)",{"$f":"D292+D295+D298+D301+D304","v":0},{"$f":"E292+E295+E298+E301+E304","v":0},0,0,0,0,0,0,0,0,0,0]
[264,461000,"ДОНАЦИЈЕ СТРАНИМ ВЛАДАМА (265 + 266)",{"$f":"SUM(D293:D294)","v":0},0,0,0,0,0,0,0,0,0,0,0]
[{"$f":"A292+1","v":265},461100,"Текуће донације страним владама",null,null,null,null,null,null,null,null,null,null,0,0]
[266,461200,"Капиталне донације страним владама",null,null,null,null,null,null,null,null,null,null,0,0]
[267,462000,"ДОТАЦИЈЕ МЕЂУНАРОДНИМ ОРГАНИЗАЦИЈАМА (268 + 269)",{"$f":"SUM(D296:D297)","v":0},0,0,0,0,0,0,0,0,0,0,0]
[268,462100,"Текуће дотације међународним организацијама",null,null,null,null,null,null,null,null,null,null,0,0]
[269,462200,"Капиталне дотације међународним организацијама",null,null,null,null,null,null,null,null,null,null,0,0]
[270,463000,"ТРАНСФЕРИ ОСТАЛИМ НИВОИМА ВЛАСТИ (271 + 272)",{"$f":"SUM(D299:D300)","v":0},{"$f":"SUM(E299:E300)","v":0},0,0,0,0,0,0,0,0,0,0]
[271,463100,"Текући трансфери осталим нивоима власти",null,null,null,null,null,null,null,null,null,null,0,0]
[272,463200,"Капитални трансфери осталим нивоима власти",null,null,null,null,null,null,null,null,null,null,0,0]
[273,464000,"ДОТАЦИЈЕ ОРГАНИЗАЦИЈАМА ОБАВЕЗНОГ СОЦИЈАЛНОГ ОСИГУРАЊА (274 + 275)",{"$f":"SUM(D302:D303)","v":0},0,0,0,0,0,0,0,0,0,0,0]
[274,464100,"Текуће дотације организацијама обавезног социјалног осигурања",null,null,null,null,null,null,null,null,null,null,0,0]
[275,464200,"Капиталне дотације организацијама обавезног социјалног осигурања",null,null,null,null,null,null,null,null,null,null,0,0]
[276,465000,"ОСТАЛЕ ДОТАЦИЈЕ И ТРАНСФЕРИ (277 + 278)",{"$f":"SUM(D305:D306)","v":0},0,0,0,0,0,0,0,0,0,0,0]
[277,465100,"Остале текуће дотације и трансфери",null,null,null,null,null,null,null,null,null,null,0,0]
[278,465200,"Остале капиталне дотације и трансфери",null,null,null,null,null,null,null,null,null,null,0,0]
[279,470000,"СОЦИЈАЛНО ОСИГУРАЊЕ И СОЦИЈАЛНА ЗАШТИТА (280 + 284)",{"$f":"D308+D312","v":0},0,0,0,0,0,0,0,0,0,0,0]
[280,471000,"ПРАВА ИЗ СОЦИЈАЛНОГ ОСИГУРАЊА (ОРГАНИЗАЦИЈЕ ОБАВЕЗНОГ СОЦИЈАЛНОГ ОСИГУРАЊА) (од 281 до 283)",{"$f":"SUM(D309:D311)","v":0},0,0,0,0,0,0,0,0,0,0,0]
[281,471100,"Права из социјалног осигурања која се исплаћују непосредно домаћинствима",null,null,null,null,null,null,null,null,null,null,0,0]
[282,471200,"Права из социјалног осигурања која се исплаћују непосредно пружаоцима услуга",null,null,null,null,null,null,null,null,null,null,0,0]
[283,471900,"Трансфери другим организацијама обавезног социјалног осигурања за доприносе за осигурање",null,null,null,null,null,null,null,null,null,null,0,0]
[284,472000,"НАКНАДЕ ЗА СОЦИЈАЛНУ ЗАШТИТУ ИЗ БУЏЕТА (од 285 до 293)",{"$f":"SUM(D313:D321)","v":0},0,0,0,0,0,0,0,0,0,0,0]
[285,472100,"Накнаде из буџета у случају болести и инвалидности",null,null,null,null,null,null,null,null,null,null,0,0]
[286,472200,"Накнаде из буџета за породиљско одсуство",null,null,null,null,null,null,null,null,null,null,0,0]
[287,472300,"Накнаде из буџета за децу и породицу",null,null,null,null,null,null,null,null,null,null,0,0]
[288,472400,"Накнаде из буџета за случај незапослености",null,null,null,null,null,null,null,null,null,null,0,0]
[289,472500,"Старосне и породичне пензије из буџета",null,null,null,null,null,null,null,null,null,null,0,0]
[290,472600,"Накнаде из буџета у случају смрти",null,null,null,null,null,null,null,null,null,null,0,0]
[291,472700,"Накнаде из буџета за образовање, културу, науку и спорт",null,null,null,null,null,null,null,null,null,null,0,0]
[292,472800,"Накнаде из буџета за становање и живот",null,null,null,null,null,null,null,null,null,null,{"$f":"SUM(H320,J320,L320)","v":0},0]
[293,472900,"Остале накнаде из буџета",null,null,null,null,null,null,null,null,null,null,0,0]
[294,480000,"ОСТАЛИ РАСХОДИ (295 + 298 + 302 + 304 + 307 + 309)",{"$f":"D323+D326+D330+D332+D335+D337","v":0},{"$f":"E323+E326+E330+E332+E335+E337","v":0},0,0,0,0,0,0,0,0,0,0]
[295,481000,"ДОТАЦИЈЕ НЕВЛАДИНИМ ОРГАНИЗАЦИЈАМА (296 + 297)",{"$f":"SUM(D324:D325)","v":0},0,0,0,0,0,0,0,0,0,0,0]
[296,481100,"Дотације непрофитним организацијама које пружају помоћ домаћинствима",null,null,null,null,null,null,null,null,null,null,0,0]
[297,481900,"Дотације осталим непрофитним институцијама",null,null,null,null,null,null,null,null,null,null,0,0]
[298,482000,"ПОРЕЗИ, ОБАВЕЗНЕ ТАКСЕ И КАЗНЕ (од 299 до 301)",{"$f":"SUM(D327:D329)","v":0},{"$f":"SUM(E327:E329)","v":0},0,0,0,0,0,0,0,0,0,0]
[299,482100,"Остали порези",null,null,null,null,null,null,null,null,null,null,0,0]
[300,482200,"Обавезне таксе",null,null,null,null,null,null,null,null,null,null,0,0]
[301,482300,"Новчане казне и пенали",null,null,null,null,null,null,null,null,null,null,0,0]
[302,483000,"НОВЧАНЕ КАЗНЕ И ПЕНАЛИ ПО РЕШЕЊУ СУДОВА (303)",{"$f":"D331","v":0},0,0,0,0,0,0,0,0,0,0,0]
[303,483100,"Новчане казне и пенали по решењу судова",null,null,null,null,null,null,null,null,null,null,0,0]
[304,484000,"НАКНАДА ШТЕТЕ ЗА ПОВРЕДЕ ИЛИ ШТЕТУ НАСТАЛУ УСЛЕД ЕЛЕМЕНТАРНИХ НЕПОГОДА ИЛИ ДРУГИХ ПРИРОДНИХ УЗРОКА (305 + 306)",{"$f":"SUM(D333:D334)","v":0},0,0,0,0,0,0,0,0,0,0,0]
[305,484100,"Накнада штете за повреде или штету насталу услед елементарних непогода",null,null,null,null,null,null,null,null,null,null,0,0]
[306,484200,"Накнада штете од дивљачи",null,null,null,null,null,null,null,null,null,null,0,0]
[307,485000,"НАКНАДА ШТЕТЕ ЗА ПОВРЕДЕ ИЛИ ШТЕТУ НАНЕТУ ОД СТРАНЕ ДРЖАВНИХ ОРГАНА (308)",{"$f":"D336","v":0},0,0,0,0,0,0,0,0,0,0,0]
[308,485100,"Накнада штете за повреде или штету нанету од стране државних органа",null,null,null,null,null,null,null,null,null,null,0,0]
[309,489000,"РАСХОДИ КОЈИ СЕ ФИНАНСИРАЈУ ИЗ СРЕДСТАВА ЗА РЕАЛИЗАЦИЈУ НАЦИОНАЛНОГ ИНВЕСТИЦИОНОГ ПЛАНА (310)",0,0,0,0,0,0,0,0,0,0,0,0]
[310,489100,"Расходи који се финансирају из средстава за реализацију националног инвестиционог плана",null,null,null,null,null,null,null,null,null,null,0,0]
[311,500000,"ИЗДАЦИ ЗА НЕФИНАНСИЈСКУ ИМОВИНУ (312 + 334 + 343 + 346 + 354)",{"$f":"D340+D362+D371+D374+D382","v":0},{"$f":"E340+E362+E371+E374+E382","v":0},0,0,0,0,0,0,0,0,0,0]
[312,510000,"ОСНОВНА СРЕДСТВА (313 + 318 + 328 + 330 + 332)",{"$f":"D341+D346+D356+D358+D360","v":0},{"$f":"E341+E346+E356+E358+E360","v":0},0,0,0,0,0,0,0,0,0,0]
[313,511000,"ЗГРАДЕ И ГРАЂЕВИНСКИ ОБЈЕКТИ (од 314 до 317)",{"$f":"SUM(D342:D345)","v":0},0,0,0,0,0,0,0,0,0,0,0]
[314,511100,"Куповина зграда и објеката",null,null,null,null,null,null,null,null,null,null,0,0]
[315,511200,"Изградња зграда и објеката",null,null,null,null,null,null,null,null,null,null,0,0]
[316,511300,"Капитално одржавање зграда и објеката",null,null,null,null,null,null,null,null,null,null,0,0]
[317,511400,"Пројектно планирање",null,null,null,null,null,null,null,null,null,null,0,0]
[318,512000,"МАШИНЕ И ОПРЕМА (од 319 до 327)",{"$f":"SUM(D347:D355)","v":0},0,0,0,0,0,0,0,0,0,0,0]
[319,512100,"Опрема за саобраћај",null,null,null,null,null,null,null,null,null,null,0,0]
[320,512200,"Административна опрема",null,null,null,null,null,null,null,null,null,null,0,0]
[321,512300,"Опрема за пољопривреду",null,null,null,null,null,null,null,null,null,null,0,0]
[322,512400,"Опрема за заштиту животне средине",null,null,null,null,null,null,null,null,null,null,0,0]
[323,512500,"Медицинска и лабораторијска опрема",null,null,null,null,null,null,null,null,null,null,0,0]
[324,512600,"Опрема за образовање, културу и спорт",null,null,null,null,null,null,null,null,null,null,0,0]
[325,512700,"Опрема за војску",null,null,null,null,null,null,null,null,null,null,0,0]
[326,512800,"Опрема за јавну безбедност",null,null,null,null,null,null,null,null,null,null,0,0]
[327,512900,"Опрема за производњу, моторна, непокретна и немоторна опрема",null,null,null,null,null,null,null,null,null,null,0,0]
[328,513000,"ОСТАЛЕ НЕКРЕТНИНЕ И ОПРЕМА (329)",{"$f":"D357","v":0},{"$f":"E357","v":0},0,0,0,0,0,0,0,0,0,0]
[{"$f":"A356+1","v":329},513100,"Остале некретнине и опрема",null,null,null,null,null,null,null,null,null,null,0,0]
[330,514000,"КУЛТИВИСАНА ИМОВИНА (331)",{"$f":"D359","v":0},{"$f":"E359","v":0},0,0,0,0,0,0,0,0,0,0]
[331,514100,"Култивисана имовина",null,null,null,null,null,null,null,null,null,null,0,0]
[332,515000,"НЕМАТЕРИЈАЛНА ИМОВИНА (333)",{"$f":"D361","v":0},{"$f":"E361","v":0},0,0,0,0,0,0,0,0,0,0]
[333,515100,"Нематеријална имовина",null,null,null,null,null,null,null,null,null,null,0,0]
[334,520000,"ЗАЛИХЕ (335 + 337 + 341)",{"$f":"D363+D365+D369","v":0},0,0,0,0,0,0,0,0,0,0,0]
[335,521000,"РОБНЕ РЕЗЕРВЕ (336)",{"$f":"D364","v":0},0,0,0,0,0,0,0,0,0,0,0]
[336,521100,"Робне резерве",null,null,null,null,null,null,null,null,null,null,0,0]
[337,522000,"ЗАЛИХЕ ПРОИЗВОДЊЕ (од 338 до 340)",{"$f":"SUM(D366:D368)","v":0},0,0,0,0,0,0,0,0,0,0,0]
[338,522100,"Залихе материјала",null,null,null,null,null,null,null,null,null,null,0,0]
[339,522200,"Залихе недовршене производње",null,null,null,null,null,null,null,null,null,null,0,0]
[340,522300,"Залихе готових производа",null,null,null,null,null,null,null,null,null,null,0,0]
[341,523000,"ЗАЛИХЕ РОБЕ ЗА ДАЉУ ПРОДАЈУ (342)",{"$f":"D370","v":0},0,0,0,0,0,0,0,0,0,0,0]
[342,523100,"Залихе робе за даљу продају",null,null,null,null,null,null,null,null,null,null,0,0]
[343,530000,"ДРАГОЦЕНОСТИ (344)",{"$f":"D372","v":0},0,0,0,0,0,0,0,0,0,0,0]
[344,531000,"ДРАГОЦЕНОСТИ (345)",0,0,0,0,0,0,0,0,0,0,0,0]
[345,531100,"Драгоцености",null,null,null,null,null,null,null,null,null,null,0,0]
[346,540000,"ПРИРОДНА ИМОВИНА (347 + 349 + 351)",{"$f":"D375+D377+D379","v":0},0,0,0,0,0,0,0,0,0,0,0]
[347,541000,"ЗЕМЉИШТЕ (348)",{"$f":"D376","v":0},0,0,0,0,0,0,0,0,0,0,0]
[348,541100,"Земљиште",null,null,null,null,null,null,null,null,null,null,0,0]
[349,542000,"РУДНА БОГАТСТВА (350)",{"$f":"D378","v":0},0,0,0,0,0,0,0,0,0,0,0]
[350,542100,"Копови",null,null,null,null,null,null,null,null,null,null,0,0]
[351,543000,"ШУМЕ И ВОДЕ (352 + 353)",{"$f":"SUM(D380:D381)","v":0},0,0,0,0,0,0,0,0,0,0,0]
[352,543100,"Шуме",null,null,null,null,null,null,null,null,null,null,0,0]
[353,543200,"Воде",null,null,null,null,null,null,null,null,null,null,0,0]
[354,550000,"НЕФИНАНСИЈСКА ИМОВИНА КОЈА СЕ ФИНАНСИРА ИЗ СРЕДСТАВА ЗА РЕАЛИЗАЦИЈУ НАЦИОНАЛНОГ ИНВЕСТИЦИОНОГ ПЛАНА (355)",{"$f":"D383","v":0},0,0,0,0,0,0,0,0,0,0,0]
[355,551000,"НЕФИНАНСИЈСКА ИМОВИНА КОЈА СЕ ФИНАНСИРА ИЗ СРЕДСТАВА ЗА РЕАЛИЗАЦИЈУ НАЦИОНАЛНОГ ИНВЕСТИЦИОНОГ ПЛАНА (356)",0,0,0,0,0,0,0,0,0,0,0,0]
[356,551100,"Нефинансијска имовина која се финансира из средстава за реализацију националног инвестиционог плана",null,null,null,null,null,null,null,null,null,null,{"$f":"SUM(H384,J384,L384)","v":0},0]
[357,600000,"ИЗДАЦИ ЗА ОТПЛАТУ ГЛАВНИЦЕ И НАБАВКУ ФИНАНСИЈСКЕ ИМОВИНЕ (358 + 383)",{"$f":"D386+D411","v":0},{"$f":"E386+E411","v":0},0,0,0,0,0,0,0,0,0,0]
[358,610000,"ОТПЛАТА ГЛАВНИЦЕ (359 + 369 + 377 + 384)",{"$f":"D387+D397+D405+D407+D409","v":0},{"$f":"E387+E397+E405+E407+E409","v":0},0,0,0,0,0,0,0,0,0,0]
[359,611000,"ОТПЛАТА ГЛАВНИЦЕ ДОМАЋИМ КРЕДИТОРИМА (од 360 до 368)",{"$f":"SUM(D388:D396)","v":0},0,0,0,0,0,0,0,0,0,0,0]
[360,611100,"Отплата главнице на домаће хартије од вредности, изузев акција",null,null,null,null,null,null,null,null,null,null,0,0]
[361,611200,"Отплата главнице осталим нивоима власти",null,null,null,null,null,null,null,null,null,null,0,0]
[362,611300,"Отплата главнице домаћим јавним финансијским институцијама",null,null,null,null,null,null,null,null,null,null,0,0]
[363,611400,"Отплата главнице домаћим пословним банкама",null,null,null,null,null,null,null,null,null,null,0,0]
[364,611500,"Отплата главнице осталим домаћим кредиторима",null,null,null,null,null,null,null,null,null,null,0,0]
[365,611600,"Отплата главнице домаћинствима у земљи",null,null,null,null,null,null,null,null,null,null,0,0]
[366,611700,"Отплата главнице на домаће финансијске деривате",null,null,null,null,null,null,null,null,null,null,0,0]
[367,611800,"Отплата домаћих меница",null,null,null,null,null,null,null,null,null,null,0,0]
[368,611900,"Исправка унутрашњег дуга",null,null,null,null,null,null,null,null,null,null,0,0]
[369,612000,"ОТПЛАТА ГЛАВНИЦЕ СТРАНИМ КРЕДИТОРИМА (од 370 до 376)",{"$f":"SUM(D398:D404)","v":0},0,0,0,0,0,0,0,0,0,0,0]
[370,612100,"Отплата главнице на хартије од вредности, изузев акција, емитоване на иностраном финансијском тржишту",null,null,null,null,null,null,null,null,null,null,0,0]
[371,612200,"Отплата главнице страним владама",null,null,null,null,null,null,null,null,null,null,0,0]
[372,612300,"Отплата главнице мултилатералним институцијама",null,null,null,null,null,null,null,null,null,null,0,0]
[373,612400,"Отплате главнице страним пословним банкама",null,null,null,null,null,null,null,null,null,null,0,0]
[374,612500,"Отплате главнице осталим страним кредиторима",null,null,null,null,null,null,null,null,null,null,0,0]
[375,612600,"Отплата главнице на стране финансијске деривате",null,null,null,null,null,null,null,null,null,null,0,0]
[376,612900,"Исправка спољног дуга",null,null,null,null,null,null,null,null,null,null,0,0]
[377,613000,"ОТПЛАТА ГЛАВНИЦЕ ПО ГАРАНЦИЈАМА (378)",{"$f":"D406","v":0},{"$f":"E406","v":0},0,0,0,0,0,0,0,0,0,0]
[378,613100,"Отплата главнице по гаранцијама",null,null,null,null,null,null,null,null,null,null,0,0]
[379,614000,"ОТПЛАТА ГЛАВНИЦЕ ЗА ФИНАНСИЈСКИ ЛИЗИНГ (380)",{"$f":"D408","v":0},{"$f":"E408","v":0},0,0,0,0,0,0,0,0,0,0]
[380,614100,"Отплата главнице за финансијски лизинг",null,null,null,null,null,null,null,null,null,null,0,0]
[381,615000,"ОТПЛАТА ГАРАНЦИЈА ПО КОМЕРЦИЈАЛНИМ ТРАНСАКЦИЈАМА (382)",{"$f":"D410","v":0},{"$f":"E410","v":0},0,0,0,0,0,0,0,0,0,0]
[382,615100,"Отплата гаранција по комерцијалним трансакцијама",null,null,null,null,null,null,null,null,null,null,0,0]
[383,620000,"НАБАВКА ФИНАНСИЈСКЕ ИМОВИНЕ (384 + 394 + 403)",{"$f":"D412+D422+D431","v":0},{"$f":"E412+E422+E431","v":0},0,0,0,0,0,0,0,0,0,0]
[384,621000,"НАБАВКА ДОМАЋЕ ФИНАНСИЈСКЕ ИМОВИНЕ (од 385 до 393)",{"$f":"SUM(D413:D421)","v":0},0,0,0,0,0,0,0,0,0,0,0]
[385,621100,"Набавка домаћих хартија од вредности, изузев акција",null,null,null,null,null,null,null,null,null,null,0,0]
[386,621200,"Кредити осталим нивоима власти",null,null,null,null,null,null,null,null,null,null,0,0]
[387,621300,"Кредити домаћим јавним финансијским институцијама",null,null,null,null,null,null,null,null,null,null,0,0]
[388,621400,"Кредити домаћим пословним банкама",null,null,null,null,null,null,null,null,null,null,0,0]
[389,621500,"Кредити домаћим нефинансијским јавним институцијама",null,null,null,null,null,null,null,null,null,null,0,0]
[390,621600,"Кредити физичким лицима и домаћинствима у земљи",null,null,null,null,null,null,null,null,null,null,0,0]
[391,621700,"Кредити невладиним организацијама у земљи",null,null,null,null,null,null,null,null,null,null,0,0]
[392,621800,"Кредити домаћим нефинансијским приватним предузећима",null,null,null,null,null,null,null,null,null,null,0,0]
[{"$f":"A420+1","v":393},621900,"Набавка домаћих акција и осталог капитала",null,null,null,null,null,null,null,null,null,null,0,0]
[394,622000,"НАБАВКА СТРАНЕ ФИНАНСИЈСКЕ ИМОВИНЕ (од 395 до 402)",{"$f":"SUM(D423:D430)","v":0},{"$f":"SUM(E423:E430)","v":0},0,0,0,0,0,0,0,0,0,0]
[395,622100,"Набавка страних хартија од вредности, изузев акција",null,null,null,null,null,null,null,null,null,null,0,0]
[396,622200,"Кредити страним владама",null,null,null,null,null,null,null,null,null,null,0,0]
[397,622300,"Кредити међународним организацијама",null,null,null,null,null,null,null,null,null,null,0,0]
[398,622400,"Кредити страним пословним банкама",null,null,null,null,null,null,null,null,null,null,0,0]
[399,622500,"Кредити страним нефинансијским институцијама",null,null,null,null,null,null,null,null,null,null,0,0]
[400,622600,"Кредити страним невладиним организацијама",null,null,null,null,null,null,null,null,null,null,0,0]
[401,622700,"Набавка страних акција и осталог капитала",null,null,null,null,null,null,null,null,null,null,0,0]
[402,622800,"Куповина стране валуте",null,null,null,null,null,null,null,null,null,null,0,0]
[403,623000,"НАБАВКА ФИНАНСИЈСКЕ ИМОВИНЕ КОЈА СЕ ФИНАНСИРА ИЗ СРЕДСТАВА ЗА РЕАЛИЗАЦИЈУ НАЦИОНАЛНОГ ИНВЕСТИЦИОНОГ ПЛАНА (404)",{"$f":"D432","v":0},{"$f":"E432","v":0},0,0,0,0,0,0,0,0,0,0]
[404,623100,"Набавка финансијске имовине која се финансира из средстава за реализацију националног инвестиционог плана ",null,null,null,null,null,null,null,null,null,null,0,0]
[405,null,"УКУПНИ РАСХОДИ И ИЗДАЦИ (147 + 311 + 357)",{"$f":"D385+D339+D175","v":0},0,0,0,1800000,0,0,0,0,0,1800000,0]
[null,null,"Разлика (146-405 ) [ Укупни приходи, примања и пренета средства - Укупни расходи и издаци]",{"$f":"D174-D433","v":0},{"$f":"E174-E433","v":0},0,0,0,0,0,0,0,0,0,0]
[]
["Шифра","Извори финансирања пројекта",null,"Вредност у базној години (2017)",null,"Очекивана вредност у 2018. години",null,"Вредност у 2019. години",null,"Вредност у 2020. години",null,"Вредност у 2021. години",null,"Укупно (2019-2021)"]
[1,2,null,3,null,4,null,5,null,6,null,7,null,"8=(5+6+7)"]
["01","Приходи из буџета",null,null,null,null,null,null,null,null,null,null,null,{"$f":"SUM(H438,J438,L438)","v":0}]
["02","Трансфери између корисника на истом нивоу",null,null,null,null,null,null,null,null,null,null,null,{"$f":"SUM(H439,J439,L439)","v":0}]
["03","Социјални доприноси",null,null,null,null,null,null,null,null,null,null,null,0]
["04","Сопствени приходи буџетских корисника",null,null,null,null,null,null,null,null,null,null,null,0]
["05","Донације од иностраних земаља",null,null,null,null,null,null,null,null,null,null,null,0]
["06","Донације од међународних организација",null,null,null,null,null,null,null,null,null,null,null,0]
["07","Трансфери од других нивоа власти",null,null,null,null,null,null,null,null,null,null,null,0]
["08","Добровољни трансфери од физичких и правних лица",null,null,null,null,null,null,null,null,null,null,null,0]
["09","Примања од продаје нефинансијске имовине",null,null,null,null,null,null,null,null,null,null,null,0]
["10","Примања од домаћих задуживања",null,null,null,null,null,null,null,null,null,null,null,0]
["11","Примања од иностраних задуживања",null,null,null,null,null,null,null,null,null,null,null,0]
["12","Примања од отплате датих кредита и продаје финансијске имовине",null,null,null,null,null,null,null,null,null,null,null,0]
["13","Нераспоређени вишак прихода из ранијих година",null,null,null,null,null,null,null,null,null,null,null,0]
["14","Неутрошена средства од приватизације из ранијих година",null,null,null,null,null,null,null,null,null,null,null,0]
["15","Неутрошена средства донација из ранијих година",null,null,null,null,null,null,null,null,null,null,null,0]
["16","Родитељски динар за ваннаставне активности",null,null,null,null,null,null,null,null,null,null,null,0]
["56","Финансијска помоћ ЕУ",null,null,null,null,null,null,null,null,null,null,null,{"$f":"SUM(H454,J454,L454)","v":0}]
["УКУПНО  ЗА:",null,{"$f":"$D$5&\"-\"&$E$5&\"   \"&$D$6","v":"2002-П1   Унапређење квлитета образовања и васпитања"},{"$f":"SUM(D438:E454)","v":0},null,{"$f":"SUM(F438:G454)","v":0},null,{"$f":"SUM(H438:I454)","v":0},null,{"$f":"SUM(J438:K454)","v":0},null,{"$f":"SUM(L438:M454)","v":0},null,{"$f":"SUM(H455:M455)","v":0}]
[null,null,"Разлика ( укупни расходи и издаци -  укупни извори )",{"$f":"D433+E433-D455","v":0},null,{"$f":"F433+G433-F455","v":0},null,{"$f":"H433+I433-H455","v":1800000},null,{"$f":"J433+K433-J455","v":0},null,{"$f":"L433+M433-L455","v":0},null,{"$f":"N433+O433-N455","v":1800000}]
[]
["*","1-3 циља за сваку програмску активност"]
["**","1-3 индикатора исхода/излазног резултата за сваки циљ"]
[]
[null,null,null,null,null,null,null,null,null,null,null,null,"Одговорно лице"]
[]
[null,"Датум:","05.06.2019.",null,null,null,null,null,null,null,null,null,"Ненад Младеновић"]

{"sheet":"Пројекат","index":4,"n_rows":463,"n_cols":15,"rows_kept":463,"cut":false,"hidden":false,"merged":[[460,12,460,13],[455,3,455,4],[455,5,455,6],[455,7,455,8],[455,9,455,10],[454,0,454,1],[454,3,454,4],[454,5,454,6],[454,7,454,8],[454,9,454,10],[454,11,454,12],[454,13,454,14],[455,11,455,12],[455,13,455,14],[453,1,453,2],[453,3,453,4],[453,5,453,6],[453,7,453,8],[453,9,453,10],[453,11,453,12],[453,13,453,14],[452,1,452,2],[452,3,452,4],[451,11,451,12],[451,13,451,14],[450,1,450,2],[450,3,450,4],[450,5,450,6],[450,7,450,8],[450,9,450,10],[450,11,450,12],[452,5,452,6],[452,7,452,8],[452,9,452,10],[452,11,452,12],[450,13,450,14],[451,1,451,2],[451,3,451,4],[451,5,451,6],[451,7,451,8],[451,9,451,10],[452,13,452,14],[449,1,449,2],[449,3,449,4],[449,5,449,6],[449,7,449,8],[449,9,449,10],[449,11,449,12],[449,13,449,14],[448,1,448,2],[448,3,448,4],[447,11,447,12],[447,13,447,14],[446,1,446,2],[446,3,446,4],[446,5,446,6],[446,7,446,8],[446,9,446,10],[446,11,446,12],[448,5,448,6],[448,7,448,8],[448,9,448,10],[448,11,448,12],[446,13,446,14],[447,1,447,2],[447,3,447,4],[447,5,447,6],[447,7,447,8],[447,9,447,10],[448,13,448,14],[445,1,445,2],[445,3,445,4],[445,5,445,6],[445,7,445,8],[445,9,445,10],[445,11,445,12],[445,13,445,14],[444,1,444,2],[444,3,444,4],[443,11,443,12],[443,13,443,14],[442,1,442,2],[442,3,442,4],[442,5,442,6],[442,7,442,8],[442,9,442,10],[442,11,442,12],[444,5,444,6],[444,7,444,8],[444,9,444,10],[444,11,444,12],[442,13,442,14],[443,1,443,2],[443,3,443,4],[443,5,443,6],[443,7,443,8],[443,9,443,10],[444,13,444,14],[441,1,441,2],[441,3,441,4],[441,5,441,6],[441,7,441,8],[441,9,441,10],[441,11,441,12],[441,13,441,14],[440,1,440,2],[440,3,440,4],[439,11,439,12],[439,13,439,14],[438,1,438,2],[438,3,438,4],[438,5,438,6],[438,7,438,8],[438,9,438,10],[438,11,438,12],[440,5,440,6],[440,7,440,8],[440,9,440,10],[440,11,440,12],[438,13,438,14],[439,1,439,2],[439,3,439,4],[439,5,439,6],[439,7,439,8],[439,9,439,10],[440,13,440,14],[435,1,435,2],[435,3,435,4],[435,5,435,6],[435,7,435,8],[435,9,435,10],[436,13,436,14],[435,11,435,12],[435,13,435,14],[437,1,437,2],[437,3,437,4],[437,5,437,6],[437,7,437,8],[437,9,437,10],[437,11,437,12],[437,13,437,14],[436,1,436,2],[436,3,436,4],[436,5,436,6],[436,7,436,8],[436,9,436,10],[436,11,436,12],[0,0,0,14],[1,0,1,14],[15,3,15,14],[10,0,10,2],[13,0,13,2],[11,0,11,2],[12,0,12,2],[6,0,6,2],[8,0,8,2],[5,0,5,2],[9,0,9,2],[15,0,15,2],[14,0,14,2],[6,3,6,10],[7,3,7,14],[8,3,8,14],[9,3,9,14],[24,0,24,14],[25,0,26,0],[25,1,26,1],[25,2,26,2],[25,3,25,4],[25,5,25,6],[25,7,25,8],[25,9,25,10],[25,11,25,12],[17,1,18,2],[20,11,20,14],[25,13,25,14],[5,3,5,14],[19,1,21,2],[17,3,17,14],[17,0,18,0],[19,0,21,0],[3,0,3,2],[4,0,4,2],[21,3,21,5],[19,3,19,5],[20,3,20,5],[7,0,7,2],[10,3,10,14],[11,3,11,14],[12,3,12,14],[18,11,18,14],[18,3,18,5],[19,11,19,14],[21,11,21,14],[13,3,13,14],[14,3,14,14],[3,3,3,14]]}
["Обрасци за припрему програмског буџета"]
["3. ПРОЈЕКАТ"]
[]
["Програм коме припада:",null,null,{"$f":"IF(Програм!$D$4=\"\",\"\",Програм!$D$4)","v":"Програм 9. Основно образовање и вспитање"}]
["Шифра пројекта:",null,null,{"$f":"Програм!$D$5","v":2002},"П1"]
["Назив пројекта:",null,null,"Унапређење квлитета образовања и васпитања"]
["Функција:",null,null,"912- Основно образовање"]
["Назив организационе јединице/Буџетски корисник:",null,null,"ОШ ,, ДЕСАНКА  МАКСИМОВИЋ,,  ГРДЕЛИЦА"]
["Сврха:",null,null,"Унапређење квлитета образовања и васпитања"]
["Основ:",null,null,"Пројетна документација"]
["Опис:",null,null,"Израда ограде"]
["Трајање пројекта:",null,null,2019]
["Ознака за капитални пројекат:",null,null,"пројетна документација"]
["Ознака да ли је ИПА пројекат:"]
["Мере и поглавље преговора о приступању ЕУ:"]
["Одговорно лице за спровођење пројекта:",null,null,"Ненад Младеновић"]
[]
[null,"Циљ*",null,"Индикатори**"]
[null,null,null,"Назив индикатора",null,null,"Вредност у базној години (2017)","Очекивана вредност у 2018. години","Циљана вредност у 2019. години","Циљана вредност у 2020. години","Циљана вредност у 2021. години","Извор верификације"]
[1,"Унапређење квалитета образовања",null,"Број деце које похађају ваннаставне активности",null,null,0.75,0.8,0.9,0.95,0.95,"Школска документација"]
[null,null,null,"Број стручних лица која су добила најмање 24 бода за стручно усавршавње",null,null,0.5,0.55000000000000004,0.6,0.65,0.65,"Извештај о стручном усавршавању"]
[]
[]
[]
["ПЛАНИРАНА СРЕДСТВА ЗА ПРОЈЕКАТ"]
["Рбр.","Конто","ОПИС","Вредност у базној години (2017)",null,"Очекивана вредност у 2018. години",null,"Вредност у 2019. години",null,"Вредност у 2020. години",null,"Вредност у 2021. години",null,"Укупно (2019-2021)"]
[null,null,null,"Приходи из буџета","Приходи из осталих извора","Приходи из буџета","Приходи из осталих извора","Приходи из буџета","Приходи из осталих извора","Приходи из буџета","Приходи из осталих извора","Приходи из буџета","Приходи из осталих извора","Приходи из буџета","Приходи из осталих извора"]
[1,2,3,4,5,6,7,8,9,10,11,12,13,"14=(8+10+12)","15=(9+11+13)"]
[1,300000,"КАПИТАЛ, УТВРЂИВАЊЕ РЕЗУЛТАТА ПОСЛОВАЊА И ВАНБИЛАНСНА ЕВИДЕНЦИЈА\n(2 + 5)",{"$f":"SUM(D30,D33)","v":0},{"$f":"SUM(E30,E33)","v":0},0,0,0,0,0,0,0,0,0,0]
[2,310000,"КАПИТАЛ (3)",{"$f":"SUM(D31)","v":0},{"$f":"SUM(E31)","v":0},0,0,0,0,0,0,0,0,0,0]
[3,311000,"КАПИТАЛ (4)",{"$f":"SUM(D32)","v":0},0,0,0,0,0,0,0,0,0,0,0]
[4,311700,"Пренета неутрошена средства из ранијих година",null,null,null,null,null,null,null,null,null,null,{"$f":"SUM(H32,J32,L32)","v":0},{"$f":"SUM(I32,K32,M32)","v":0}]
[5,320000,"УТВРЂИВАЊЕ РЕЗУЛТАТА ПОСЛОВАЊА (6)",{"$f":"SUM(D34)","v":0},{"$f":"SUM(E34)","v":0},0,0,0,0,0,0,0,0,0,0]
[6,321000,"УТВРЂИВАЊЕ РЕЗУЛТАТА ПОСЛОВАЊА (7)",{"$f":"SUM(D35)","v":0},0,0,0,0,0,0,0,0,0,0,0]
[7,321300,"Нераспоређени вишак прихода и примања или дефицит из ранијих година",null,null,null,null,null,null,null,null,null,null,{"$f":"SUM(H35,J35,L35)","v":0},{"$f":"SUM(I35,K35,M35)","v":0}]
[{"$f":"A35+1","v":8},700000,"ТЕКУЋИ ПРИХОДИ \n(9 + 32 + 44 + 69 + 74 +78)",{"$f":"D37+D60+D72+D97+D102+D106","v":0},{"$f":"E37+E60+E72+E97+E102+E106","v":0},0,0,2000000,0,0,0,0,0,{"$f":"N37+N60+N72+N97+N102+N106","v":2000000},0]
[{"$f":"A36+1","v":9},710000,"ПОРЕЗИ \n(10 + 14 + 16 + 23 + 29)",{"$f":"D38+D42+D44+D51+D57","v":0},{"$f":"E38+E42+E44+E51+E57","v":0},0,0,0,0,0,0,0,0,0,0]
[10,711000,"ПОРЕЗ НА ДОХОДАК, ДОБИТ И КАПИТАЛНЕ ДОБИТКЕ (од 11 до 13)",{"$f":"SUM(D39:D41)","v":0},{"$f":"SUM(E39:E41)","v":0},0,0,0,0,0,0,0,0,{"$f":"SUM(H38,J38,L38)","v":0},0]
[11,711100,"Порези на доходак и капиталнe добиткe које плаћају физичка лица",null,null,null,null,null,null,null,null,null,null,0,0]
[12,711200,"Порези на добит и капиталне добитке које плаћају предузећа и друга правна лица",null,null,null,null,null,null,null,null,null,null,0,0]
[13,711300,"Порези на доходак, добит и капиталне добитке који се не могу разврстати између физичких и правних лица",null,null,null,null,null,null,null,null,null,null,0,0]
[14,712000,"ПОРЕЗ НА ФОНД ЗАРАДА (15)",{"$f":"SUM(D43)","v":0},0,0,0,0,0,0,0,0,0,0,0]
[15,712100,"Порез на фонд зарада",null,null,null,null,null,null,null,null,null,null,0,0]
[16,713000,"ПОРЕЗ НА ИМОВИНУ (од 17 до 22)",{"$f":"SUM(D45:D50)","v":0},0,0,0,0,0,0,0,0,0,0,0]
[17,713100,"Периодични порези на непокретности",null,null,null,null,null,null,null,null,null,null,0,0]
[18,713200,"Периодични порези на нето имовину",null,null,null,null,null,null,null,null,null,null,0,0]
[19,713300,"Порези на заоставштину, наслеђе и поклон",null,null,null,null,null,null,null,null,null,null,0,0]
[20,713400,"Порези на финансијске и капиталне трансакције",null,null,null,null,null,null,null,null,null,null,0,0]
[21,713500,"Други једнократни порези на имовину",null,null,null,null,null,null,null,null,null,null,0,0]
[22,713600,"Други периодични порези на имовину",null,null,null,null,null,null,null,null,null,null,0,0]
[23,714000,"ПОРЕЗ НА ДОБРА И УСЛУГЕ (од 24 до 28)",{"$f":"SUM(D52:D56)","v":0},0,0,0,0,0,0,0,0,0,0,0]
[24,714100,"Општи порези на добра и услуге",null,null,null,null,null,null,null,null,null,null,0,0]
[25,714300,"Добит фискалних монопола",null,null,null,null,null,null,null,null,null,null,0,0]
[26,714400,"Порези на појединачне услуге",null,null,null,null,null,null,null,null,null,null,0,0]
[27,714500,"Порези, таксе и накнаде на употребу добара, на дозволу да се добра употребљавају или делатности обављају",null,null,null,null,null,null,null,null,null,null,0,0]
[28,714600,"Други порези на добра и услуге",null,null,null,null,null,null,null,null,null,null,0,0]
[29,716000,"ДРУГИ ПОРЕЗИ (30 + 31)",{"$f":"SUM(D58:D59)","v":0},0,0,0,0,0,0,0,0,0,0,0]
[30,716100,"Други порези које искључиво плаћају предузећа, односно предузетници",null,null,null,null,null,null,null,null,null,null,0,0]
[31,716200,"Други порези које плаћају остала лица или који се не могу идентификовати",null,null,null,null,null,null,null,null,null,null,0,0]
[32,730000,"ДОНАЦИЈЕ, ПОМОЋИ И ТРАНСФЕРИ \n(33 + 36 + 41)",{"$f":"D61+D64+D69","v":0},{"$f":"E61+E64+E69","v":0},0,0,0,0,0,0,0,0,0,0]
[33,731000,"ДОНАЦИЈЕ ОД ИНОСТРАНИХ ДРЖАВА (34 + 35)",{"$f":"SUM(D62:D63)","v":0},0,0,0,0,0,0,0,0,0,0,0]
[34,731100,"Текуће донације од иностраних држава",null,null,null,null,null,null,null,null,null,null,0,0]
[35,731200,"Капиталне донације од иностраних држава",null,null,null,null,null,null,null,null,null,null,0,0]
[36,732000,"ДОНАЦИЈЕ И ПОМОЋИ ОД МЕЂУНАРОДНИХ ОРГАНИЗАЦИЈА (од 37 до 40)",{"$f":"SUM(D65:D68)","v":0},{"$f":"SUM(E65:E68)","v":0},0,0,0,0,0,0,0,0,0,0]
[37,732100,"Текуће донације од међународних организација",null,null,null,null,null,null,null,null,null,null,0,0]
[38,732200,"Капиталне донације од међународних организација",null,null,null,null,null,null,null,null,null,null,0,0]
[39,732300,"Текуће помоћи од ЕУ",null,null,null,null,null,null,null,null,null,null,0,0]
[40,732400,"Капиталне помоћи од ЕУ",null,null,null,null,null,null,null,null,null,null,0,0]
[41,733000,"ТРАНСФЕРИ ОД ДРУГИХ НИВОА ВЛАСТИ (42 + 43)",{"$f":"SUM(D70:D71)","v":0},0,0,0,0,0,0,0,0,0,{"$f":"SUM(H69,J69,L69)","v":0},0]
[42,733100,"Текући трансфери од других нивоа власти",null,null,null,null,null,null,null,null,null,null,0,0]
[43,733200,"Капитални трансфери од других нивоа власти",null,null,null,null,null,null,null,null,null,null,0,0]
[44,740000,"ДРУГИ ПРИХОДИ (45 + 52 + 57 + 64 + 67)",{"$f":"D73+D80+D85+D92+D95","v":0},{"$f":"E73+E80+E85+E92+E95","v":0},0,0,0,0,0,0,0,0,0,0]
[45,741000,"ПРИХОДИ ОД ИМОВИНЕ (од 46 до 51)",{"$f":"SUM(D74:D79)","v":0},{"$f":"SUM(E74:E79)","v":0},0,0,0,0,0,0,0,0,0,0]
[46,741100,"Камате",null,null,null,null,null,null,null,null,null,null,0,0]
[47,741200,"Дивиденде",null,null,null,null,null,null,null,null,null,null,0,0]
[48,741300,"Повлачење прихода од квази корпорација",null,null,null,null,null,null,null,null,null,null,0,0]
[49,741400,"Приход од имовине који припада имаоцима полиса осигурања",null,null,null,null,null,null,null,null,null,null,0,0]
[50,741500,"Закуп непроизведене имовине",null,null,null,null,null,null,null,null,null,null,0,0]
[51,741600,"Финансијске промене на финансијским лизинзима",null,null,null,null,null,null,null,null,null,null,0,0]
[52,742000,"ПРИХОДИ ОД ПРОДАЈЕ ДОБАРА И УСЛУГА (од 53 до 56)",{"$f":"SUM(D81:D84)","v":0},0,0,0,0,0,0,0,0,0,0,0]
[53,742100,"Приходи од продаје добара и услуга или закупа од стране тржишних организација",null,null,null,null,null,null,null,null,null,null,0,0]
[54,742200,"Таксе и накнаде",null,null,null,null,null,null,null,null,null,null,0,0]
[55,742300,"Споредне продаје добара и услуга које врше државне нетржишне јединице",null,null,null,null,null,null,null,null,null,null,0,0]
[56,742400,"Импутиране продаје добара и услуга",null,null,null,null,null,null,null,null,null,null,0,0]
[57,743000,"НОВЧАНЕ КАЗНЕ И ОДУЗЕТА ИМОВИНСКА КОРИСТ (од 58 до 63)",{"$f":"SUM(D86:D91)","v":0},0,0,0,0,0,0,0,0,0,0,0]
[58,743100,"Приходи од новчаних казни за кривична дела",null,null,null,null,null,null,null,null,null,null,0,0]
[59,743200,"Приходи од новчаних казни за привредне преступе",null,null,null,null,null,null,null,null,null,null,0,0]
[60,743300,"Приходи од новчаних казни за прекршаје",null,null,null,null,null,null,null,null,null,null,0,0]
[61,743400,"Приходи од пенала",null,null,null,null,null,null,null,null,null,null,0,0]
[62,743500,"Приходи од одузете имовинске користи",null,null,null,null,null,null,null,null,null,null,0,0]
[63,743900,"Остале новчане казне, пенали и приходи од одузете имовинске користи",null,null,null,null,null,null,null,null,null,null,0,0]
[64,744000,"ДОБРОВОЉНИ ТРАНСФЕРИ ОД ФИЗИЧКИХ И ПРАВНИХ ЛИЦА (65 + 66)",{"$f":"SUM(D93:D94)","v":0},0,0,0,0,0,0,0,0,0,0,0]
[65,744100,"Текући добровољни трансфери од физичких и правних лица",null,null,null,null,null,null,null,null,null,null,0,0]
[66,744200,"Капитални добровољни трансфери од физичких и правних лица",null,null,null,null,null,null,null,null,null,null,0,0]
[67,745000,"МЕШОВИТИ И НЕОДРЕЂЕНИ ПРИХОДИ (68)",{"$f":"D96","v":0},{"$f":"E96","v":0},0,0,0,0,0,0,0,0,0,0]
[68,745100,"Мешовити и неодређени приходи",null,null,null,null,null,null,null,null,null,null,0,0]
[69,770000,"МЕМОРАНДУМСКЕ СТАВКЕ ЗА РЕФУНДАЦИЈУ РАСХОДА (70 + 72)",{"$f":"D98+D100","v":0},0,0,0,0,0,0,0,0,0,0,0]
[70,771000,"МЕМОРАНДУМСКЕ СТАВКЕ ЗА РЕФУНДАЦИЈУ РАСХОДА (71)",{"$f":"D99","v":0},{"$f":"E99","v":0},0,0,0,0,0,0,0,0,0,0]
[71,771100,"Меморандумске ставке за рефундацију расхода",null,null,null,null,null,null,null,null,null,null,0,0]
[72,772000,"МЕМОРАНДУМСКЕ СТАВКЕ ЗА РЕФУНДАЦИЈУ РАСХОДА ИЗ ПРЕТХОДНЕ ГОДИНЕ (73)",{"$f":"D101","v":0},{"$f":"E101","v":0},0,0,0,0,0,0,0,0,0,0]
[{"$f":"A100+1","v":73},772100,"Меморандумске ставке за рефундацију расхода из претходне године",null,null,null,null,null,null,null,null,null,null,0,0]
[74,780000,"ТРАНСФЕРИ ИЗМЕЂУ БУЏЕТСКИХ КОРИСНИКА НА ИСТОМ НИВОУ (75)",{"$f":"D103","v":0},0,0,0,0,0,0,0,0,0,0,0]
[75,781000,"ТРАНСФЕРИ ИЗМЕЂУ БУЏЕТСКИХ КОРИСНИКА НА ИСТОМ НИВОУ (76 + 77)",{"$f":"SUM(D104:D105)","v":0},0,0,0,0,0,0,0,0,0,0,0]
[76,781100,"Трансфери између буџетских корисника на истом нивоу",null,null,null,null,null,null,null,null,null,null,0]
[77,781300,"Трансфери између организација обавезног социјалног осигурања",null,null,null,null,null,null,null,null,null,null,{"$f":"SUM(H105,J105,L105)","v":0},0]
[78,790000,"ПРИХОДИ ИЗ БУЏЕТА (79)",{"$f":"D107","v":0},0,0,0,2000000,0,0,0,0,0,2000000,0]
[79,791000,"ПРИХОДИ ИЗ БУЏЕТА (80)",{"$f":"D108","v":0},0,0,0,2000000,0,0,0,0,0,2000000,{"$f":"SUM(I107,K107,M107)","v":0}]
[80,791100,"Приходи из буџета",null,null,null,null,2000000,null,null,null,null,null,2000000]
[81,800000,"ПРИМАЊА ОД ПРОДАЈЕ НЕФИНАНСИЈСКЕ ИМОВИНЕ (82 + 89 + 96 + 99)",{"$f":"D110+D117+D124+D127","v":0},{"$f":"E110+E117+E124+E127","v":0},0,0,0,0,0,0,0,0,0,0]
[82,810000,"ПРИМАЊА ОД ПРОДАЈЕ ОСНОВНИХ СРЕДСТАВА (83 + 85 + 87)",{"$f":"D111+D113+D115","v":0},{"$f":"E111+E113+E115","v":0},0,0,0,0,0,0,0,0,0,0]
[83,811000,"ПРИМАЊА ОД ПРОДАЈЕ НЕПОКРЕТНОСТИ (84)",{"$f":"D112","v":0},{"$f":"E112","v":0},0,0,0,0,0,0,0,0,0,0]
[84,811100,"Примања од продаје непокретности",null,null,null,null,null,null,null,null,null,null,0,0]
[85,812000,"ПРИМАЊА ОД ПРОДАЈЕ ПОКРЕТНЕ ИМОВИНЕ (86)",{"$f":"D114","v":0},0,0,0,0,0,0,0,0,0,0,0]
[86,812100,"Примања од продаје покретне имовине",null,null,null,null,null,null,null,null,null,null,0,0]
[87,813000,"ПРИМАЊА ОД ПРОДАЈЕ ОСТАЛИХ ОСНОВНИХ СРЕДСТАВА (88)",{"$f":"D116","v":0},0,0,0,0,0,0,0,0,0,0,0]
[88,813100,"Примања од продаје осталих основних средстава",null,null,null,null,null,null,null,null,null,null,0,0]
[89,820000,"ПРИМАЊА ОД ПРОДАЈЕ ЗАЛИХА (90 + 92 + 94)",{"$f":"D118+D120+D122","v":0},0,0,0,0,0,0,0,0,0,0,0]
[90,821000,"ПРИМАЊА ОД ПРОДАЈЕ РОБНИХ РЕЗЕРВИ (91)",{"$f":"D119","v":0},0,0,0,0,0,0,0,0,0,0,0]
[91,821100,"Примања од продаје робних резерви",null,null,null,null,null,null,null,null,null,null,0,0]
[92,822000,"ПРИМАЊА ОД ПРОДАЈЕ ЗАЛИХА  ПРОИЗВОДЊЕ (93)",{"$f":"D121","v":0},0,0,0,0,0,0,0,0,0,0,0]
[93,822100,"Примања од продаје залиха производње",null,null,null,null,null,null,null,null,null,null,0,0]
[94,823000,"ПРИМАЊА ОД ПРОДАЈЕ РОБЕ ЗА ДАЉУ ПРОДАЈУ (95)",{"$f":"D123","v":0},0,0,0,0,0,0,0,0,0,0,0]
[95,823100,"Примања од продаје робе за даљу продају",null,null,null,null,null,null,null,null,null,null,0,0]
[96,830000,"ПРИМАЊА ОД ПРОДАЈЕ ДРАГОЦЕНОСТИ (97)",{"$f":"D125","v":0},0,0,0,0,0,0,0,0,0,0,0]
[97,831000,"ПРИМАЊА ОД ПРОДАЈЕ ДРАГОЦЕНОСТИ (98)",0,0,0,0,0,0,0,0,0,0,0,0]
[98,831100,"Примања од продаје драгоцености",null,null,null,null,null,null,null,null,null,null,0,0]
[99,840000,"ПРИМАЊА ОД ПРОДАЈЕ ПРИРОДНЕ ИМОВИНЕ (100 + 102 + 104)",{"$f":"D128+D130+D132","v":0},0,0,0,0,0,0,0,0,0,0,0]
[100,841000,"ПРИМАЊА ОД ПРОДАЈЕ ЗЕМЉИШТА (101)",{"$f":"D129","v":0},0,0,0,0,0,0,0,0,0,0,0]
[101,841100,"Примања од продаје земљишта",null,null,null,null,null,null,null,null,null,null,0,0]
[102,842000,"ПРИМАЊА ОД ПРОДАЈЕ ПОДЗЕМНИХ БЛАГА (103)",{"$f":"D131","v":0},0,0,0,0,0,0,0,0,0,0,0]
[103,842100,"Примања од продаје подземних блага",null,null,null,null,null,null,null,null,null,null,0,0]
[104,843000,"ПРИМАЊА ОД ПРОДАЈЕ ШУМА И ВОДА (105)",{"$f":"D133","v":0},0,0,0,0,0,0,0,0,0,0,0]
[105,843100,"Примања од продаје шума и вода",null,null,null,null,null,null,null,null,null,null,{"$f":"SUM(H133,J133,L133)","v":0},0]
[106,900000,"ПРИМАЊА ОД ЗАДУЖИВАЊА И ПРОДАЈЕ ФИНАНСИЈСКЕ ИМОВИНЕ (107 + 126)",{"$f":"D135+D154","v":0},{"$f":"E135+E154","v":0},0,0,0,0,0,0,0,0,0,0]
[107,910000,"ПРИМАЊА ОД ЗАДУЖИВАЊА (108+118)",{"$f":"D136+D146","v":0},{"$f":"E136+E146","v":0},0,0,0,0,0,0,0,0,0,0]
[108,911000,"ПРИМАЊА ОД ДОМАЋИХ ЗАДУЖИВАЊА (од 109 до 117)",{"$f":"SUM(D137:D145)","v":0},0,0,0,0,0,0,0,0,0,0,0]
[109,911100,"Примања од емитовања домаћих хартија од вредности, изузев акција",null,null,null,null,null,null,null,null,null,null,0,0]
[110,911200,"Примања од задуживања од осталих нивоа власти",null,null,null,null,null,null,null,null,null,null,0,0]
[111,911300,"Примања од задуживања од јавних финансијских институција у земљи",null,null,null,null,null,null,null,null,null,null,0,0]
[112,911400,"Примања од задуживања од пословних банака у земљи",null,null,null,null,null,null,null,null,null,null,0,0]
[113,911500,"Примања од задуживања код осталих поверилаца у земљи",null,null,null,null,null,null,null,null,null,null,0,0]
[114,911600,"Примања од задуживања од домаћинстава у земљи",null,null,null,null,null,null,null,null,null,null,0,0]
[115,911700,"Примања од домаћих финансијских деривата",null,null,null,null,null,null,null,null,null,null,0,0]
[116,911800,"Примања од домаћих меница",null,null,null,null,null,null,null,null,null,null,0,0]
[117,911900,"Исправка унутрашњег дуга",null,null,null,null,null,null,null,null,null,null,0,0]
[118,912000,"ПРИМАЊА ОД ИНОСТРАНОГ ЗАДУЖИВАЊА (од 119 + 125)",{"$f":"SUM(D147:D153)","v":0},0,0,0,0,0,0,0,0,0,0,0]
[119,912100,"Примања од емитовања хартија од вредности, изузев акција, на иностраном финансијском тржишту",null,null,null,null,null,null,null,null,null,null,0,0]
[120,912200,"Примања од задуживања од иностраних држава",null,null,null,null,null,null,null,null,null,null,0,0]
[121,912300,"Примања од задуживања од мултилатералних институција",null,null,null,null,null,null,null,null,null,null,0,0]
[122,912400,"Примања од задуживања од иностраних пословних банака",null,null,null,null,null,null,null,null,null,null,0,0]
[123,912500,"Примања од задуживања од осталих иностраних поверилаца",null,null,null,null,null,null,null,null,null,null,0,0]
[124,912600,"Примања од иностраних финансијских деривата",null,null,null,null,null,null,null,null,null,null,0,0]
[125,912900,"Исправка спољног дуга",null,null,null,null,null,null,null,null,null,null,0,0]
[126,920000,"ПРИМАЊА ОД ПРОДАЈЕ ФИНАНСИЈСКЕ ИМОВИНЕ (127 + 137)",{"$f":"D155+D165","v":0},0,0,0,0,0,0,0,0,0,0,0]
[127,921000,"ПРИМАЊА ОД ПРОДАЈЕ ДОМАЋЕ ФИНАНСИЈСКЕ ИМОВИНЕ (од 128 до 136) ",{"$f":"SUM(D156:D164)","v":0},0,0,0,0,0,0,0,0,0,0,0]
[128,921100,"Примања од продаје домаћих хартија од вредности, изузев акција",null,null,null,null,null,null,null,null,null,null,0,0]
[129,921200,"Примања од отплате кредита датих осталим нивоима власти",null,null,null,null,null,null,null,null,null,null,0,0]
[130,921300,"Примања од отплате кредита датих домаћим јавним финансијским институцијама",null,null,null,null,null,null,null,null,null,null,0,0]
[131,921400,"Примања од отплате кредита домаћим пословним банкама",null,null,null,null,null,null,null,null,null,null,0,0]
[132,921500,"Примања од отплате кредита датих домаћим јавним нефинансијским институцијама",null,null,null,null,null,null,null,null,null,null,0,0]
[133,921600,"Примања од отплате кредита датих физичким лицима и домаћинствима у земљи",null,null,null,null,null,null,null,null,null,null,0,0]
[134,921700,"Примања од отплате кредита датих удружењима грађана у земљи",null,null,null,null,null,null,null,null,null,null,0,0]
[135,921800,"Примања од отплате кредита датих нефинансијским приватним предузећима у земљи",null,null,null,null,null,null,null,null,null,null,0,0]
[136,921900,"Примања од продаје домаћих акција и осталог капитала",null,null,null,null,null,null,null,null,null,null,0,0]
[{"$f":"A164+1","v":137},922000,"ПРИМАЊА ОД ПРОДАЈЕ СТРАНЕ ФИНАНСИЈСКЕ ИМОВИНЕ (од 138 до 145)",{"$f":"SUM(D166:D173)","v":0},{"$f":"SUM(E166:E173)","v":0},0,0,0,0,0,0,0,0,0,0]
[138,922100,"Примања од продаје страних хартија од вредности, изузев акција",null,null,null,null,null,null,null,null,null,null,0,0]
[139,922200,"Примања од отплате кредита датих страним владама",null,null,null,null,null,null,null,null,null,null,0,0]
[140,922300,"Примања од отплате кредита датих међународним организацијама",null,null,null,null,null,null,null,null,null,null,0,0]
[141,922400,"Примања од отплате кредита датих страним пословним банкама",null,null,null,null,null,null,null,null,null,null,0,0]
[142,922500,"Примања од отплате кредита датих страним нефинансијским институцијама",null,null,null,null,null,null,null,null,null,null,0,0]
[143,922600,"Примања од отплате кредита датих страним невладиним организацијама",null,null,null,null,null,null,null,null,null,null,0,0]
[144,922700,"Примања од продаје страних акција и осталог капитала",null,null,null,null,null,null,null,null,null,null,0,0]
[145,922800,"Примања од продаје стране валуте",null,null,null,null,null,null,null,null,null,null,0,0]
[146,null,"УКУПНИ ПРИХОДИ, ПРИМАЊА И ПРЕНЕТА СРЕДСТВА ИЗ ПРЕТХОДНЕ ГОДИНЕ (1 + 8 + 81 + 106)",{"$f":"D29+D36+D109+D134","v":0},{"$f":"E29+E36+E109+E134","v":0},0,0,2000000,0,0,0,0,0,{"$f":"SUM(H174,J174,L174)","v":2000000},{"$f":"SUM(I174,K174,M174)","v":0}]
[147,400000,"ТЕКУЋИ РАСХОДИ (148+166+211+226+250+263+279+294)",{"$f":"D176+D194+D239+D254+D278+D291+D307+D322","v":0},0,0,0,0,0,0,0,0,0,0,0]
[148,410000,"РАСХОДИ ЗА ЗАПОСЛЕНЕ (149+151+155+157+162+164)",{"$f":"D177+D179+D183+D185+D190+D192","v":0},{"$f":"E177+E179+E183+E185+E190+E192","v":0},0,0,0,0,0,0,0,0,0,0]
[149,411000,"ПЛАТЕ, ДОДАЦИ И НАКНАДЕ ЗАПОСЛЕНИХ (ЗАРАДЕ) (150)",{"$f":"D178","v":0},0,0,0,0,0,0,0,0,0,0,0]
[150,411100,"Плате, додаци и накнаде запослених",null,null,null,null,null,null,null,null,null,null,0,0]
[151,412000,"СОЦИЈАЛНИ ДОПРИНОСИ НА ТЕРЕТ ПОСЛОДАВЦА (од 152 до 154)",{"$f":"SUM(D180:D182)","v":0},0,0,0,0,0,0,0,0,0,0,0]
[152,412100,"Допринос за пензијско и инвалидско осигурање",null,null,null,null,null,null,null,null,null,null,0,0]
[153,412200,"Допринос за здравствено осигурање",null,null,null,null,null,null,null,null,null,null,0,0]
[154,412300,"Допринос за незапосленост",null,null,null,null,null,null,null,null,null,null,0,0]
[155,413000,"НАКНАДЕ У НАТУРИ (156)",{"$f":"D184","v":0},0,0,0,0,0,0,0,0,0,0,0]
[156,413100,"Накнаде у натури",null,null,null,null,null,null,null,null,null,null,0,0]
[157,414000,"СОЦИЈАЛНА ДАВАЊА ЗАПОСЛЕНИМА (од 158 до 161)",{"$f":"SUM(D186:D189)","v":0},0,0,0,0,0,0,0,0,0,0,0]
[158,414100,"Исплата накнада за време одсуствовања с посла на терет фондова",null,null,null,null,null,null,null,null,null,null,0,0]
[159,414200,"Расходи за образовање деце запослених",null,null,null,null,null,null,null,null,null,null,0,0]
[160,414300,"Отпремнине и помоћи",null,null,null,null,null,null,null,null,null,null,0,0]
[161,414400,"Помоћ у медицинском лечењу запосленог или чланова уже породице и друге помоћи запосленом",null,null,null,null,null,null,null,null,null,null,0,0]
[162,415000,"НАКНАДА ТРОШКОВА ЗА ЗАПОСЛЕНЕ (163)",{"$f":"D191","v":0},0,0,0,0,0,0,0,0,0,0,0]
[163,415100,"Накнаде трошкова за запослене",null,null,null,null,null,null,null,null,null,null,0,0]
[164,416000,"НАГРАДЕ ЗАПОСЛЕНИМА И ОСТАЛИ ПОСЕБНИ РАСХОДИ (165)",{"$f":"D193","v":0},0,0,0,0,0,0,0,0,0,0,0]
[165,416100,"Награде запосленима и остали посебни расходи",null,null,null,null,null,null,null,null,null,null,0,0]
[166,420000,"КОРИШЋЕЊЕ УСЛУГА И РОБА (167 + 175 + 181 + 190 + 198 + 201) ",{"$f":"D195+D203+D209+D218+D226+D229","v":0},0,0,0,0,0,0,0,0,0,{"$f":"SUM(H194,J194,L194)","v":0},0]
[167,421000,"СТАЛНИ ТРОШКОВИ (од 168 до 174)",{"$f":"SUM(D196:D202)","v":0},0,0,0,0,0,0,0,0,0,0,0]
[168,421100,"Трошкови платног промета и банкарских услуга",null,null,null,null,null,null,null,null,null,null,0,0]
[169,421200,"Енергетске услуге",null,null,null,null,null,null,null,null,null,null,0,0]
[170,421300,"Комуналне услуге",null,null,null,null,null,null,null,null,null,null,0,0]
[171,421400,"Услуге комуникација",null,null,null,null,null,null,null,null,null,null,0,0]
[172,421500,"Трошкови осигурања",null,null,null,null,null,null,null,null,null,null,0,0]
[173,421600,"Закуп имовине и опреме",null,null,null,null,null,null,null,null,null,null,0,0]
[174,421900,"Остали трошкови",null,null,null,null,null,null,null,null,null,null,0,0]
[175,422000,"ТРОШКОВИ ПУТОВАЊА (од 176 до 180)",{"$f":"SUM(D204:D208)","v":0},0,0,0,0,0,0,0,0,0,0,0]
[176,422100,"Трошкови службених путовања у земљи",null,null,null,null,null,null,null,null,null,null,0,0]
[177,422200,"Трошкови службених путовања у иностранство",null,null,null,null,null,null,null,null,null,null,0,0]
[178,422300,"Трошкови путовања у оквиру редовног рада",null,null,null,null,null,null,null,null,null,null,0,0]
[179,422400,"Трошкови путовања ученика",null,null,null,null,null,null,null,null,null,null,0,0]
[180,422900,"Остали трошкови транспорта",null,null,null,null,null,null,null,null,null,null,0,0]
[181,423000,"УСЛУГЕ ПО УГОВОРУ (од 182 до 189)",{"$f":"SUM(D210:D217)","v":0},0,0,0,0,0,0,0,0,0,0,0]
[182,423100,"Административне услуге",null,null,null,null,null,null,null,null,null,null,0,0]
[183,423200,"Компјутерске услуге",null,null,null,null,null,null,null,null,null,null,0,0]
[184,423300,"Услуге образовања и усавршавања запослених",null,null,null,null,null,null,null,null,null,null,0,0]
[185,423400,"Услуге информисања",null,null,null,null,null,null,null,null,null,null,0,0]
[186,423500,"Стручне услуге",null,null,null,null,null,null,null,null,null,null,0,0]
[187,423600,"Услуге за домаћинство и угоститељство",null,null,null,null,null,null,null,null,null,null,0,0]
[188,423700,"Репрезентација",null,null,null,null,null,null,null,null,null,null,0,0]
[189,423900,"Остале опште услуге",null,null,null,null,null,null,null,null,null,null,0,0]
[190,424000,"СПЕЦИЈАЛИЗОВАНЕ УСЛУГЕ (од 191 до197)",{"$f":"SUM(D219:D225)","v":0},0,0,0,0,0,0,0,0,0,0,0]
[191,424100,"Пољопривредне услуге",null,null,null,null,null,null,null,null,null,null,0,0]
[192,424200,"Услуге образовања, културе и спорта",null,null,null,null,null,null,null,null,null,null,0,0]
[193,424300,"Медицинске услуге",null,null,null,null,null,null,null,null,null,null,0,0]
[194,424400,"Услуге одржавања аутопутева",null,null,null,null,null,null,null,null,null,null,0,0]
[195,424500,"Услуге одржавања националних паркова и природних површина",null,null,null,null,null,null,null,null,null,null,0,0]
[196,424600,"Услуге очувања животне средине, науке и геодетске услуге",null,null,null,null,null,null,null,null,null,null,0,0]
[197,424900,"Остале специјализоване услуге",null,null,null,null,null,null,null,null,null,null,0,0]
[198,425000,"ТЕКУЋЕ ПОПРАВКЕ И ОДРЖАВАЊЕ (199 + 200)",{"$f":"D227+D228","v":0},{"$f":"E227+E228","v":0},0,0,0,0,0,0,0,0,0,0]
[199,425100,"Текуће поправке и одржавање зграда и објеката",null,null,null,null,null,null,null,null,null,null,0,0]
[200,425200,"Текуће поправке и одржавање опреме",null,null,null,null,null,null,null,null,null,null,0,0]
[{"$f":"A228+1","v":201},426000,"МАТЕРИЈАЛ (од 202 до 210)",{"$f":"SUM(D230:D238)","v":0},0,0,0,0,0,0,0,0,0,0,0]
[202,426100,"Административни материјал",null,null,null,null,null,null,null,null,null,null,0,0]
[203,426200,"Материјали за пољопривреду",null,null,null,null,null,null,null,null,null,null,0,0]
[204,426300,"Материјали за образовање и усавршавање запослених",null,null,null,null,null,null,null,null,null,null,0,0]
[205,426400,"Материјали за саобраћај",null,null,null,null,null,null,null,null,null,null,0,0]
[206,426500,"Материјали за очување животне средине и науку",null,null,null,null,null,null,null,null,null,null,0,0]
[207,426600,"Материјали за образовање, културу и спорт",null,null,null,null,null,null,null,null,null,null,0,0]
[208,426700,"Медицински и лабораторијски материјали",null,null,null,null,null,null,null,null,null,null,0,0]
[209,426800,"Материјали за одржавање хигијене и угоститељство",null,null,null,null,null,null,null,null,null,null,0,0]
[210,426900,"Материјали за посебне намене",null,null,null,null,null,null,null,null,null,null,0,0]
[211,430000,"АМОРТИЗАЦИЈА И УПОТРЕБА СРЕДСТАВА ЗА РАД (212 + 216 + 218 + 220 + 224)",{"$f":"D240+D244+D246+D248+D252","v":0},{"$f":"E240+E244+E246+E248+E252","v":0},0,0,0,0,0,0,0,0,0,0]
[212,431000,"АМОРТИЗАЦИЈА НЕКРЕТНИНА И ОПРЕМЕ (од 213 до 215)",{"$f":"SUM(D241:D243)","v":0},0,0,0,0,0,0,0,0,0,0,0]
[213,431100,"Амортизација зграда и грађевинскиx објеката",null,null,null,null,null,null,null,null,null,null,0,0]
[214,431200,"Амортизација опреме",null,null,null,null,null,null,null,null,null,null,0,0]
[215,431300,"Амортизација осталих некретнина и опреме",null,null,null,null,null,null,null,null,null,null,0,0]
[216,432000,"АМОРТИЗАЦИЈА КУЛТИВИСАНЕ ИМОВИНЕ (217)",{"$f":"D245","v":0},0,0,0,0,0,0,0,0,0,0,0]
[217,432100,"Амортизација култивисане опреме",null,null,null,null,null,null,null,null,null,null,0,0]
[218,433000,"УПОТРЕБА ДРАГОЦЕНОСТИ (219)",{"$f":"D247","v":0},0,0,0,0,0,0,0,0,0,0,0]
[219,433100,"Употреба драгоцености",null,null,null,null,null,null,null,null,null,null,0,0]
[220,434000,"УПОТРЕБА ПРИРОДНЕ ИМОВИНЕ (од 221 до 223)",{"$f":"SUM(D249:D251)","v":0},0,0,0,0,0,0,0,0,0,0,0]
[221,434100,"Употреба земљишта",null,null,null,null,null,null,null,null,null,null,0,0]
[222,434200,"Употреба подземног блага",null,null,null,null,null,null,null,null,null,null,0,0]
[223,434300,"Употреба шума и вода",null,null,null,null,null,null,null,null,null,null,0,0]
[224,435000,"АМОРТИЗАЦИЈА НЕМАТЕРИЈАЛНЕ ИМОВИНЕ (225)",{"$f":"D253","v":0},0,0,0,0,0,0,0,0,0,0,0]
[225,435100,"Амортизација нематеријалне имовине",null,null,null,null,null,null,null,null,null,null,0,0]
[226,440000,"ОТПЛАТА КАМАТА И ПРАТЕЋИ ТРОШКОВИ ЗАДУЖИВАЊА (227 + 237 + 244 + 246)",{"$f":"D255+D265+D272+D274","v":0},0,0,0,0,0,0,0,0,0,0,0]
[227,441000,"ОТПЛАТЕ ДОМАЋИХ КАМАТА (од 228 до 236)",{"$f":"SUM(D256:D264)","v":0},{"$f":"SUM(E256:E264)","v":0},0,0,0,0,0,0,0,0,0,0]
[228,441100,"Отплата камата на домаће хартије од вредности",null,null,null,null,null,null,null,null,null,null,{"$f":"SUM(H256,J256,L256)","v":0},0]
[229,441200,"Отплата камата осталим нивоима власти",null,null,null,null,null,null,null,null,null,null,0,0]
[230,441300,"Отплата камата домаћим јавним финансијским институцијама",null,null,null,null,null,null,null,null,null,null,0,0]
[231,441400,"Отплата камата домаћим пословним банкама",null,null,null,null,null,null,null,null,null,null,0,0]
[232,441500,"Отплата камата осталим домаћим кредиторима",null,null,null,null,null,null,null,null,null,null,0,0]
[233,441600,"Отплата камата домаћинствима у земљи",null,null,null,null,null,null,null,null,null,null,0,0]
[234,441700,"Отплата камата на домаће финансијске деривате",null,null,null,null,null,null,null,null,null,null,0,0]
[235,441800,"Отплата камата на домаће менице",null,null,null,null,null,null,null,null,null,null,0,0]
[236,441900,"Финансијске промене на финансијским лизинзима",null,null,null,null,null,null,null,null,null,null,0,0]
[237,442000,"ОТПЛАТА СТРАНИХ КАМАТА (од 238 до 243)",{"$f":"SUM(D266:D271)","v":0},0,0,0,0,0,0,0,0,0,0,0]
[238,442100,"Отплата камата на хартије од вредности емитоване на иностраном финансијском тржишту",null,null,null,null,null,null,null,null,null,null,0,0]
[239,442200,"Отплата камата страним владама",null,null,null,null,null,null,null,null,null,null,0,0]
[240,442300,"Отплата камата мултилатералним институцијама",null,null,null,null,null,null,null,null,null,null,0,0]
[241,442400,"Отплата камата страним пословним банкама",null,null,null,null,null,null,null,null,null,null,0,0]
[242,442500,"Отплата камата осталим страним кредиторима",null,null,null,null,null,null,null,null,null,null,0,0]
[243,442600,"Отплата камата на стране финансијске деривате",null,null,null,null,null,null,null,null,null,null,0,0]
[244,443000,"ОТПЛАТА КАМАТА ПО ГАРАНЦИЈАМА 245)",{"$f":"D273","v":0},{"$f":"E273","v":0},0,0,0,0,0,0,0,0,0,0]
[245,443100,"Отплата камата по гаранцијама",null,null,null,null,null,null,null,null,null,null,0,0]
[246,444000,"ПРАТЕЋИ ТРОШКОВИ ЗАДУЖИВАЊА (од 247 до 249)",{"$f":"SUM(D275:D277)","v":0},0,0,0,0,0,0,0,0,0,0,0]
[247,444100,"Негативне курсне разлике",null,null,null,null,null,null,null,null,null,null,0,0]
[248,444200,"Казне за кашњење",null,null,null,null,null,null,null,null,null,null,0,0]
[249,444300,"Остали пратећи трошкови задуживања",null,null,null,null,null,null,null,null,null,null,0,0]
[250,450000,"СУБВЕНЦИЈЕ (251 + 254 + 257 + 260)",{"$f":"D279+D282+D285+D288","v":0},0,0,0,0,0,0,0,0,0,0,0]
[251,451000,"СУБВЕНЦИЈЕ ЈАВНИМ НЕФИНАНСИЈСКИМ ПРЕДУЗЕЋИМА И ОРГАНИЗАЦИЈАМА (252 + 253)",{"$f":"SUM(D280:D281)","v":0},0,0,0,0,0,0,0,0,0,0,0]
[252,451100,"Текуће субвенције јавним нефинансијским предузећима и организацијама",null,null,null,null,null,null,null,null,null,null,0,0]
[253,451200,"Капиталне субвенције јавним нефинансијским предузећима и организацијама",null,null,null,null,null,null,null,null,null,null,0,0]
[254,452000,"СУБВЕНЦИЈЕ ПРИВАТНИМ ФИНАНСИЈСКИМ ИНСТИТУЦИЈАМА (255 + 256)",{"$f":"SUM(D283:D284)","v":0},0,0,0,0,0,0,0,0,0,0,0]
[255,452100,"Текуће субвенције приватним финансијским институцијама",null,null,null,null,null,null,null,null,null,null,0,0]
[256,452200,"Капиталне субвенције приватним финансијским институцијама",null,null,null,null,null,null,null,null,null,null,0,0]
[257,453000,"СУБВЕНЦИЈЕ ЈАВНИМ ФИНАНСИЈСКИМ ИНСТИТУЦИЈАМА (258 + 259)",{"$f":"SUM(D286:D287)","v":0},0,0,0,0,0,0,0,0,0,0,0]
[258,453100,"Текуће субвенције јавним финансијским институцијама",null,null,null,null,null,null,null,null,null,null,0,0]
[259,453200,"Капиталне субвенције јавним финансијским институцијама",null,null,null,null,null,null,null,null,null,null,0,0]
[260,454000,"СУБВЕНЦИЈЕ ПРИВАТНИМ ПРЕДУЗЕЋИМА (261 + 262)",{"$f":"SUM(D289:D290)","v":0},0,0,0,0,0,0,0,0,0,0,0]
[261,454100,"Текуће субвенције приватним предузећима",null,null,null,null,null,null,null,null,null,null,0,0]
[262,454200,"Капиталне субвенције приватним предузећима",null,null,null,null,null,null,null,null,null,null,0,0]
[263,460000,"ДОНАЦИЈЕ, ДОТАЦИЈЕ И ТРАНСФЕРИ (264 + 267 + 270 + 273 + 276)",{"$f":"D292+D295+D298+D301+D304","v":0},{"$f":"E292+E295+E298+E301+E304","v":0},0,0,0,0,0,0,0,0,0,0]
[264,461000,"ДОНАЦИЈЕ СТРАНИМ ВЛАДАМА (265 + 266)",{"$f":"SUM(D293:D294)","v":0},0,0,0,0,0,0,0,0,0,0,0]
[{"$f":"A292+1","v":265},461100,"Текуће донације страним владама",null,null,null,null,null,null,null,null,null,null,0,0]
[266,461200,"Капиталне донације страним владама",null,null,null,null,null,null,null,null,null,null,0,0]
[267,462000,"ДОТАЦИЈЕ МЕЂУНАРОДНИМ ОРГАНИЗАЦИЈАМА (268 + 269)",{"$f":"SUM(D296:D297)","v":0},0,0,0,0,0,0,0,0,0,0,0]
[268,462100,"Текуће дотације међународним организацијама",null,null,null,null,null,null,null,null,null,null,0,0]
[269,462200,"Капиталне дотације међународним организацијама",null,null,null,null,null,null,null,null,null,null,0,0]
[270,463000,"ТРАНСФЕРИ ОСТАЛИМ НИВОИМА ВЛАСТИ (271 + 272)",{"$f":"SUM(D299:D300)","v":0},{"$f":"SUM(E299:E300)","v":0},0,0,0,0,0,0,0,0,0,0]
[271,463100,"Текући трансфери осталим нивоима власти",null,null,null,null,null,null,null,null,null,null,0,0]
[272,463200,"Капитални трансфери осталим нивоима власти",null,null,null,null,null,null,null,null,null,null,0,0]
[273,464000,"ДОТАЦИЈЕ ОРГАНИЗАЦИЈАМА ОБАВЕЗНОГ СОЦИЈАЛНОГ ОСИГУРАЊА (274 + 275)",{"$f":"SUM(D302:D303)","v":0},0,0,0,0,0,0,0,0,0,0,0]
[274,464100,"Текуће дотације организацијама обавезног социјалног осигурања",null,null,null,null,null,null,null,null,null,null,0,0]
[275,464200,"Капиталне дотације организацијама обавезног социјалног осигурања",null,null,null,null,null,null,null,null,null,null,0,0]
[276,465000,"ОСТАЛЕ ДОТАЦИЈЕ И ТРАНСФЕРИ (277 + 278)",{"$f":"SUM(D305:D306)","v":0},0,0,0,0,0,0,0,0,0,0,0]
[277,465100,"Остале текуће дотације и трансфери",null,null,null,null,null,null,null,null,null,null,0,0]
[278,465200,"Остале капиталне дотације и трансфери",null,null,null,null,null,null,null,null,null,null,0,0]
[279,470000,"СОЦИЈАЛНО ОСИГУРАЊЕ И СОЦИЈАЛНА ЗАШТИТА (280 + 284)",{"$f":"D308+D312","v":0},0,0,0,0,0,0,0,0,0,0,0]
[280,471000,"ПРАВА ИЗ СОЦИЈАЛНОГ ОСИГУРАЊА (ОРГАНИЗАЦИЈЕ ОБАВЕЗНОГ СОЦИЈАЛНОГ ОСИГУРАЊА) (од 281 до 283)",{"$f":"SUM(D309:D311)","v":0},0,0,0,0,0,0,0,0,0,0,0]
[281,471100,"Права из социјалног осигурања која се исплаћују непосредно домаћинствима",null,null,null,null,null,null,null,null,null,null,0,0]
[282,471200,"Права из социјалног осигурања која се исплаћују непосредно пружаоцима услуга",null,null,null,null,null,null,null,null,null,null,0,0]
[283,471900,"Трансфери другим организацијама обавезног социјалног осигурања за доприносе за осигурање",null,null,null,null,null,null,null,null,null,null,0,0]
[284,472000,"НАКНАДЕ ЗА СОЦИЈАЛНУ ЗАШТИТУ ИЗ БУЏЕТА (од 285 до 293)",{"$f":"SUM(D313:D321)","v":0},0,0,0,0,0,0,0,0,0,0,0]
[285,472100,"Накнаде из буџета у случају болести и инвалидности",null,null,null,null,null,null,null,null,null,null,0,0]
[286,472200,"Накнаде из буџета за породиљско одсуство",null,null,null,null,null,null,null,null,null,null,0,0]
[287,472300,"Накнаде из буџета за децу и породицу",null,null,null,null,null,null,null,null,null,null,0,0]
[288,472400,"Накнаде из буџета за случај незапослености",null,null,null,null,null,null,null,null,null,null,0,0]
[289,472500,"Старосне и породичне пензије из буџета",null,null,null,null,null,null,null,null,null,null,0,0]
[290,472600,"Накнаде из буџета у случају смрти",null,null,null,null,null,null,null,null,null,null,0,0]
[291,472700,"Накнаде из буџета за образовање, културу, науку и спорт",null,null,null,null,null,null,null,null,null,null,0,0]
[292,472800,"Накнаде из буџета за становање и живот",null,null,null,null,null,null,null,null,null,null,{"$f":"SUM(H320,J320,L320)","v":0},0]
[293,472900,"Остале накнаде из буџета",null,null,null,null,null,null,null,null,null,null,0,0]
[294,480000,"ОСТАЛИ РАСХОДИ (295 + 298 + 302 + 304 + 307 + 309)",{"$f":"D323+D326+D330+D332+D335+D337","v":0},{"$f":"E323+E326+E330+E332+E335+E337","v":0},0,0,0,0,0,0,0,0,0,0]
[295,481000,"ДОТАЦИЈЕ НЕВЛАДИНИМ ОРГАНИЗАЦИЈАМА (296 + 297)",{"$f":"SUM(D324:D325)","v":0},0,0,0,0,0,0,0,0,0,0,0]
[296,481100,"Дотације непрофитним организацијама које пружају помоћ домаћинствима",null,null,null,null,null,null,null,null,null,null,0,0]
[297,481900,"Дотације осталим непрофитним институцијама",null,null,null,null,null,null,null,null,null,null,0,0]
[298,482000,"ПОРЕЗИ, ОБАВЕЗНЕ ТАКСЕ И КАЗНЕ (од 299 до 301)",{"$f":"SUM(D327:D329)","v":0},{"$f":"SUM(E327:E329)","v":0},0,0,0,0,0,0,0,0,0,0]
[299,482100,"Остали порези",null,null,null,null,null,null,null,null,null,null,0,0]
[300,482200,"Обавезне таксе",null,null,null,null,null,null,null,null,null,null,0,0]
[301,482300,"Новчане казне и пенали",null,null,null,null,null,null,null,null,null,null,0,0]
[302,483000,"НОВЧАНЕ КАЗНЕ И ПЕНАЛИ ПО РЕШЕЊУ СУДОВА (303)",{"$f":"D331","v":0},0,0,0,0,0,0,0,0,0,0,0]
[303,483100,"Новчане казне и пенали по решењу судова",null,null,null,null,null,null,null,null,null,null,0,0]
[304,484000,"НАКНАДА ШТЕТЕ ЗА ПОВРЕДЕ ИЛИ ШТЕТУ НАСТАЛУ УСЛЕД ЕЛЕМЕНТАРНИХ НЕПОГОДА ИЛИ ДРУГИХ ПРИРОДНИХ УЗРОКА (305 + 306)",{"$f":"SUM(D333:D334)","v":0},0,0,0,0,0,0,0,0,0,0,0]
[305,484100,"Накнада штете за повреде или штету насталу услед елементарних непогода",null,null,null,null,null,null,null,null,null,null,0,0]
[306,484200,"Накнада штете од дивљачи",null,null,null,null,null,null,null,null,null,null,0,0]
[307,485000,"НАКНАДА ШТЕТЕ ЗА ПОВРЕДЕ ИЛИ ШТЕТУ НАНЕТУ ОД СТРАНЕ ДРЖАВНИХ ОРГАНА (308)",{"$f":"D336","v":0},0,0,0,0,0,0,0,0,0,0,0]
[308,485100,"Накнада штете за повреде или штету нанету од стране државних органа",null,null,null,null,null,null,null,null,null,null,0,0]
[309,489000,"РАСХОДИ КОЈИ СЕ ФИНАНСИРАЈУ ИЗ СРЕДСТАВА ЗА РЕАЛИЗАЦИЈУ НАЦИОНАЛНОГ ИНВЕСТИЦИОНОГ ПЛАНА (310)",0,0,0,0,0,0,0,0,0,0,0,0]
[310,489100,"Расходи који се финансирају из средстава за реализацију националног инвестиционог плана",null,null,null,null,null,null,null,null,null,null,0,0]
[311,500000,"ИЗДАЦИ ЗА НЕФИНАНСИЈСКУ ИМОВИНУ (312 + 334 + 343 + 346 + 354)",{"$f":"D340+D362+D371+D374+D382","v":0},{"$f":"E340+E362+E371+E374+E382","v":0},0,0,2000000,0,0,0,0,0,2000000,0]
[312,510000,"ОСНОВНА СРЕДСТВА (313 + 318 + 328 + 330 + 332)",{"$f":"D341+D346+D356+D358+D360","v":0},{"$f":"E341+E346+E356+E358+E360","v":0},0,0,2000000,0,0,0,0,0,2000000,0]
[313,511000,"ЗГРАДЕ И ГРАЂЕВИНСКИ ОБЈЕКТИ (од 314 до 317)",{"$f":"SUM(D342:D345)","v":0},0,0,0,2000000,0,0,0,0,0,2000000,0]
[314,511100,"Куповина зграда и објеката",null,null,null,null,null,null,null,null,null,null,0,0]
[315,511200,"Изградња зграда и објеката",null,null,null,null,null,null,null,null,null,null,0,0]
[316,511300,"Капитално одржавање зграда и објеката",null,null,null,null,2000000,null,null,null,null,null,2000000,0]
[317,511400,"Пројектно планирање",null,null,null,null,null,null,null,null,null,null,0,0]
[318,512000,"МАШИНЕ И ОПРЕМА (од 319 до 327)",{"$f":"SUM(D347:D355)","v":0},0,0,0,0,0,0,0,0,0,0,0]
[319,512100,"Опрема за саобраћај",null,null,null,null,null,null,null,null,null,null,0,0]
[320,512200,"Административна опрема",null,null,null,null,null,null,null,null,null,null,0,0]
[321,512300,"Опрема за пољопривреду",null,null,null,null,null,null,null,null,null,null,0,0]
[322,512400,"Опрема за заштиту животне средине",null,null,null,null,null,null,null,null,null,null,0,0]
[323,512500,"Медицинска и лабораторијска опрема",null,null,null,null,null,null,null,null,null,null,0,0]
[324,512600,"Опрема за образовање, културу и спорт",null,null,null,null,null,null,null,null,null,null,0,0]
[325,512700,"Опрема за војску",null,null,null,null,null,null,null,null,null,null,0,0]
[326,512800,"Опрема за јавну безбедност",null,null,null,null,null,null,null,null,null,null,0,0]
[327,512900,"Опрема за производњу, моторна, непокретна и немоторна опрема",null,null,null,null,null,null,null,null,null,null,0,0]
[328,513000,"ОСТАЛЕ НЕКРЕТНИНЕ И ОПРЕМА (329)",{"$f":"D357","v":0},{"$f":"E357","v":0},0,0,0,0,0,0,0,0,0,0]
[{"$f":"A356+1","v":329},513100,"Остале некретнине и опрема",null,null,null,null,null,null,null,null,null,null,0,0]
[330,514000,"КУЛТИВИСАНА ИМОВИНА (331)",{"$f":"D359","v":0},{"$f":"E359","v":0},0,0,0,0,0,0,0,0,0,0]
[331,514100,"Култивисана имовина",null,null,null,null,null,null,null,null,null,null,0,0]
[332,515000,"НЕМАТЕРИЈАЛНА ИМОВИНА (333)",{"$f":"D361","v":0},{"$f":"E361","v":0},0,0,0,0,0,0,0,0,0,0]
[333,515100,"Нематеријална имовина",null,null,null,null,null,null,null,null,null,null,0,0]
[334,520000,"ЗАЛИХЕ (335 + 337 + 341)",{"$f":"D363+D365+D369","v":0},0,0,0,0,0,0,0,0,0,0,0]
[335,521000,"РОБНЕ РЕЗЕРВЕ (336)",{"$f":"D364","v":0},0,0,0,0,0,0,0,0,0,0,0]
[336,521100,"Робне резерве",null,null,null,null,null,null,null,null,null,null,0,0]
[337,522000,"ЗАЛИХЕ ПРОИЗВОДЊЕ (од 338 до 340)",{"$f":"SUM(D366:D368)","v":0},0,0,0,0,0,0,0,0,0,0,0]
[338,522100,"Залихе материјала",null,null,null,null,null,null,null,null,null,null,0,0]
[339,522200,"Залихе недовршене производње",null,null,null,null,null,null,null,null,null,null,0,0]
[340,522300,"Залихе готових производа",null,null,null,null,null,null,null,null,null,null,0,0]
[341,523000,"ЗАЛИХЕ РОБЕ ЗА ДАЉУ ПРОДАЈУ (342)",{"$f":"D370","v":0},0,0,0,0,0,0,0,0,0,0,0]
[342,523100,"Залихе робе за даљу продају",null,null,null,null,null,null,null,null,null,null,0,0]
[343,530000,"ДРАГОЦЕНОСТИ (344)",{"$f":"D372","v":0},0,0,0,0,0,0,0,0,0,0,0]
[344,531000,"ДРАГОЦЕНОСТИ (345)",0,0,0,0,0,0,0,0,0,0,0,0]
[345,531100,"Драгоцености",null,null,null,null,null,null,null,null,null,null,0,0]
[346,540000,"ПРИРОДНА ИМОВИНА (347 + 349 + 351)",{"$f":"D375+D377+D379","v":0},0,0,0,0,0,0,0,0,0,0,0]
[347,541000,"ЗЕМЉИШТЕ (348)",{"$f":"D376","v":0},0,0,0,0,0,0,0,0,0,0,0]
[348,541100,"Земљиште",null,null,null,null,null,null,null,null,null,null,0,0]
[349,542000,"РУДНА БОГАТСТВА (350)",{"$f":"D378","v":0},0,0,0,0,0,0,0,0,0,0,0]
[350,542100,"Копови",null,null,null,null,null,null,null,null,null,null,0,0]
[351,543000,"ШУМЕ И ВОДЕ (352 + 353)",{"$f":"SUM(D380:D381)","v":0},0,0,0,0,0,0,0,0,0,0,0]
[352,543100,"Шуме",null,null,null,null,null,null,null,null,null,null,0,0]
[353,543200,"Воде",null,null,null,null,null,null,null,null,null,null,0,0]
[354,550000,"НЕФИНАНСИЈСКА ИМОВИНА КОЈА СЕ ФИНАНСИРА ИЗ СРЕДСТАВА ЗА РЕАЛИЗАЦИЈУ НАЦИОНАЛНОГ ИНВЕСТИЦИОНОГ ПЛАНА (355)",{"$f":"D383","v":0},0,0,0,0,0,0,0,0,0,0,0]
[355,551000,"НЕФИНАНСИЈСКА ИМОВИНА КОЈА СЕ ФИНАНСИРА ИЗ СРЕДСТАВА ЗА РЕАЛИЗАЦИЈУ НАЦИОНАЛНОГ ИНВЕСТИЦИОНОГ ПЛАНА (356)",0,0,0,0,0,0,0,0,0,0,0,0]
[356,551100,"Нефинансијска имовина која се финансира из средстава за реализацију националног инвестиционог плана",null,null,null,null,null,null,null,null,null,null,{"$f":"SUM(H384,J384,L384)","v":0},0]
[357,600000,"ИЗДАЦИ ЗА ОТПЛАТУ ГЛАВНИЦЕ И НАБАВКУ ФИНАНСИЈСКЕ ИМОВИНЕ (358 + 383)",{"$f":"D386+D411","v":0},{"$f":"E386+E411","v":0},0,0,0,0,0,0,0,0,0,0]
[358,610000,"ОТПЛАТА ГЛАВНИЦЕ (359 + 369 + 377 + 384)",{"$f":"D387+D397+D405+D407+D409","v":0},{"$f":"E387+E397+E405+E407+E409","v":0},0,0,0,0,0,0,0,0,0,0]
[359,611000,"ОТПЛАТА ГЛАВНИЦЕ ДОМАЋИМ КРЕДИТОРИМА (од 360 до 368)",{"$f":"SUM(D388:D396)","v":0},0,0,0,0,0,0,0,0,0,0,0]
[360,611100,"Отплата главнице на домаће хартије од вредности, изузев акција",null,null,null,null,null,null,null,null,null,null,0,0]
[361,611200,"Отплата главнице осталим нивоима власти",null,null,null,null,null,null,null,null,null,null,0,0]
[362,611300,"Отплата главнице домаћим јавним финансијским институцијама",null,null,null,null,null,null,null,null,null,null,0,0]
[363,611400,"Отплата главнице домаћим пословним банкама",null,null,null,null,null,null,null,null,null,null,0,0]
[364,611500,"Отплата главнице осталим домаћим кредиторима",null,null,null,null,null,null,null,null,null,null,0,0]
[365,611600,"Отплата главнице домаћинствима у земљи",null,null,null,null,null,null,null,null,null,null,0,0]
[366,611700,"Отплата главнице на домаће финансијске деривате",null,null,null,null,null,null,null,null,null,null,0,0]
[367,611800,"Отплата домаћих меница",null,null,null,null,null,null,null,null,null,null,0,0]
[368,611900,"Исправка унутрашњег дуга",null,null,null,null,null,null,null,null,null,null,0,0]
[369,612000,"ОТПЛАТА ГЛАВНИЦЕ СТРАНИМ КРЕДИТОРИМА (од 370 до 376)",{"$f":"SUM(D398:D404)","v":0},0,0,0,0,0,0,0,0,0,0,0]
[370,612100,"Отплата главнице на хартије од вредности, изузев акција, емитоване на иностраном финансијском тржишту",null,null,null,null,null,null,null,null,null,null,0,0]
[371,612200,"Отплата главнице страним владама",null,null,null,null,null,null,null,null,null,null,0,0]
[372,612300,"Отплата главнице мултилатералним институцијама",null,null,null,null,null,null,null,null,null,null,0,0]
[373,612400,"Отплате главнице страним пословним банкама",null,null,null,null,null,null,null,null,null,null,0,0]
[374,612500,"Отплате главнице осталим страним кредиторима",null,null,null,null,null,null,null,null,null,null,0,0]
[375,612600,"Отплата главнице на стране финансијске деривате",null,null,null,null,null,null,null,null,null,null,0,0]
[376,612900,"Исправка спољног дуга",null,null,null,null,null,null,null,null,null,null,0,0]
[377,613000,"ОТПЛАТА ГЛАВНИЦЕ ПО ГАРАНЦИЈАМА (378)",{"$f":"D406","v":0},{"$f":"E406","v":0},0,0,0,0,0,0,0,0,0,0]
[378,613100,"Отплата главнице по гаранцијама",null,null,null,null,null,null,null,null,null,null,0,0]
[379,614000,"ОТПЛАТА ГЛАВНИЦЕ ЗА ФИНАНСИЈСКИ ЛИЗИНГ (380)",{"$f":"D408","v":0},{"$f":"E408","v":0},0,0,0,0,0,0,0,0,0,0]
[380,614100,"Отплата главнице за финансијски лизинг",null,null,null,null,null,null,null,null,null,null,0,0]
[381,615000,"ОТПЛАТА ГАРАНЦИЈА ПО КОМЕРЦИЈАЛНИМ ТРАНСАКЦИЈАМА (382)",{"$f":"D410","v":0},{"$f":"E410","v":0},0,0,0,0,0,0,0,0,0,0]
[382,615100,"Отплата гаранција по комерцијалним трансакцијама",null,null,null,null,null,null,null,null,null,null,0,0]
[383,620000,"НАБАВКА ФИНАНСИЈСКЕ ИМОВИНЕ (384 + 394 + 403)",{"$f":"D412+D422+D431","v":0},{"$f":"E412+E422+E431","v":0},0,0,0,0,0,0,0,0,0,0]
[384,621000,"НАБАВКА ДОМАЋЕ ФИНАНСИЈСКЕ ИМОВИНЕ (од 385 до 393)",{"$f":"SUM(D413:D421)","v":0},0,0,0,0,0,0,0,0,0,0,0]
[385,621100,"Набавка домаћих хартија од вредности, изузев акција",null,null,null,null,null,null,null,null,null,null,0,0]
[386,621200,"Кредити осталим нивоима власти",null,null,null,null,null,null,null,null,null,null,0,0]
[387,621300,"Кредити домаћим јавним финансијским институцијама",null,null,null,null,null,null,null,null,null,null,0,0]
[388,621400,"Кредити домаћим пословним банкама",null,null,null,null,null,null,null,null,null,null,0,0]
[389,621500,"Кредити домаћим нефинансијским јавним институцијама",null,null,null,null,null,null,null,null,null,null,0,0]
[390,621600,"Кредити физичким лицима и домаћинствима у земљи",null,null,null,null,null,null,null,null,null,null,0,0]
[391,621700,"Кредити невладиним организацијама у земљи",null,null,null,null,null,null,null,null,null,null,0,0]
[392,621800,"Кредити домаћим нефинансијским приватним предузећима",null,null,null,null,null,null,null,null,null,null,0,0]
[{"$f":"A420+1","v":393},621900,"Набавка домаћих акција и осталог капитала",null,null,null,null,null,null,null,null,null,null,0,0]
[394,622000,"НАБАВКА СТРАНЕ ФИНАНСИЈСКЕ ИМОВИНЕ (од 395 до 402)",{"$f":"SUM(D423:D430)","v":0},{"$f":"SUM(E423:E430)","v":0},0,0,0,0,0,0,0,0,0,0]
[395,622100,"Набавка страних хартија од вредности, изузев акција",null,null,null,null,null,null,null,null,null,null,0,0]
[396,622200,"Кредити страним владама",null,null,null,null,null,null,null,null,null,null,0,0]
[397,622300,"Кредити међународним организацијама",null,null,null,null,null,null,null,null,null,null,0,0]
[398,622400,"Кредити страним пословним банкама",null,null,null,null,null,null,null,null,null,null,0,0]
[399,622500,"Кредити страним нефинансијским институцијама",null,null,null,null,null,null,null,null,null,null,0,0]
[400,622600,"Кредити страним невладиним организацијама",null,null,null,null,null,null,null,null,null,null,0,0]
[401,622700,"Набавка страних акција и осталог капитала",null,null,null,null,null,null,null,null,null,null,0,0]
[402,622800,"Куповина стране валуте",null,null,null,null,null,null,null,null,null,null,0,0]
[403,623000,"НАБАВКА ФИНАНСИЈСКЕ ИМОВИНЕ КОЈА СЕ ФИНАНСИРА ИЗ СРЕДСТАВА ЗА РЕАЛИЗАЦИЈУ НАЦИОНАЛНОГ ИНВЕСТИЦИОНОГ ПЛАНА (404)",{"$f":"D432","v":0},{"$f":"E432","v":0},0,0,0,0,0,0,0,0,0,0]
[404,623100,"Набавка финансијске имовине која се финансира из средстава за реализацију националног инвестиционог плана ",null,null,null,null,null,null,null,null,null,null,0,0]
[405,null,"УКУПНИ РАСХОДИ И ИЗДАЦИ (147 + 311 + 357)",{"$f":"D385+D339+D175","v":0},0,0,0,2000000,0,0,0,0,0,2000000,0]
[null,null,"Разлика (146-405 ) [ Укупни приходи, примања и пренета средства - Укупни расходи и издаци]",{"$f":"D174-D433","v":0},{"$f":"E174-E433","v":0},0,0,0,0,0,0,0,0,0,0]
[]
["Шифра","Извори финансирања пројекта",null,"Вредност у базној години (2017)",null,"Очекивана вредност у 2018. години",null,"Вредност у 2019. години",null,"Вредност у 2020. години",null,"Вредност у 2021. години",null,"Укупно (2019-2021)"]
[1,2,null,3,null,4,null,5,null,6,null,7,null,"8=(5+6+7)"]
["01","Приходи из буџета",null,null,null,null,null,null,null,null,null,null,null,{"$f":"SUM(H438,J438,L438)","v":0}]
["02","Трансфери између корисника на истом нивоу",null,null,null,null,null,null,null,null,null,null,null,{"$f":"SUM(H439,J439,L439)","v":0}]
["03","Социјални доприноси",null,null,null,null,null,null,null,null,null,null,null,0]
["04","Сопствени приходи буџетских корисника",null,null,null,null,null,null,null,null,null,null,null,0]
["05","Донације од иностраних земаља",null,null,null,null,null,null,null,null,null,null,null,0]
["06","Донације од међународних организација",null,null,null,null,null,null,null,null,null,null,null,0]
["07","Трансфери од других нивоа власти",null,null,null,null,null,null,null,null,null,null,null,0]
["08","Добровољни трансфери од физичких и правних лица",null,null,null,null,null,null,null,null,null,null,null,0]
["09","Примања од продаје нефинансијске имовине",null,null,null,null,null,null,null,null,null,null,null,0]
["10","Примања од домаћих задуживања",null,null,null,null,null,null,null,null,null,null,null,0]
["11","Примања од иностраних задуживања",null,null,null,null,null,null,null,null,null,null,null,0]
["12","Примања од отплате датих кредита и продаје финансијске имовине",null,null,null,null,null,null,null,null,null,null,null,0]
["13","Нераспоређени вишак прихода из ранијих година",null,null,null,null,null,null,null,null,null,null,null,0]
["14","Неутрошена средства од приватизације из ранијих година",null,null,null,null,null,null,null,null,null,null,null,0]
["15","Неутрошена средства донација из ранијих година",null,null,null,null,null,null,null,null,null,null,null,0]
["16","Родитељски динар за ваннаставне активности",null,null,null,null,null,null,null,null,null,null,null,0]
["56","Финансијска помоћ ЕУ",null,null,null,null,null,null,null,null,null,null,null,{"$f":"SUM(H454,J454,L454)","v":0}]
["УКУПНО  ЗА:",null,{"$f":"$D$5&\"-\"&$E$5&\"   \"&$D$6","v":"2002-П1   Унапређење квлитета образовања и васпитања"},{"$f":"SUM(D438:E454)","v":0},null,{"$f":"SUM(F438:G454)","v":0},null,{"$f":"SUM(H438:I454)","v":0},null,{"$f":"SUM(J438:K454)","v":0},null,{"$f":"SUM(L438:M454)","v":0},null,{"$f":"SUM(H455:M455)","v":0}]
[null,null,"Разлика ( укупни расходи и издаци -  укупни извори )",{"$f":"D433+E433-D455","v":0},null,{"$f":"F433+G433-F455","v":0},null,{"$f":"H433+I433-H455","v":2000000},null,{"$f":"J433+K433-J455","v":0},null,{"$f":"L433+M433-L455","v":0},null,{"$f":"N433+O433-N455","v":2000000}]
[]
["*","1-3 циља за сваку програмску активност"]
["**","1-3 индикатора исхода/излазног резултата за сваки циљ"]
[]
[null,null,null,null,null,null,null,null,null,null,null,null,"Одговорно лице"]
[]
[null,"Датум:","06.05.2019.",null,null,null,null,null,null,null,null,null,"Ненад Младеновић"]

{"sheet":"Упутство","index":5,"n_rows":43,"n_cols":2,"rows_kept":43,"cut":false,"hidden":false,"merged":[[23,1,23,13],[17,1,17,13],[18,1,18,13],[19,1,19,13],[42,1,42,13],[31,1,31,13],[32,1,32,13],[25,1,25,13],[26,1,26,13],[29,1,29,13],[30,1,30,13],[36,1,36,13],[35,1,35,13],[27,1,27,13],[16,0,20,0],[22,1,22,13],[35,0,39,0],[39,1,39,13],[8,0,8,13],[16,1,16,13],[12,1,12,13],[24,1,24,13],[38,1,38,13],[13,1,13,13],[11,1,11,13],[22,0,33,0],[28,1,28,13],[33,1,33,13],[11,0,13,0],[20,1,20,13]]}
[]
[]
[]
[]
[]
[]
[]
[]
["Поступак за попуњавање образаца "]
[]
[]
["I","ПОДЕШАВАЊЕ ПОЧЕТНИХ ПАРАМЕТАРА:"]
[null,"Прво што је потребно урадити јесте да омогућите макрое у Вашој верзији Ексела. У зависности од верзије по покретању документа добићете обавештење да су макрои онемогућени и питање да ли желите да омогућите макрое. Кликом на опцију \"Еnable this content\" или \"Enable macros\" омогућавају се програмске процедуре које су неопходне за рад документа. "]
[null,"Након омогућавања макроа у радном листу \"Програм\", у ћелији \"D4\" изаберете назив Програма. Овим поступком сте подесили параметре за рад у радним листовима \"Програмска активност\" и \"Пројекат\"."]
[]
[]
["I","КОПИРАЊЕ ПОТРЕБНОГ БРОЈA SHEET-ОВА ЗА ПРОГРАМСКЕ АКТИВНОСТИ И ПРОЈЕКТЕ"]
[null,"Сваки програм се састоји из различитог броја програмских активности и пројеката те је неопходно да за онај број програмских активности и пројеката који Вам је потребан ископирате радне листове \"Програмска активност\" и \"Пројекат\". Поступак копирања је следећи:"]
[null,"1) За нову програмску активност : Кликните десним кликом на радни лист - \"Програмска активност\" и изаберите опцију \"Move or copy\". Након тога приказаће Вам се прозор у коме треба у одељку \"Before sheet\" одабрати позицију новог радног листа (\"Sheet\"-a) односно Програмске активности. Kликом на један од понуђених радних листова бирате позицију нове програмске активности, и то тако што се нова програмска активност позиционира испред изабраног постојећег радног листа. Након избора позиције обавезно штиклирате опцију \"Create a copy\" а затим кликните на ОК.  "]
[null,"Препоручљиво је да приликом избора позиције за нову програмску активност  у одељку \"Before sheet\" изаберете радни лист - \"Пројекат\" како би се испоштовао редослед у позиционирању (најпре програм, затим све програмске активности у оквиру  програма и на крају сви пројекти у оквиру изабраног програма)."]
[null,"2) За нови пројекат:  Кликните десним кликом на радни лист \"Пројекат\" и изаберите опцију \"Move or copy\". Након тога приказаће Вам се прозор у коме треба у одељку \"Before sheet\" одабрати позицију новог радног листа (\"Sheet\"-a) односно Пројекта. Kликом на један од понуђених радних листова бирате позицију новог пројекта, и то тако што се нови пројекат позиционира испред изабраног постојећег радног листа. Препоручљиво је да у одељку \"Before sheet\" за нови пројекат изаберете радни лист - \"Упутство\". Након избора позиције штиклирате опцију \"Create a copy\" затим кликнете на ОК."]
[]
["II","ЗНАЧЕЊЕ ПОЈЕДИНИХ НАСЛОВА КОД ПРОГРАМА, ПРОГРАМСКИХ АКТИВНОСТИ И ПРОЈЕКАТА И ИНФОРМАЦИЈЕ КОЈЕ СЕ УНОСЕ"]
[null,"1)  У табелама у којима се исказују индикатори: "]
[]
[null," - наслов колоне \"Вредност у базној години (2017)\" односи се на иницијалну референтну вредност индикатора у односу на коју настојимо да пратимо промене током времена (у буџетском циклусу за 2019. годину то ће бити 2017. година, кроз наредне буџетске циклусе ће бити расположиве вредности са краја 2018/2019/итд.). За буџетску кампању 2019., као иницијалну референтну вредност у овој колони треба унети вредност према расположивим подацима за крај 2017. године тј. из завршног рачуна. Уколико нису познати подаци о вредности индикатора за крај 2017. године, унети вредност индикатора из периода који претходи крају 2017. године и за који су подаци доступни (нпр. средина 2017. године, крај 2016. године и сл.)"]
[null," - наслов колоне \"Очекивана вредност у 2018. години\" односи се на вредност индикатора пројектовану за крај текуће године у којој се припрема буџет за наредну годину. Будући да у периоду припреме буџета за 2019. годину нису познате вредности индикатора које ће бити коначно остварене до краја текуће 2018. године, у ову колону уносе се планиране/очекиване вредности индикатора. Уколико се у циклусу припреме буџета за 2019. годину користи исти индикатор који је коришћен и у циклусу за 2018. годину, у ову колону уноси се вредност индикатора која је исказана као пројекција за 2018. годину уколико је она и даље реална, а уколико није реална потребно је унети вредност индикатора за коју се објективно процењује да ће бити остварена до краја 2018. године."]
[null," - У колонама које се односе на циљане вредности за 2019., 2020. и 2021. годину, корисник уноси очекиване вредности индикатора према пројекцијама за крај сваке односне године.     "]
[null,"2) У табелама у којима се исказују приходи / примања  и расходи/издаци :"]
[null," - наслов колоне \"Конто\" се односи на шифре конта прописаних Правилником о класификационом оквиру и контном плану за буџетски систем на нивоу класе, категорије, групе и синтетичког конта (четвороцифрени) ниво,                                                                              - наслов колоне \"ОПИС\" се односи на назив шифре конта .                                                                                                                                                            - наслов колоне \"Вредност у базној години (2017)“ односи се на вредност прихода/расхода из последњег завршног рачуна буџетског корисника. За буџетску кампању 2019. то је завршни рачун из 2017. године. У наредним буџетским циклусима, корисници коригују године у складу са буџетском кампањом која је у току;      "]
[null," - наслов колоне \"Очекивана вредност у 2018. години“ односи се на вредност прихода/расхода који је усвојен последњом Одлуком о буџету општине/града односно финансијским планом буџетског корисника. За буџетску кампању 2019. то је Одлука о буџету или Одлука о последњем ребалансу за 2018. годину у тренутку почетка припреме буџета за 2019. годину. "]
[null," У оквиру сваке године се налазе две колоне \"Приходи из буџета\" и \"Приходи из осталих извора\"     "]
[null,"При томе, директни и индиректни корисници буџета локалне самоуправе:\n1) у колони \"Приходи из буџета\" исказују се искључиво планирана средства (приходи и примања, односно расходи и издаци) из извора финансирања 01 - Приходи из буџета, а\n2)  у колони \"Приходи из осталих извора\" исказују се укупно планирана средства (приходи и примања, односно расходи и издаци) из свих осталих извора (извори финансирања од 03 – 16 и 56 ).  \n   "]
[null,"НАПОМЕНА:\n Када је реч о индиректним корисницима Републичког буџета:\n1) у колони \"Приходи из буџета\" исказују се искључиво планирана средства (приходи и примања, односно расходи и издаци) која ће добити из буџета Републике, а\n2) у колони \"Приходи из осталих извора\" исказују се укупно планирана средства (приходи и примања, односно расходи и издаци) на извору 07 - која ће добити  из  буџета локлане самоуправе, као и на извору 06 - средства добијена од донација.\n"]
[]
["III","ПОПУЊАВАЊЕ ПРОГАМА, ПРОГРАМСКИХ АКТИВНОСТИ И ПРОЈЕКАТА"]
[null,"1) За Програм:  Програмска класификација је дефинисана Анексом 5 Упутства за припрему програмског буџета тако да називе програма програма , шифру програма, сектор коме припада програм и сврху програма можете преузети из материјала СКГО-а, тако да почетак попуњавања креће од Основа програма. Образац Програм треба да прикаже консолидоване податке свих програмских активности и пројеката које корисник попуњава."]
[]
[null,"2) За програмску активност:  Свака појединачна програмска активност се попуњавана у посебном радном листу. У зависности од изабране програмске активности, у делу обрасца који се односи на дефинисање циљева и индикатора можете користити циљеве и индикаторе који су дефинисани од стране СКГО-а, али је остављена могућност за сопствено дефинисање. "]
[null,"3) За пројекте: у ћелији \"D5\" упишите шифру програма коме припада пројекат а у ћелији \"Е5\" упишите шифру пројекта у формату П1,П2,П3.итд у зависности од редоследа пројеката у оквиру програма. За пројекте које ЛС реализује заједнос са републичким органом користити шифру пројекта коју је одредио републички орган. Поступак попуњавања дела који се односи на трошкове и изворе финансирања је идентичан као и код програмске активности."]
[]
[]
[null,"За више информација о попуњавању образаца погледајте Упутство за попуњавање образаца на сајту www.skgo.org.rs"]